#;Konto;Datum;Valuta;Betrag;Währung;Name;Nummer;Bank;Zweck;Hauptkategorie;Kategorie;Kategoriepfad;Tags;Notiz;Buchungsschlüssel;Buchungstext;SEPA Referenz;Mandatsreferenz;Gläubiger ID
1;DE16500105175407875231;18.12.2023;18.12.2023;-14,99;EUR;"Amazon Business Eu Sarl";;;"302.4967359.9623554 AMZNBusiness 2FLLT9G5LDOMMXQL";"Lebenshaltung";"Shopping";"Lebenshaltung / Shopping";;;"005";"Lastschrifteinzug";"2FLLT9G5LDOMMXQL";"rOxHdfurPFKHn)Aq(.XhjI6?SxR+8m";"DE93ZZZ00002502544"
2;DE16500105175407875231;18.12.2023;18.12.2023;-11,69;EUR;"Amazon Payments Europe S.C.A.";;;"305.6162411.4289966 AMZN Mktp DE 6CKKXOVZGQD4GUYX";"Lebenshaltung";"Shopping";"Lebenshaltung / Shopping";;;"005";"Lastschrifteinzug";"6CKKXOVZGQD4GUYX";"rOxHdfurPFKHn)Aq(.XhjI6?SxR+8m";"DE94ZZZ00000561653"
3;DE16500105175407875231;15.12.2023;15.12.2023;-36,99;EUR;"freenet ehemals mobilcom-debitel";;;"Kd.1115915714 Wir sagen Danke. RG.Nr.P23014076122 36,99 EUR";"Lebenshaltung";"Handy & Internet";"Lebenshaltung / Handy & Internet";;;"005";"Lastschrifteinzug";"1115915714/934926835907";"DL-1115915714-000001";"DE43ZZZ00000074855"
4;DE16500105175407875231;15.12.2023;15.12.2023;-23,69;EUR;"Netto Marken-Discoun";;;"NETTO MARKEN.DISCOU//MOEMBRIS/DE 2023.12.14T08.38.44 Folgenr.000 Verfalld.2026.12";"Lebenshaltung";"Lebensmittel";"Lebenshaltung / Lebensmittel";;;"005";"Lastschrifteinzug";"65375639612316141223083844";"083848";"DE61ZZZ00000018368"
5;DE16500105175407875231;14.12.2023;14.12.2023;1,60;EUR;"St. Jakobusverein Schimborne.V.";;;"Deutsche Post v. 05.12.2023 f. Briefmarke";"Freizeit & Unterhaltung";"Vereine";"Freizeit & Unterhaltung / Vereine";;;"051";"Gutschrift";"CT-1-13.12.2023";;
6;DE16500105175407875231;14.12.2023;14.12.2023;-14,95;EUR;"Netto Marken-Discoun";;;"NETTO MARKEN.DISCOU//MOEMBRIS/DE 2023.12.13T15.29.52 Folgenr.001 Verfalld.2026.12";"Lebenshaltung";"Lebensmittel";"Lebenshaltung / Lebensmittel";;;"005";"Lastschrifteinzug";"65375639612179131223152952";"152957";"DE61ZZZ00000018368"
7;DE16500105175407875231;14.12.2023;14.12.2023;-124,75;EUR;"Esso Station";;;"ESSO STATION//Moembris/DE 2023.12.13T07.23.47 Folgenr.000 Verfalld.2026.12";"Mobilität";"Tank- & Ladestelle";"Mobilität / Tank- & Ladestelle";;;"005";"Lastschrifteinzug";"78103932020782131223072347";"072341";"DE16E0100000020245"
8;DE16500105175407875231;13.12.2023;13.12.2023;-53,49;EUR;"Netto Marken-Discoun";;;"NETTO MARKEN.DISCOU//MOEMBRIS/DE 2023.12.12T16.11.40 Folgenr.001 Verfalld.2026.12";"Lebenshaltung";"Lebensmittel";"Lebenshaltung / Lebensmittel";;;"005";"Lastschrifteinzug";"65375639611847121223161140";"161149";"DE61ZZZ00000018368"
9;DE16500105175407875231;13.12.2023;13.12.2023;-19,90;EUR;"Esso Station";;;"ESSO STATION//Moembris/DE 2023.12.12T19.23.46 Folgenr.000 Verfalld.2026.12";"Mobilität";"Tank- & Ladestelle";"Mobilität / Tank- & Ladestelle";;;"005";"Lastschrifteinzug";"78103932020745121223192346";"192336";"DE16E0100000020245"
10;DE16500105175407875231;12.12.2023;12.12.2023;-5,99;EUR;"Amazon Digital Germany Gmbh";;;"D01.9080253.4802257 Prime Video Channels 5BTNK6K3KQ8YZR2J";"Freizeit & Unterhaltung";"Streaming";"Freizeit & Unterhaltung / Streaming";;;"005";"Lastschrifteinzug";"5BTNK6K3KQ8YZR2J";"rOxHdfurPFKHn)Aq(.XhjI6?SxR+8m";"DE96ZZZ00000594888"
11;DE16500105175407875231;12.12.2023;12.12.2023;-10,00;EUR;"Worldline Sweden AB fuer Shell";;;"SHELL 5481// Alzenau /DE 2023.12.11T07.46.57 Folgenr.000 Verfalld.2026.12";"Mobilität";"Tank- & Ladestelle";"Mobilität / Tank- & Ladestelle";;;"005";"Lastschrifteinzug";"70011026180966111223074657";"074701";"SE917375565480026"
12;DE16500105175407875231;12.12.2023;12.12.2023;-129,95;EUR;"Rv-Bank Aschaffenburg";;;"RV.Bank AB MOEMBRIS//MOEMBRIS/DE 2023.12.11T18.15.50 Folgenr.000 Verfalld.2026.12 Entgelt 4,95EUR";"Finanzen & Versicherungen";"Geldautomat";"Finanzen & Versicherungen / Geldautomat";;;"005";"Lastschrifteinzug";"00003271017030111223181550";"181604";"DE48ZZZ00000055947"
13;DE16500105175407875231;11.12.2023;11.12.2023;-84,30;EUR;"Netto Marken-Discoun";;;"NETTO MARKEN.DISCOU//MOEMBRIS/DE 2023.12.09T19.15.19 Folgenr.001 Verfalld.2026.12";"Lebenshaltung";"Lebensmittel";"Lebenshaltung / Lebensmittel";;;"005";"Lastschrifteinzug";"65375639611416091223191519";"191530";"DE61ZZZ00000018368"
14;DE16500105175407875231;11.12.2023;11.12.2023;-81,96;EUR;"Tankstelle";;;"AGIP SCHOLLKRIPPEN, ASCHAFFENBURGERSTR.//Schollkrippen/DE 2023.12.08T15.14.35 Folgenr.001 Verfalld.2026.12";"Mobilität";"Tank- & Ladestelle";"Mobilität / Tank- & Ladestelle";;;"005";"Lastschrifteinzug";"74035659216683081223151435";"151444";"DE09WEA00000635060"
15;DE16500105175407875231;11.12.2023;11.12.2023;-6,00;EUR;"PayPal Europe S.a.r.l. et Cie S.C.A";;;"1031144089700/PP.5629.PP/. HD PLUSGmbH, Ihr Einkauf bei HD PLUS GmbH";"Lebenshaltung";"Handy & Internet";"Lebenshaltung / Handy & Internet";;;"005";"Lastschrifteinzug";"1031144089700";"474J224N243DU";"LU96ZZZ0000000000000000058"
16;DE16500105175407875231;11.12.2023;11.12.2023;-10,00;EUR;"Danke 21303 Edeka Hafner Neumarkt";;;"DANKE 1303 EDEKA HAFNER//NEUMARKT/DE 2023.12.09T14.30.49 Folgenr.000 Verfalld.2026.12";"Lebenshaltung";"Lebensmittel";"Lebenshaltung / Lebensmittel";;;"005";"Lastschrifteinzug";"54385094724206091223143049";"143105";"DE24ZZZ00001861355"
17;DE16500105175407875231;08.12.2023;08.12.2023;-23,95;EUR;"Worldline Sweden AB fuer Shell";;;"SHELL 0201// Aschaffenburg /DE 2023.12.07T17.30.39 Folgenr.000 Verfalld.2026.12";"Mobilität";"Tank- & Ladestelle";"Mobilität / Tank- & Ladestelle";;;"005";"Lastschrifteinzug";"70011976340893071223173039";"173043";"SE917375565480026"
18;DE16500105175407875231;07.12.2023;07.12.2023;-52,99;EUR;"Fressnapf Alzenau 2861";;;"Elv61702868 05.12 14.43 Me0";"Lebenshaltung";"Haustier";"Lebenshaltung / Haustier";;;"005";"Lastschrifteinzug";"IC-15928195208";"6170286881882312051443";"DE81ZZZ00001614725"
19;DE16500105175407875231;07.12.2023;07.12.2023;-21,97;EUR;"Awg";;;"Elv61712685 05.12 13.48 Me0";;;;;;"005";"Lastschrifteinzug";"IC-15927737372";"6171268567512312051348";"DE11ZZZ00000009471"
20;DE16500105175407875231;06.12.2023;06.12.2023;-55,94;EUR;"toom BM Alzenau";;;"TOOM BM SAGT DANKE 13563651//Alzenau/DE 2023.12.05T14.30.40 Folgenr.000 Verfalld.2026.12";"Lebenshaltung";"Baumarkt & Gartencenter";"Lebenshaltung / Baumarkt & Gartencenter";;;"005";"Lastschrifteinzug";"56013479311677051223143040";"143104";"DE86ZZZ00000257217"
21;DE16500105175407875231;06.12.2023;06.12.2023;-27,52;EUR;"REWE Kornelius Gol";;;"REWE SAGT DANKE. 44652171//Moembris/DE 2023.12.05T15.45.27 Folgenr.001Verfalld.2026.12";"Lebenshaltung";"Lebensmittel";"Lebenshaltung / Lebensmittel";;;"005";"Lastschrifteinzug";"56026223721489051223154527";"154535";"DE16RPA00000020245"
22;DE16500105175407875231;05.12.2023;05.12.2023;750,00;EUR;"Bundesagentur fur Arbeit - Familienkasse";;;"Kg735715Fk276070 1223 066055395978/3000098731709";"Finanzen & Versicherungen";"Kindergeld & Unterhalt";"Finanzen & Versicherungen / Kindergeld & Unterhalt";;;"051";"Gutschrift";"066055395978";;
23;DE16500105175407875231;05.12.2023;05.12.2023;450,00;EUR;"Tanja Gehringer";;;"Uberweisung";;;;;;"051";"Gutschrift";;;
24;DE16500105175407875231;05.12.2023;05.12.2023;-40,00;EUR;"Foerderverein Ivo-Zeiger-Schule";"DE70795625140001470000";"GENODEF1AB1";"CAT Bo Gehringer";"Freizeit & Unterhaltung";"Vereine";"Freizeit & Unterhaltung / Vereine";;;"020";"Überweisung";;;
25;DE16500105175407875231;05.12.2023;05.12.2023;-131,28;EUR;"Netto Marken-Discoun";;;"NETTO MARKEN.DISCOU//MOEMBRIS/DE 2023.12.04T19.56.19 Folgenr.000 Verfalld.2026.12";"Lebenshaltung";"Lebensmittel";"Lebenshaltung / Lebensmittel";;;"005";"Lastschrifteinzug";"65375639609877041223195619";"195625";"DE61ZZZ00000018368"
26;DE16500105175407875231;04.12.2023;04.12.2023;380,52;EUR;"LA BOTTEGA TOSCANA Jens Hofacker e.K.";;;"Aufstockung 11.23";;;;;;"051";"Gutschrift";;;
27;DE16500105175407875231;04.12.2023;04.12.2023;-0,99;EUR;"Ing";;;"Girocard 260006800102Monatliches Entgeltgirocard (Debitkarte)";"Finanzen & Versicherungen";"Bankgebühren";"Finanzen & Versicherungen / Bankgebühren";;;"027";"Entgelt";;;
28;DE16500105175407875231;04.12.2023;04.12.2023;-0,99;EUR;"Ing";;;"Girocard 260006683584Monatliches Entgeltgirocard (Debitkarte)";"Finanzen & Versicherungen";"Bankgebühren";"Finanzen & Versicherungen / Bankgebühren";;;"027";"Entgelt";;;
29;DE16500105175407875231;04.12.2023;04.12.2023;-893,57;EUR;"VW-Bank";;;"11876525 Alz.Gg66 16 12 23";"Mobilität";"Auto & Motorrad";"Mobilität / Auto & Motorrad";;;"005";"Lastschrifteinzug";"KKFV1187652520231127016083018146005";"041600118765250001";"DE85BNK00000072741"
30;DE16500105175407875231;04.12.2023;04.12.2023;-68,00;EUR;"Cyriakus-Verein e.V.";;;"Kindergartenbeitrag 12.2023 fuer Gehringer Smilla";"Lebenshaltung";"Kinder";"Lebenshaltung / Kinder";;;"005";"Lastschrifteinzug";"K61212-2023";"Sausewind317";"DE74ZZZ00000733800"
31;DE16500105175407875231;04.12.2023;04.12.2023;-6,76;EUR;"PayPal Europe S.a.r.l. et Cie S.C.A";;;"1030975254711/. RTL interactive GmbH, Ihr Einkauf bei RTL interactiveGmbH";"Lebenshaltung";"Handy & Internet";"Lebenshaltung / Handy & Internet";;;"005";"Lastschrifteinzug";"1030975254711";"474J224N243DU";"LU96ZZZ0000000000000000058"
32;DE16500105175407875231;04.12.2023;04.12.2023;-17,25;EUR;"Dm Drogeriemarkt Sagt Danke";;;"DM FIL.1654 H.65440//MOEMBRIS/DE 2023.12.01T18.18.44 Folgenr.001 Verfalld.2026.12";"Lebenshaltung";"Körperpflege & Wellness";"Lebenshaltung / Körperpflege & Wellness";;;"005";"Lastschrifteinzug";"65440351527328011223181844";"181853";"DE32ZZZ00000500592"
33;DE16500105175407875231;04.12.2023;04.12.2023;-104,95;EUR;"Rv-Bank Aschaffenburg";;;"RV.Bank AB Luitpoldstrase//Aschaffenburg/DE 2023.12.02T16.44.50 Folgenr.000 Verfalld.2026.12 Entgelt 4,95EUR";"Finanzen & Versicherungen";"Geldautomat";"Finanzen & Versicherungen / Geldautomat";;;"005";"Lastschrifteinzug";"00001057005222021223164450";"164515";"DE48ZZZ00000055947"
34;DE16500105175407875231;01.12.2023;01.12.2023;-9,99;EUR;"Amazon Payments Europe S.C.A.";;;"302.4983208.2935522 AMZN Mktp DE 2L3MY10DMHZ1FJNW";"Lebenshaltung";"Shopping";"Lebenshaltung / Shopping";;;"005";"Lastschrifteinzug";"2L3MY10DMHZ1FJNW";"rOxHdfurPFKHn)Aq(.XhjI6?SxR+8m";"DE94ZZZ00000561653"
35;DE16500105175407875231;01.12.2023;01.12.2023;-7,90;EUR;"Nurnberger Krankenversicherung Aktiengesellschaft";;;"5134538 Nkv Krankenvers. R/ 01.12.2023 7,90";"Finanzen & Versicherungen";"Versicherungen";"Finanzen & Versicherungen / Versicherungen";;;"005";"Lastschrifteinzug";"2332818244030";"0210090000051345382018001";"DE14ZZZ00000057335"
36;DE16500105175407875231;01.12.2023;01.12.2023;-68,15;EUR;"VOLKSWOHL BUND Lebensversicherung a.G.";;;"008768131 La000528869/ 008768131 Risiko 68,15";"Finanzen & Versicherungen";"Versicherungen";"Finanzen & Versicherungen / Versicherungen";;;"005";"Lastschrifteinzug";"008768131/NVMA.G1056-257571";"LA000528869";"DE13ZZZ00000141064"
37;DE16500105175407875231;01.12.2023;01.12.2023;-57,41;EUR;"Allianz Lebensvers.";;;"Vertrag AL.0043152366 01.12.23 . 31.12.23 StartPolice";"Finanzen & Versicherungen";"Versicherungen";"Finanzen & Versicherungen / Versicherungen";;;"005";"Lastschrifteinzug";"AB223331-E03903272";"LA01L312001056217739";"DE07ZZZ00000063475"
38;DE16500105175407875231;01.12.2023;01.12.2023;-29,90;EUR;"Worldline Sweden AB fuer Shell";;;"SHELL 0201// Aschaffenburg /DE 2023.11.30T17.00.31 Folgenr.000 Verfalld.2026.12";"Mobilität";"Tank- & Ladestelle";"Mobilität / Tank- & Ladestelle";;;"005";"Lastschrifteinzug";"70011975257159301123170031";"170040";"SE917375565480026"
39;DE16500105175407875231;01.12.2023;01.12.2023;-29,99;EUR;"Amazon Payments Europe S.C.A.";;;"302.2847383.4343505 AMZN Mktp DE 1AXXSIMD2ODUYXYE";"Lebenshaltung";"Shopping";"Lebenshaltung / Shopping";;;"005";"Lastschrifteinzug";"1AXXSIMD2ODUYXYE";"rOxHdfurPFKHn)Aq(.XhjI6?SxR+8m";"DE94ZZZ00000561653"
40;DE16500105175407875231;01.12.2023;01.12.2023;-28,00;EUR;"Christina Stieber";;;"Tanzschule Alzenau Smilla KreativerKindertanz";"Freizeit & Unterhaltung";"Sport";"Freizeit & Unterhaltung / Sport";;;"005";"Lastschrifteinzug";;"3003";"DE84ZZZ00000624883"
41;DE16500105175407875231;01.12.2023;01.12.2023;-278,01;EUR;"VOLKSWOHL BUND Lebensversicherung a.G.";;;"009984035 La000528870/ 009984035 Rente 278,01";"Finanzen & Versicherungen";"Versicherungen";"Finanzen & Versicherungen / Versicherungen";;;"005";"Lastschrifteinzug";"009984035/NVMA.G1056-257572";"LA000528870";"DE13ZZZ00000141064"
42;DE16500105175407875231;01.12.2023;01.12.2023;-27,57;EUR;"Takko Holding Gmbh";;;"Elv61722736 29.11 15.09 Me0";"Lebenshaltung";"Shopping";"Lebenshaltung / Shopping";;;"005";"Lastschrifteinzug";"IC-15883489208";"6172273600192311291509";"DE11ZZZ00000009471"
43;DE16500105175407875231;01.12.2023;01.12.2023;-21,24;EUR;"Allianz Versicherungs-AG";;;"90/0542/2946744 Unfall Pr";"Finanzen & Versicherungen";"Versicherungen";"Finanzen & Versicherungen / Versicherungen";;;"005";"Lastschrifteinzug";"A1923328-01092023112490034208";"ADAGSFF0000000344810";"DE10ZZZ00000051878"
44;DE16500105175407875231;01.12.2023;01.12.2023;-166,97;EUR;"AXA Krankenversicherung AG";;;"Krankenvers. 4958423794 BTR. 12/23166,97. EUR";"Finanzen & Versicherungen";"Versicherungen";"Finanzen & Versicherungen / Versicherungen";;;"005";"Lastschrifteinzug";"760028203306/0003";"21053190502";"DE23G0100000066097"
45;DE16500105175407875231;01.12.2023;01.12.2023;-13,49;EUR;"Amazon Payments Europe S.C.A.";;;"302.4983208.2935522 AMZN Mktp DE 24K61QAGY2BG9YIO";"Lebenshaltung";"Shopping";"Lebenshaltung / Shopping";;;"005";"Lastschrifteinzug";"24K61QAGY2BG9YIO";"rOxHdfurPFKHn)Aq(.XhjI6?SxR+8m";"DE94ZZZ00000561653"
46;DE16500105175407875231;30.11.2023;30.11.2023;2.919,48;EUR;"LA BOTTEGA TOSCANA Jens Hofacker e.K.";;;"lfd. Gehalt LabottegaToscana";"Finanzen & Versicherungen";"Lohn & Gehalt";"Finanzen & Versicherungen / Lohn & Gehalt";;;"052";"Gutschrift aus Dauerauftrag";;;
47;DE16500105175407875231;30.11.2023;30.11.2023;-71,92;EUR;"Esso Station";;;"ESSO STATION//Moembris/DE 2023.11.29T14.47.42 Folgenr.001 Verfalld.2026.12";"Mobilität";"Tank- & Ladestelle";"Mobilität / Tank- & Ladestelle";;;"005";"Lastschrifteinzug";"78103932017462291123144742";"144749";"DE16E0100000020245"
48;DE16500105175407875231;30.11.2023;30.11.2023;-54,95;EUR;"Rv-Bank Aschaffenburg";;;"RV.Bank AB MOEMBRIS//MOEMBRIS/DE 2023.11.29T18.38.52 Folgenr.001 Verfalld.2026.12 Entgelt 4,95EUR";"Finanzen & Versicherungen";"Geldautomat";"Finanzen & Versicherungen / Geldautomat";;;"005";"Lastschrifteinzug";"00003271014515291123183852";"183904";"DE48ZZZ00000055947"
49;DE16500105175407875231;30.11.2023;30.11.2023;-320,31;EUR;"Gehringer";;;"Ing.Diba Ag 5324019888 30.11.2023";;;;;;"005";"Lastschrifteinzug";;;
50;DE16500105175407875231;30.11.2023;30.11.2023;-22,39;EUR;"Amazon Business Eu Sarl";;;"302.2708717.1749951 AMZNBusiness 9R210L3BIGZ4DZJZ";"Lebenshaltung";"Shopping";"Lebenshaltung / Shopping";;;"005";"Lastschrifteinzug";"9R210L3BIGZ4DZJZ";"rOxHdfurPFKHn)Aq(.XhjI6?SxR+8m";"DE93ZZZ00002502544"
51;DE16500105175407875231;30.11.2023;30.11.2023;-17,99;EUR;"Amazon Payments Europe S.C.A.";;;"302.4983208.2935522 AMZN Mktp DE 6RQB9H8Q1EXRAEJV";"Lebenshaltung";"Shopping";"Lebenshaltung / Shopping";;;"005";"Lastschrifteinzug";"6RQB9H8Q1EXRAEJV";"rOxHdfurPFKHn)Aq(.XhjI6?SxR+8m";"DE94ZZZ00000561653"
52;DE16500105175407875231;29.11.2023;29.11.2023;30,15;EUR;"AOK Hessen";;;"770003301696 400001168252 30,15. Kinderkrankengeld 10.07.2023.10 .07.2023 1314000121968287";"Finanzen & Versicherungen";"Versicherungen";"Finanzen & Versicherungen / Versicherungen";;;"051";"Gutschrift";"770003301696I608999620";;
53;DE16500105175407875231;29.11.2023;29.11.2023;-79,95;EUR;"Dm Drogeriemarkt Sagt Danke";;;"DM FIL.1654 H.65440//MOEMBRIS/DE 2023.11.28T14.28.50 Folgenr.000 Verfalld.2026.12";"Lebenshaltung";"Körperpflege & Wellness";"Lebenshaltung / Körperpflege & Wellness";;;"005";"Lastschrifteinzug";"65440351526257281123142850";"142907";"DE32ZZZ00000500592"
54;DE16500105175407875231;29.11.2023;29.11.2023;-49,25;EUR;"Aldi Sued Sagt Danke";;;"ALDI SE + CO. KG//ALZENAU/DE 2023.11.28T18.24.18 Folgenr.000 Verfalld.2026.12";"Lebenshaltung";"Lebensmittel";"Lebenshaltung / Lebensmittel";;;"005";"Lastschrifteinzug";"65447960010902281123182418";"182507";"DE50ZZZ00001717715"
55;DE16500105175407875231;29.11.2023;29.11.2023;-3,95;EUR;"SCHUFA Holding AG";;;"Kunde.7008178893,Bestellung.0017813168,Rechnung.501013313291";;;;;;"005";"Lastschrifteinzug";;"000005596370";"DE87ZZZ00000239351"
56;DE16500105175407875231;29.11.2023;29.11.2023;-14,99;EUR;"freenet ehemals mobilcom-debitel";;;"Kd.1203462521 Wir sagen Danke. RG.Nr.M23079697875 14,99 EUR";"Lebenshaltung";"Handy & Internet";"Lebenshaltung / Handy & Internet";;;"005";"Lastschrifteinzug";"1203462521/116473038465";"MC-1203462521-000001";"DE43ZZZ00000074855"
57;DE16500105175407875231;29.11.2023;29.11.2023;-137,77;EUR;"Esso Station";;;"ESSO STATION//Moembris/DE 2023.11.28T13.56.05 Folgenr.000 Verfalld.2026.12";"Mobilität";"Tank- & Ladestelle";"Mobilität / Tank- & Ladestelle";;;"005";"Lastschrifteinzug";"78103932017134281123135605";"135612";"DE16E0100000020245"
58;DE16500105175407875231;28.11.2023;28.11.2023;-0,99;EUR;"PayPal Europe S.a.r.l. et Cie S.C.A";;;"1030838974224/PP.5629.PP/. Apple Services, Ihr Einkauf bei Apple Services";"Lebenshaltung";"Shopping";"Lebenshaltung / Shopping";;;"005";"Lastschrifteinzug";"1030838974224";"474J224N243DU";"LU96ZZZ0000000000000000058"
59;DE16500105175407875231;28.11.2023;28.11.2023;-8,99;EUR;"Amazon Eu S.A R.L., Niederlassung Deutschland";;;"D01.9355706.8149417 AMZNPrime DE 6G7R7KYIA9XR524S";"Lebenshaltung";"Shopping";"Lebenshaltung / Shopping";;;"005";"Lastschrifteinzug";"6G7R7KYIA9XR524S";"rOxHdfurPFKHn)Aq(.XhjI6?SxR+8m";"DE24ZZZ00000561652"
60;DE16500105175407875231;28.11.2023;28.11.2023;-45,00;EUR;"Amazon Business Eu Sarl";;;"302.6664635.9323533 AMZNBusiness 3R6ZZNVOSCYJVQDD";"Lebenshaltung";"Shopping";"Lebenshaltung / Shopping";;;"005";"Lastschrifteinzug";"3R6ZZNVOSCYJVQDD";"rOxHdfurPFKHn)Aq(.XhjI6?SxR+8m";"DE93ZZZ00002502544"
61;DE16500105175407875231;28.11.2023;28.11.2023;-10,00;EUR;"Worldline Sweden AB fuer Shell";;;"SHELL 5481// Alzenau /DE 2023.11.27T07.43.36 Folgenr.000 Verfalld.2026.12";"Mobilität";"Tank- & Ladestelle";"Mobilität / Tank- & Ladestelle";;;"005";"Lastschrifteinzug";"70011026177439271123074336";"074342";"SE917375565480026"
62;DE16500105175407875231;28.11.2023;28.11.2023;-10,00;EUR;"PayPal Europe S.a.r.l. et Cie S.C.A";;;"1030886407368/PP.5629.PP/. IONOS SE, Ihr Einkauf bei IONOS SE";"Lebenshaltung";"Shopping";"Lebenshaltung / Shopping";;;"005";"Lastschrifteinzug";"1030886407368";"474J224N243DU";"LU96ZZZ0000000000000000058"
63;DE16500105175407875231;28.11.2023;28.11.2023;-103,11;EUR;"Netto Marken-Discoun";;;"NETTO MARKEN.DISCOU//MOEMBRIS/DE 2023.11.27T15.33.06 Folgenr.001 Verfalld.2026.12";"Lebenshaltung";"Lebensmittel";"Lebenshaltung / Lebensmittel";;;"005";"Lastschrifteinzug";"65375641140954271123153306";"153406";"DE61ZZZ00000018368"
64;DE16500105175407875231;27.11.2023;27.11.2023;-6,29;EUR;"Nexi Germany GmbH";;;"BACKHAUS BICKERT 63 GIR 79940849//KAHL/DE 2023.11.26T08.43.56 Folgenr.000 Verfalld.2026.12";"Lebenshaltung";"Lebensmittel";"Lebenshaltung / Lebensmittel";;;"005";"Lastschrifteinzug";"79940849033082261123084356";"084400";"DE82CC100000346626"
65;DE16500105175407875231;27.11.2023;27.11.2023;-10,00;EUR;"Worldline Sweden AB fuer Shell";;;"SHELL 0201// Aschaffenburg /DE 2023.11.25T12.25.05 Folgenr.000 Verfalld.2026.12";"Mobilität";"Tank- & Ladestelle";"Mobilität / Tank- & Ladestelle";;;"005";"Lastschrifteinzug";"70011976336977251123122505";"122510";"SE917375565480026"
66;DE16500105175407875231;24.11.2023;24.11.2023;-32,00;EUR;"Shampoo Haarmode Moembris";;;"SHAMPOO HAARMODE//MOEMBRIS/DE 2023.11.23T17.23.00 Folgenr.001 Verfalld.2026.12";"Lebenshaltung";"Shopping";"Lebenshaltung / Shopping";;;"005";"Lastschrifteinzug";"65285716014264231123172300";"172319";"DE35ZZZ00001891130"
67;DE16500105175407875231;24.11.2023;24.11.2023;-12,95;EUR;"Esso Station";;;"ESSO STATION//Moembris/DE 2023.11.23T16.57.37 Folgenr.000 Verfalld.2026.12";"Mobilität";"Tank- & Ladestelle";"Mobilität / Tank- & Ladestelle";;;"005";"Lastschrifteinzug";"78103932016093231123165737";"165746";"DE16E0100000020245"
68;DE16500105175407875231;23.11.2023;23.11.2023;-9,99;EUR;"PayPal Europe S.a.r.l. et Cie S.C.A";;;"1030781658113/PP.5629.PP/. Schuppkeund Niedermeier TV GbR . MFSFussballtraining.tv, Ihr Einkauf bei Schuppke und Niedermeier TV GbR . MFSFu";"Lebenshaltung";"Shopping";"Lebenshaltung / Shopping";;;"005";"Lastschrifteinzug";"1030781658113";"474J224N243DU";"LU96ZZZ0000000000000000058"
69;DE16500105175407875231;23.11.2023;23.11.2023;-8,99;EUR;"PayPal Europe S.a.r.l. et Cie S.C.A";;;"1030772441535/PP.5629.PP/. Microsoft Payments, Ihr Einkauf bei Microsoft Payments";"Freizeit & Unterhaltung";"Medien";"Freizeit & Unterhaltung / Medien";;;"005";"Lastschrifteinzug";"1030772441535";"474J224N243DU";"LU96ZZZ0000000000000000058"
70;DE16500105175407875231;22.11.2023;22.11.2023;-24,96;EUR;"Amazon Payments Europe S.C.A.";;;"302.3708732.7009966 AMZN Mktp DE CWIY0T8N1U4C7G3X";"Lebenshaltung";"Shopping";"Lebenshaltung / Shopping";;;"005";"Lastschrifteinzug";"CWIY0T8N1U4C7G3X";"rOxHdfurPFKHn)Aq(.XhjI6?SxR+8m";"DE94ZZZ00000561653"
71;DE16500105175407875231;22.11.2023;22.11.2023;-12,35;EUR;"Worldline Sweden AB fuer Shell";;;"SHELL 5481// Alzenau /DE 2023.11.21T07.46.36 Folgenr.000 Verfalld.2026.12";"Mobilität";"Tank- & Ladestelle";"Mobilität / Tank- & Ladestelle";;;"005";"Lastschrifteinzug";"70011027535996211123074636";"074641";"SE917375565480026"
72;DE16500105175407875231;22.11.2023;22.11.2023;-103,95;EUR;"Sparkasse Aschaffenburg-Alzenau";;;"ALZENAU.G//SPARKASSE ASCHAFFENBURG.ALZENAU/DE 2023.11.21T13.26.33 Folgenr.000 Verfalld.2026.12 Entgelt 3,95EUR";;;;;;"005";"Lastschrifteinzug";"00002006024765211123132633";"132645";"DE80GAA00000085247"
73;DE16500105175407875231;21.11.2023;21.11.2023;7,25;EUR;"St. Jakobusverein Schimborne.V.";;;"Netto v. 11.11.2023 f. Martinsmaenne r.Gebaeck";"Freizeit & Unterhaltung";"Vereine";"Freizeit & Unterhaltung / Vereine";;;"051";"Gutschrift";"CT-1-20.11.2023";;
74;DE16500105175407875231;21.11.2023;21.11.2023;-6,99;EUR;"PayPal Europe S.a.r.l. et Cie S.C.A";;;"1030698744875/PP.5629.PP/. Microsoft Payments, Ihr Einkauf bei Microsoft Payments";"Freizeit & Unterhaltung";"Medien";"Freizeit & Unterhaltung / Medien";;;"005";"Lastschrifteinzug";"1030698744875";"474J224N243DU";"LU96ZZZ0000000000000000058"
75;DE16500105175407875231;21.11.2023;21.11.2023;-19,99;EUR;"Amazon Payments Europe S.C.A.";;;"302.7388010.5975518 AMZN Mktp DE 1BEE6VJEKHAFRPBJ";"Lebenshaltung";"Shopping";"Lebenshaltung / Shopping";;;"005";"Lastschrifteinzug";"1BEE6VJEKHAFRPBJ";"rOxHdfurPFKHn)Aq(.XhjI6?SxR+8m";"DE94ZZZ00000561653"
76;DE16500105175407875231;20.11.2023;20.11.2023;14,55;EUR;"St. Jakobusverein Schimborne.V.";;;"Tedi v. 08.11.2023 f. Material Laternenfest (Sticker, Teelichter)";"Lebenshaltung";"Shopping";"Lebenshaltung / Shopping";;;"051";"Gutschrift";"CT-1-17.11.2023";;
77;DE16500105175407875231;20.11.2023;20.11.2023;-40,76;EUR;"REWE Kornelius Gol";;;"REWE SAGT DANKE. 44652171//Moembris/DE 2023.11.18T17.47.36 Folgenr.001Verfalld.2026.12";"Lebenshaltung";"Lebensmittel";"Lebenshaltung / Lebensmittel";;;"005";"Lastschrifteinzug";"56026221146232181123174736";"174759";"DE16RPA00000020245"
78;DE16500105175407875231;20.11.2023;20.11.2023;-38,66;EUR;"REWE Kornelius Gol";;;"REWE SAGT DANKE. 44652171//Moembris/DE 2023.11.17T17.24.58 Folgenr.001Verfalld.2026.12";"Lebenshaltung";"Lebensmittel";"Lebenshaltung / Lebensmittel";;;"005";"Lastschrifteinzug";"56026221146136171123172458";"172518";"DE16RPA00000020245"
79;DE16500105175407875231;20.11.2023;20.11.2023;-33,76;EUR;"REWE Kornelius Gol";;;"REWE SAGT DANKE. 44652171//Moembris/DE 2023.11.18T11.25.11 Folgenr.000Verfalld.2026.12";"Lebenshaltung";"Lebensmittel";"Lebenshaltung / Lebensmittel";;;"005";"Lastschrifteinzug";"56026221146165181123112511";"112526";"DE16RPA00000020245"
80;DE16500105175407875231;20.11.2023;20.11.2023;-10,00;EUR;"Worldline Sweden AB fuer Shell";;;"SHELL 5481// Alzenau /DE 2023.11.18T17.07.36 Folgenr.000 Verfalld.2026.12";"Mobilität";"Tank- & Ladestelle";"Mobilität / Tank- & Ladestelle";;;"005";"Lastschrifteinzug";"70011026176291181123170736";"170741";"SE917375565480026"
81;DE16500105175407875231;17.11.2023;17.11.2023;-36,99;EUR;"freenet ehemals mobilcom-debitel";;;"Kd.1115915714 Wir sagen Danke. RG.Nr.P23012885464 36,99 EUR";"Lebenshaltung";"Handy & Internet";"Lebenshaltung / Handy & Internet";;;"005";"Lastschrifteinzug";"1115915714/134711155866";"DL-1115915714-000001";"DE43ZZZ00000074855"
82;DE16500105175407875231;15.11.2023;15.11.2023;41,40;EUR;"Spessart-Gymnasium Alzenau";;;"RZ Burg Stahleck, Mads 5e";"Finanzen & Versicherungen";"Beruf & Gewerbe";"Finanzen & Versicherungen / Beruf & Gewerbe";;;"051";"Gutschrift";"FM231114104605-31";;
83;DE16500105175407875231;15.11.2023;15.11.2023;-55,08;EUR;"ARD ZDF DRadio Beitragsservice";;;"Rundfunk 10.2023 . 12.2023 Beitragsnr. 567341426 Aenderungen ganz bequem. www.rundfunkbeitrag.de";"Staat & Behörde";"Rundfunkbeitrag";"Staat & Behörde / Rundfunkbeitrag";;;"005";"Lastschrifteinzug";"5673414262023111600434678";"5673414261301";"DE3000100000001272"
84;DE16500105175407875231;15.11.2023;15.11.2023;-173,88;EUR;"Esso Station";;;"ESSO STATION//Moembris/DE 2023.11.14T19.35.18 Folgenr.000 Verfalld.2026.12";"Mobilität";"Tank- & Ladestelle";"Mobilität / Tank- & Ladestelle";;;"005";"Lastschrifteinzug";"78103932014344141123193518";"193603";"DE16E0100000020245"
85;DE16500105175407875231;14.11.2023;14.11.2023;-253,92;EUR;"Awg";;;"Elv61712685 11.11 17.35 Me0";;;;;;"005";"Lastschrifteinzug";"IC-15709600585";"6171268558572311111735";"DE11ZZZ00000009471"
86;DE16500105175407875231;14.11.2023;14.11.2023;-21,67;EUR;"Jet Dankt Fuer Ihren Kauf.";;;"121112230402012261200056570 Elv70142316 12.11 12.23 Me0";;;;;;"005";"Lastschrifteinzug";"12111223040201226120005657070142316";"7014231670742311121223";"DE16E0100000020245"
87;DE16500105175407875231;13.11.2023;13.11.2023;-64,48;EUR;"Netto Marken-Discoun";;;"NETTO MARKEN.DISCOU//MOEMBRIS/DE 2023.11.11T17.15.34 Folgenr.001 Verfalld.2026.12";"Lebenshaltung";"Lebensmittel";"Lebenshaltung / Lebensmittel";;;"005";"Lastschrifteinzug";"65375639604446111123171534";"171552";"DE61ZZZ00000018368"
88;DE16500105175407875231;13.11.2023;13.11.2023;-10,00;EUR;"Worldline Sweden AB fuer Shell";;;"SHELL 5481// Alzenau /DE 2023.11.10T18.55.47 Folgenr.000 Verfalld.2026.12";"Mobilität";"Tank- & Ladestelle";"Mobilität / Tank- & Ladestelle";;;"005";"Lastschrifteinzug";"70011026174719101123185547";"185553";"SE917375565480026"
89;DE16500105175407875231;13.11.2023;13.11.2023;-119,15;EUR;"Dm Drogeriemarkt Sagt Danke";;;"DM FIL.1654 H.65440//MOEMBRIS/DE 2023.11.11T15.46.57 Folgenr.000 Verfalld.2026.12";"Lebenshaltung";"Körperpflege & Wellness";"Lebenshaltung / Körperpflege & Wellness";;;"005";"Lastschrifteinzug";"65440351521950111123154657";"154718";"DE32ZZZ00000500592"
90;DE16500105175407875231;10.11.2023;10.11.2023;-93,61;EUR;"Dr. Hiba Sino";"DE77300606010307185453";"DAAEDEDDXXX";"147664+148253";;;;;;"020";"Überweisung";;;
91;DE16500105175407875231;10.11.2023;10.11.2023;-60,00;EUR;"IHK Aschaffenburg";"DE80795625140001021001";"GENODEF1AB1";"96039044010000454286";"Finanzen & Versicherungen";"Beruf & Gewerbe";"Finanzen & Versicherungen / Beruf & Gewerbe";;;"020";"Überweisung";;;
92;DE16500105175407875231;10.11.2023;10.11.2023;-5,99;EUR;"Amazon Digital Germany Gmbh";;;"D01.0024874.2690279 Prime Video Channels 2CV4RJJ2DIUNNU27";"Freizeit & Unterhaltung";"Streaming";"Freizeit & Unterhaltung / Streaming";;;"005";"Lastschrifteinzug";"2CV4RJJ2DIUNNU27";"rOxHdfurPFKHn)Aq(.XhjI6?SxR+8m";"DE96ZZZ00000594888"
93;DE16500105175407875231;10.11.2023;10.11.2023;-30,00;EUR;"AOK Hessen";"DE68501900000000141011";"FFVBDEFFXXX";"I60899962013140000018736471";;;;;;"020";"Überweisung";;;
94;DE16500105175407875231;10.11.2023;10.11.2023;-20,00;EUR;"Stadt Alzenau";"DE65795500000240000026";"BYLADEM1ASA";"28672.1";"Staat & Behörde";"Amts- & Verwaltungsgebühren";"Staat & Behörde / Amts- & Verwaltungsgebühren";;;"020";"Überweisung";;;
95;DE16500105175407875231;10.11.2023;10.11.2023;-184,80;EUR;"Autohaus Reuter";"DE25795625140005701368";"GENODEF1AB1";"110043195283400";"Mobilität";"Auto & Motorrad";"Mobilität / Auto & Motorrad";;;"020";"Überweisung";;;
96;DE16500105175407875231;09.11.2023;09.11.2023;-6,00;EUR;"PayPal Europe S.a.r.l. et Cie S.C.A";;;"1030492692169/PP.5629.PP/. HD PLUSGmbH, Ihr Einkauf bei HD PLUS GmbH";"Lebenshaltung";"Handy & Internet";"Lebenshaltung / Handy & Internet";;;"005";"Lastschrifteinzug";"1030492692169";"474J224N243DU";"LU96ZZZ0000000000000000058"
97;DE16500105175407875231;09.11.2023;09.11.2023;-10,00;EUR;"Worldline Sweden AB fuer Shell";;;"SHELL 0201// Aschaffenburg /DE 2023.11.08T16.06.35 Folgenr.000 Verfalld.2026.12";"Mobilität";"Tank- & Ladestelle";"Mobilität / Tank- & Ladestelle";;;"005";"Lastschrifteinzug";"70011976331325081123160635";"160639";"SE917375565480026"
98;DE16500105175407875231;09.11.2023;09.11.2023;-13,38;EUR;"tegut... gute Lebens";;;"TEGUT SAGT DANKE//Johannesberg/DE 2023.11.08T20.13.08 Folgenr.000 Verfalld.2026.12";"Lebenshaltung";"Lebensmittel";"Lebenshaltung / Lebensmittel";;;"005";"Lastschrifteinzug";"60376484033610081123201308";"201306";"DE50ZZZ00000379697"
99;DE16500105175407875231;07.11.2023;07.11.2023;-62,56;EUR;"Netto Marken-Discoun";;;"NETTO MARKEN.DISCOU//MOEMBRIS/DE 2023.11.06T18.28.08 Folgenr.001 Verfalld.2026.12";"Lebenshaltung";"Lebensmittel";"Lebenshaltung / Lebensmittel";;;"005";"Lastschrifteinzug";"65375639602801061123182808";"182821";"DE61ZZZ00000018368"
100;DE16500105175407875231;07.11.2023;07.11.2023;-137,62;EUR;"Worldline Sweden AB fuer Shell";;;"SHELL 0201// Aschaffenburg /DE 2023.11.06T16.28.09 Folgenr.000 Verfalld.2026.12";"Mobilität";"Tank- & Ladestelle";"Mobilität / Tank- & Ladestelle";;;"005";"Lastschrifteinzug";"70011976330528061123162809";"162817";"SE917375565480026"
101;DE16500105175407875231;07.11.2023;07.11.2023;-114,61;EUR;"Esso Station";;;"ESSO STATION//Moembris/DE 2023.11.06T18.40.17 Folgenr.001 Verfalld.2026.12";"Mobilität";"Tank- & Ladestelle";"Mobilität / Tank- & Ladestelle";;;"005";"Lastschrifteinzug";"78103932012424061123184017";"184041";"DE16E0100000020245"
102;DE16500105175407875231;06.11.2023;06.11.2023;750,00;EUR;"Bundesagentur fur Arbeit - Familienkasse";;;"Kg735715Fk276070 1123 052055222728/3000098731709";"Finanzen & Versicherungen";"Kindergeld & Unterhalt";"Finanzen & Versicherungen / Kindergeld & Unterhalt";;;"051";"Gutschrift";"052055222728";;
103;DE16500105175407875231;06.11.2023;06.11.2023;-893,57;EUR;"VW-Bank";;;"11876525 Alz.Gg66 15 11 23";"Mobilität";"Auto & Motorrad";"Mobilität / Auto & Motorrad";;;"005";"Lastschrifteinzug";"KKFV1187652520231027015031156114009";"041600118765250001";"DE85BNK00000072741"
104;DE16500105175407875231;06.11.2023;06.11.2023;-7,55;EUR;"Nexi Germany GmbH";;;"BACKHAUS BICKERT 57 GIR 79940845//MOMBRIS/DE 2023.11.04T19.25.23 Folgenr.001 Verfalld.2026.12";"Lebenshaltung";"Lebensmittel";"Lebenshaltung / Lebensmittel";;;"005";"Lastschrifteinzug";"79940845034431041123192523";"192539";"DE82CC100000346626"
105;DE16500105175407875231;06.11.2023;06.11.2023;-68,11;EUR;"Aldi Sued Sagt Danke";;;"ALDI SE + CO. KG//ALZENAU/DE 2023.11.03T17.15.59 Folgenr.001 Verfalld.2026.12";"Lebenshaltung";"Lebensmittel";"Lebenshaltung / Lebensmittel";;;"005";"Lastschrifteinzug";"65448853003189031123171559";"171638";"DE50ZZZ00001717715"
106;DE16500105175407875231;06.11.2023;06.11.2023;-30,30;EUR;"Saunagarten Mainparksee";;;"SAUNAGARTEN MAINPARKSEE//Mainaschaff/DE 2023.11.04T20.24.03 Folgenr.000 Verfalld.2026.12";"Lebenshaltung";"Körperpflege & Wellness";"Lebenshaltung / Körperpflege & Wellness";;;"005";"Lastschrifteinzug";"55621387122513041123202403";"202436";"DE09ZZZ00001761715"
107;DE16500105175407875231;06.11.2023;06.11.2023;-20,00;EUR;"Tankstelle Trageser.Alzenau";;;"TANKSTELLE TRAGESER.ALZENAU//Alzenau/DE 2023.11.03T19.45.18 Folgenr.000 Verfalld.2026.12";"Mobilität";"Tank- & Ladestelle";"Mobilität / Tank- & Ladestelle";;;"005";"Lastschrifteinzug";"72515033296029031123194518";"194615";"DE24ZZZ00000068989"
108;DE16500105175407875231;06.11.2023;06.11.2023;-27,23;EUR;"REWE Markt GmbH";;;"REWE SAGT DANKE. 44400844//Alzenau/DE 2023.11.03T16.31.24 Folgenr.001Verfalld.2026.12";"Lebenshaltung";"Lebensmittel";"Lebenshaltung / Lebensmittel";;;"005";"Lastschrifteinzug";"56026309152806031123163124";"163138";"DE58ZZZ00000257236"
109;DE16500105175407875231;06.11.2023;06.11.2023;-10,00;EUR;"Feingeist Gmbh";;;"FEINGEIST GMBH//Moembris/DE 2023.11.03T12.44.32 Folgenr.000 Verfalld.2026.12";;;;;;"005";"Lastschrifteinzug";"55722374031976031123124432";"124438";"DE38ZZZ00002334075"
110;DE16500105175407875231;06.11.2023;06.11.2023;-19,90;EUR;"Esso Station";;;"ESSO STATION//Moembris/DE 2023.11.04T19.32.44 Folgenr.001 Verfalld.2026.12";"Mobilität";"Tank- & Ladestelle";"Mobilität / Tank- & Ladestelle";;;"005";"Lastschrifteinzug";"78103932012039041123193244";"193315";"DE16E0100000020245"
111;DE16500105175407875231;06.11.2023;06.11.2023;-18,10;EUR;"Dm Drogeriemarkt Sagt Danke";;;"DM FIL.2217 H.65225//ALZENAU/DE 2023.11.03T16.45.03 Folgenr.001 Verfalld.2026.12";"Lebenshaltung";"Körperpflege & Wellness";"Lebenshaltung / Körperpflege & Wellness";;;"005";"Lastschrifteinzug";"65225512562559031123164503";"164534";"DE32ZZZ00000500592"
112;DE16500105175407875231;03.11.2023;03.11.2023;-71,52;EUR;"Lidl Sagt Danke";;;"LIDL SAGT DANKE//Alzenau/DE 2023.11.02T15.24.11 Folgenr.000 Verfalld.2026.12";"Lebenshaltung";"Lebensmittel";"Lebenshaltung / Lebensmittel";;;"005";"Lastschrifteinzug";"6015875408708602112315241102805926";"152516";"DE73DAB00000052684"
113;DE16500105175407875231;03.11.2023;03.11.2023;-13,48;EUR;"Edeka Azevedo";;;"EDEKA AZEVEDO//KAHL A. MAIN/DE 2023.11.02T08.07.17 Folgenr.000 Verfalld.2026.12";"Lebenshaltung";"Lebensmittel";"Lebenshaltung / Lebensmittel";;;"005";"Lastschrifteinzug";"54523115133958021123080717";"080725";"DE16ZZZ00002530702"
114;DE16500105175407875231;02.11.2023;02.11.2023;-0,99;EUR;"Ing";;;"Girocard 260006800102Monatliches Entgeltgirocard (Debitkarte)";"Finanzen & Versicherungen";"Bankgebühren";"Finanzen & Versicherungen / Bankgebühren";;;"027";"Entgelt";;;
115;DE16500105175407875231;02.11.2023;02.11.2023;-0,99;EUR;"Ing";;;"Girocard 260006683584Monatliches Entgeltgirocard (Debitkarte)";"Finanzen & Versicherungen";"Bankgebühren";"Finanzen & Versicherungen / Bankgebühren";;;"027";"Entgelt";;;
116;DE16500105175407875231;02.11.2023;02.11.2023;-7,90;EUR;"Nurnberger Krankenversicherung Aktiengesellschaft";;;"5134538 Nkv Krankenvers. / 01.11.2023 7,90";"Finanzen & Versicherungen";"Versicherungen";"Finanzen & Versicherungen / Versicherungen";;;"005";"Lastschrifteinzug";"2329718163002";"0210090000051345382018001";"DE14ZZZ00000057335"
117;DE16500105175407875231;02.11.2023;02.11.2023;-68,00;EUR;"Cyriakus-Verein e.V.";;;"Kindergartenbeitrag 11.2023 fuer Gehringer Smilla";"Lebenshaltung";"Kinder";"Lebenshaltung / Kinder";;;"005";"Lastschrifteinzug";"K61211-2023";"Sausewind317";"DE74ZZZ00000733800"
118;DE16500105175407875231;02.11.2023;02.11.2023;-68,15;EUR;"VOLKSWOHL BUND Lebensversicherung a.G.";;;"008768131 La000528869/ 008768131 Risiko 68,15";"Finanzen & Versicherungen";"Versicherungen";"Finanzen & Versicherungen / Versicherungen";;;"005";"Lastschrifteinzug";"008768131/NVMA.G1052-252649";"LA000528869";"DE13ZZZ00000141064"
119;DE16500105175407875231;02.11.2023;02.11.2023;-28,00;EUR;"Christina Stieber";;;"Tanzschule Alzenau Smilla KreativerKindertanz";"Freizeit & Unterhaltung";"Sport";"Freizeit & Unterhaltung / Sport";;;"005";"Lastschrifteinzug";;"3003";"DE84ZZZ00000624883"
120;DE16500105175407875231;02.11.2023;02.11.2023;-278,01;EUR;"VOLKSWOHL BUND Lebensversicherung a.G.";;;"009984035 La000528870/ 009984035 Rente 278,01";"Finanzen & Versicherungen";"Versicherungen";"Finanzen & Versicherungen / Versicherungen";;;"005";"Lastschrifteinzug";"009984035/NVMA.G1052-252650";"LA000528870";"DE13ZZZ00000141064"
121;DE16500105175407875231;02.11.2023;02.11.2023;-166,97;EUR;"AXA Krankenversicherung AG";;;"Krankenvers. 4958423794 BTR. 11/23166,97. EUR";"Finanzen & Versicherungen";"Versicherungen";"Finanzen & Versicherungen / Versicherungen";;;"005";"Lastschrifteinzug";"570028930352/0003";"21053190502";"DE23G0100000066097"
122;DE16500105175407875231;02.11.2023;02.11.2023;-15,00;EUR;"REWE Antoni Mirakai oHG";;;"REWE SAGT DANKE. 44652485//Lauterbach/DE 2023.11.01T16.06.06 Folgenr.001 Verfalld.2026.12";"Lebenshaltung";"Lebensmittel";"Lebenshaltung / Lebensmittel";;;"005";"Lastschrifteinzug";"56051929000994011123160606";"160700";"DE16RPA00000020245"
123;DE16500105175407875231;02.11.2023;02.11.2023;-10,60;EUR;"Deutsche Tamoil GmbH";;;"HEM Tankstelle//Gelnhausen/DE 2023.11.01T12.49.04 Folgenr.001 Verfalld.2026.12";"Mobilität";"Tank- & Ladestelle";"Mobilität / Tank- & Ladestelle";;;"005";"Lastschrifteinzug";"74005356099620011123124904";"110322";"DE09WEA00000635060"
124;DE16500105175407875231;01.11.2023;01.11.2023;-57,41;EUR;"Allianz Lebensvers.";;;"Vertrag AL.0043152366 01.11.23 . 30.11.23 StartPolice";"Finanzen & Versicherungen";"Versicherungen";"Finanzen & Versicherungen / Versicherungen";;;"005";"Lastschrifteinzug";"AB223299-E03371204";"LA01L312001056217739";"DE07ZZZ00000063475"
125;DE16500105175407875231;01.11.2023;01.11.2023;-21,24;EUR;"Allianz Versicherungs-AG";;;"90/0542/2946744 Unfall Pr";"Finanzen & Versicherungen";"Versicherungen";"Finanzen & Versicherungen / Versicherungen";;;"005";"Lastschrifteinzug";"A1923298-01092023102590036127";"ADAGSFF0000000344810";"DE10ZZZ00000051878"
126;DE16500105175407875231;01.11.2023;01.11.2023;-160,58;EUR;"Esso Station";;;"ESSO STATION//Moembris/DE 2023.10.31T18.38.32 Folgenr.000 Verfalld.2026.12";"Mobilität";"Tank- & Ladestelle";"Mobilität / Tank- & Ladestelle";;;"005";"Lastschrifteinzug";"78103932011165311023183832";"183919";"DE16E0100000020245"
127;DE16500105175407875231;31.10.2023;31.10.2023;17,84;EUR;"Amazon Payments Europe S.C.A.";;;"302.5018522.2431512 AMZN Mktp DE 7EIYCK1XJA1J0E1H";"Lebenshaltung";"Shopping";"Lebenshaltung / Shopping";;;"051";"Gutschrift";"7EIYCK1XJA1J0E1H";;
128;DE16500105175407875231;31.10.2023;31.10.2023;12,55;EUR;"Amazon Payments Europe S.C.A.";;;"302.5018522.2431512 AMZN Mktp DE 4HFTP04OMJV99HW3";"Lebenshaltung";"Shopping";"Lebenshaltung / Shopping";;;"051";"Gutschrift";"4HFTP04OMJV99HW3";;
129;DE16500105175407875231;31.10.2023;31.10.2023;-82,39;EUR;"Esso Station";;;"ESSO STATION//Moembris/DE 2023.10.30T11.34.03 Folgenr.001 Verfalld.2026.12";"Mobilität";"Tank- & Ladestelle";"Mobilität / Tank- & Ladestelle";;;"005";"Lastschrifteinzug";"78103932010840301023113403";"113444";"DE16E0100000020245"
130;DE16500105175407875231;30.10.2023;30.10.2023;2.919,48;EUR;"LA BOTTEGA TOSCANA Jens Hofacker e.K.";;;"lfd. Gehalt LabottegaToscana";"Finanzen & Versicherungen";"Lohn & Gehalt";"Finanzen & Versicherungen / Lohn & Gehalt";;;"052";"Gutschrift aus Dauerauftrag";;;
131;DE16500105175407875231;30.10.2023;30.10.2023;-8,99;EUR;"Amazon Eu S.A R.L., Niederlassung Deutschland";;;"D01.4964380.2043827 AMZNPrime DE 2T9YPDU0AXA8UC2S";"Lebenshaltung";"Shopping";"Lebenshaltung / Shopping";;;"005";"Lastschrifteinzug";"2T9YPDU0AXA8UC2S";"rOxHdfurPFKHn)Aq(.XhjI6?SxR+8m";"DE24ZZZ00000561652"
132;DE16500105175407875231;30.10.2023;30.10.2023;-6,99;EUR;"PayPal Europe S.a.r.l. et Cie S.C.A";;;"1030234070489/. RTL interactive GmbH, Ihr Einkauf bei RTL interactiveGmbH";"Lebenshaltung";"Handy & Internet";"Lebenshaltung / Handy & Internet";;;"005";"Lastschrifteinzug";"1030234070489";"474J224N243DU";"LU96ZZZ0000000000000000058"
133;DE16500105175407875231;30.10.2023;30.10.2023;-57,00;EUR;"Saunagarten Mainparksee";;;"SAUNAGARTEN MAINPARKSEE//Mainaschaff/DE 2023.10.27T17.58.40 Folgenr.000 Verfalld.2026.12";"Lebenshaltung";"Körperpflege & Wellness";"Lebenshaltung / Körperpflege & Wellness";;;"005";"Lastschrifteinzug";"55621387121406271023175840";"175857";"DE09ZZZ00001761715"
134;DE16500105175407875231;30.10.2023;30.10.2023;-35,83;EUR;"Amazon Payments Europe S.C.A.";;;"302.5018522.2431512 AMZN Mktp DE 6N3YRRM0SP8715LB";"Lebenshaltung";"Shopping";"Lebenshaltung / Shopping";;;"005";"Lastschrifteinzug";"6N3YRRM0SP8715LB";"rOxHdfurPFKHn)Aq(.XhjI6?SxR+8m";"DE94ZZZ00000561653"
135;DE16500105175407875231;30.10.2023;30.10.2023;-320,31;EUR;"Gehringer";;;"Ing.Diba Ag 5324019888 30.10.2023";;;;;;"005";"Lastschrifteinzug";;;
136;DE16500105175407875231;30.10.2023;30.10.2023;-29,99;EUR;"toom BM Alzenau";;;"TOOM BM SAGT DANKE 13563651//Alzenau/DE 2023.10.27T15.43.35 Folgenr.000 Verfalld.2026.12";"Lebenshaltung";"Baumarkt & Gartencenter";"Lebenshaltung / Baumarkt & Gartencenter";;;"005";"Lastschrifteinzug";"56013478568743271023154335";"154405";"DE86ZZZ00000257217"
137;DE16500105175407875231;30.10.2023;30.10.2023;-10,00;EUR;"PayPal Europe S.a.r.l. et Cie S.C.A";;;"1030238887404/PP.5629.PP/. IONOS SE, Ihr Einkauf bei IONOS SE";"Lebenshaltung";"Shopping";"Lebenshaltung / Shopping";;;"005";"Lastschrifteinzug";"1030238887404";"474J224N243DU";"LU96ZZZ0000000000000000058"
138;DE16500105175407875231;30.10.2023;30.10.2023;-17,80;EUR;"Worldline Sweden AB fuer Shell";;;"SHELL 5481// Alzenau /DE 2023.10.28T07.50.38 Folgenr.000 Verfalld.2026.12";"Mobilität";"Tank- & Ladestelle";"Mobilität / Tank- & Ladestelle";;;"005";"Lastschrifteinzug";"70011027526839281023075038";"075037";"SE917375565480026"
139;DE16500105175407875231;30.10.2023;30.10.2023;-160,85;EUR;"Huebner/Schuhpalast";;;"Elv61499061 26.10 17.52 Me0 Rohrmeier Sport Aschaffenbu";;;;;;"005";"Lastschrifteinzug";"IC-15450915861";"6149906123462310261752";"DE11ZZZ00000009471"
140;DE16500105175407875231;30.10.2023;30.10.2023;-14,94;EUR;"REWE Markt GmbH";;;"REWE SAGT DANKE. 45400229//Eppelheim/DE 2023.10.28T12.09.28 Folgenr.000 Verfalld.2026.12";"Lebenshaltung";"Lebensmittel";"Lebenshaltung / Lebensmittel";;;"005";"Lastschrifteinzug";"56005600464488281023120928";"120746";"DE58ZZZ00000257236"
141;DE16500105175407875231;30.10.2023;30.10.2023;-12,98;EUR;"Amazon Payments Europe S.C.A.";;;"302.5018522.2431512 AMZN Mktp DE 20WBT7I6OO9RYFQH";"Lebenshaltung";"Shopping";"Lebenshaltung / Shopping";;;"005";"Lastschrifteinzug";"20WBT7I6OO9RYFQH";"rOxHdfurPFKHn)Aq(.XhjI6?SxR+8m";"DE94ZZZ00000561653"
142;DE16500105175407875231;30.10.2023;30.10.2023;-114,21;EUR;"Netto Marken-Discoun";;;"NETTO MARKEN.DISCOU//MOEMBRIS/DE 2023.10.28T10.12.31 Folgenr.001 Verfalld.2026.12";"Lebenshaltung";"Lebensmittel";"Lebenshaltung / Lebensmittel";;;"005";"Lastschrifteinzug";"65375639600123281023101231";"101302";"DE61ZZZ00000018368"
143;DE16500105175407875231;30.10.2023;30.10.2023;-10,49;EUR;"00253 Mcdonalds";;;"00253 MCDONALDS//HEIDELBERG/DE 2023.10.28T14.54.28 Folgenr.000 Verfalld.2026.12";"Lebenshaltung";"Gastronomie";"Lebenshaltung / Gastronomie";;;"005";"Lastschrifteinzug";"54275460158343281023145428";"145454";"DE91SCL00000000756"
144;DE16500105175407875231;27.10.2023;27.10.2023;7,01;EUR;"St. Jakobusverein Schimborne.V.";;;"Netto v. 11.10.2023 f. KuchenbackenBaergengruppe";"Freizeit & Unterhaltung";"Vereine";"Freizeit & Unterhaltung / Vereine";;;"051";"Gutschrift";"CT-1-27.10.2023";;
145;DE16500105175407875231;27.10.2023;27.10.2023;-204,95;EUR;"Rv-Bank Aschaffenburg";;;"RV.Bank AB MOEMBRIS//MOEMBRIS/DE 2023.10.26T16.44.46 Folgenr.000 Verfalld.2026.12 Entgelt 4,95EUR";"Finanzen & Versicherungen";"Geldautomat";"Finanzen & Versicherungen / Geldautomat";;;"005";"Lastschrifteinzug";"00003271008601261023164446";"164502";"DE48ZZZ00000055947"
146;DE16500105175407875231;27.10.2023;27.10.2023;-15,99;EUR;"freenet ehemals mobilcom-debitel";;;"Kd.1203462521 Wir sagen Danke. RG.Nr.M23072234474 15,99 EUR";"Lebenshaltung";"Handy & Internet";"Lebenshaltung / Handy & Internet";;;"005";"Lastschrifteinzug";"1203462521/113542395461";"MC-1203462521-000001";"DE43ZZZ00000074855"
147;DE16500105175407875231;27.10.2023;27.10.2023;-12,55;EUR;"Amazon Payments Europe S.C.A.";;;"302.5018522.2431512 AMZN Mktp DE 5TZGHJYSY0LD0TXD";"Lebenshaltung";"Shopping";"Lebenshaltung / Shopping";;;"005";"Lastschrifteinzug";"5TZGHJYSY0LD0TXD";"rOxHdfurPFKHn)Aq(.XhjI6?SxR+8m";"DE94ZZZ00000561653"
148;DE16500105175407875231;27.10.2023;27.10.2023;-11,36;EUR;"Amazon Payments Europe S.C.A.";;;"302.6214464.1371545 AMZN Mktp DE HJ8OMM9CS5RDARVW";"Lebenshaltung";"Shopping";"Lebenshaltung / Shopping";;;"005";"Lastschrifteinzug";"HJ8OMM9CS5RDARVW";"rOxHdfurPFKHn)Aq(.XhjI6?SxR+8m";"DE94ZZZ00000561653"
149;DE16500105175407875231;26.10.2023;26.10.2023;34,08;EUR;"Landkreis Aschaffenburg";;;"Re 22Sga212 V. 01.08.23 Zuschuss Mads Gehringer Vom 01.08.23";;;;;;"051";"Gutschrift";;;
150;DE16500105175407875231;26.10.2023;26.10.2023;-0,99;EUR;"PayPal Europe S.a.r.l. et Cie S.C.A";;;"1030194763971 PP.5629.PP . Apple Services, Ihr Einkauf bei Apple Services";"Lebenshaltung";"Shopping";"Lebenshaltung / Shopping";;;"005";"Lastschrifteinzug";"1030194763971";"474J224N243DU";"LU96ZZZ0000000000000000058"
151;DE16500105175407875231;26.10.2023;26.10.2023;-3,95;EUR;"SCHUFA Holding AG";;;"Kunde.7008178893,Bestellung.0017813168,Rechnung.501013313291";;;;;;"005";"Lastschrifteinzug";;"000005596370";"DE87ZZZ00000239351"
152;DE16500105175407875231;26.10.2023;26.10.2023;-222,95;EUR;"Volkswagen Autovers. AG";;;"VWAV / VSNR VM1038617673 / ALZ.GG 66 / Abrechnung vom 21.10.2023 bis 20.01.2024";"Mobilität";"Auto & Motorrad";"Mobilität / Auto & Motorrad";;;"005";"Lastschrifteinzug";"AB423294-000496SZ052023000000005973";"SZ050000000000000000000000000973740";"DE03ZZZ00000662134"
153;DE16500105175407875231;25.10.2023;25.10.2023;-90,70;EUR;"Netto Marken-Discoun";;;"NETTO MARKEN.DISCOU//MOEMBRIS/DE 2023.10.24T13.31.36 Folgenr.001 Verfalld.2026.12";"Lebenshaltung";"Lebensmittel";"Lebenshaltung / Lebensmittel";;;"005";"Lastschrifteinzug";"65375639599062241023133136";"133155";"DE61ZZZ00000018368"
154;DE16500105175407875231;25.10.2023;25.10.2023;-62,05;EUR;"Worldline Sweden AB fuer Shell";;;"SHELL 0201// Aschaffenburg /DE 2023.10.24T16.21.50 Folgenr.000 Verfalld.2026.12";"Mobilität";"Tank- & Ladestelle";"Mobilität / Tank- & Ladestelle";;;"005";"Lastschrifteinzug";"70011976326080241023162150";"162158";"SE917375565480026"
155;DE16500105175407875231;25.10.2023;25.10.2023;-35,00;EUR;"Ambiente Alzenau";;;"Ambiente//Alzenau/DE 2023.10.24T14.36.21 Folgenr.000 Verfalld.2026.12";;;;;;"005";"Lastschrifteinzug";"61405451215269241023143621";"143646";"DE11ZZZ00000009471"
156;DE16500105175407875231;23.10.2023;23.10.2023;2.218,14;EUR;"Feingeist GmbH";;;"Teil.Auszahlung Sondergewinn 2021";;;;;;"051";"Gutschrift";;;
157;DE16500105175407875231;23.10.2023;23.10.2023;-9,00;EUR;"Aral Ag";;;"ARAL Fl.rsheim Hofheimer Stra.e 24//Fl.rsheim/DE 2023.10.22T10.26.20 Folgenr.000 Verfalld.2026.12";"Mobilität";"Tank- & Ladestelle";"Mobilität / Tank- & Ladestelle";;;"005";"Lastschrifteinzug";"71114478332893221023102620";"102630";"DE79ZZZ00000465117"
158;DE16500105175407875231;23.10.2023;23.10.2023;-10,00;EUR;"Esso Station";;;"ESSO STATION//Moembris/DE 2023.10.21T15.32.53 Folgenr.000 Verfalld.2026.12";"Mobilität";"Tank- & Ladestelle";"Mobilität / Tank- & Ladestelle";;;"005";"Lastschrifteinzug";"78103932008738211023153253";"153338";"DE16E0100000020245"
159;DE16500105175407875231;23.10.2023;23.10.2023;-104,50;EUR;"Frankfurter Voba Rhein-Main";;;"CRS Weilbach//Florsheim/DE 2023.10.22T10.28.53 Folgenr.000 Verfalld.2026.12 Entgelt 4,50EUR";;;;;;"005";"Lastschrifteinzug";"00001610003774221023102853";"102905";"DE16ZZZ00000003270"
160;DE16500105175407875231;20.10.2023;20.10.2023;-21,60;EUR;"Mattia Carone";;;"Osteria Avanti da Mattia//Aschaffenburg/DE 2023.10.19T19.36.18 Folgenr.000 Verfalld.2026.12";"Lebenshaltung";"Gastronomie";"Lebenshaltung / Gastronomie";;;"005";"Lastschrifteinzug";"69609122002882191023193618";"193623";"DE70ZZZ00000221324"
161;DE16500105175407875231;19.10.2023;19.10.2023;-89,99;EUR;"Steffen Leister";;;"Intersport Leister//Aschaffenburg/DE 2023.10.18T18.08.13 Folgenr.001 Verfalld.2026.12";"Freizeit & Unterhaltung";"Sport";"Freizeit & Unterhaltung / Sport";;;"005";"Lastschrifteinzug";"69712686022091181023180813";"180829";"DE79ZZZ00001521738"
162;DE16500105175407875231;19.10.2023;19.10.2023;-6,99;EUR;"PayPal (Europe) S.a r.l. etCie, S.C.A.";;;"1030067659014 PP.5629.PP . Microsoft Payments, Ihr Einkauf bei Microsoft Payments";"Freizeit & Unterhaltung";"Medien";"Freizeit & Unterhaltung / Medien";;;"005";"Lastschrifteinzug";"1030067659014PP.5629.PP PAYPAL";"474J224N243DU";"LU96ZZZ0000000000000000058"
163;DE16500105175407875231;19.10.2023;19.10.2023;-47,98;EUR;"Deichmann Schuhe";;;"DEICHMANN . Schuhe//Aschaffenburg/DE 2023.10.18T18.29.49 Folgenr.001 Verfalld.2026.12";"Lebenshaltung";"Shopping";"Lebenshaltung / Shopping";;;"005";"Lastschrifteinzug";"61473120143493181023182949";"183003";"DE77DSD00001600732"
164;DE16500105175407875231;19.10.2023;19.10.2023;-3,00;EUR;"Saba Park Deutschlan";;;"PARKHAUS//Aschaffenburg/DE 2023.10.18T18.44.10 Folgenr.001 Verfalld.2026.12";"Mobilität";"Verkehrsmittel";"Mobilität / Verkehrsmittel";;;"005";"Lastschrifteinzug";"55509109070600181023184410";"184441";"DE06MBK00000451299"
165;DE16500105175407875231;19.10.2023;19.10.2023;-36,99;EUR;"freenet ehemals mobilcom-debitel";;;"Kd.1115915714 Wir sagen Danke. RG.Nr.P23011686785 36,99 EUR";"Lebenshaltung";"Handy & Internet";"Lebenshaltung / Handy & Internet";;;"005";"Lastschrifteinzug";"1115915714/926926308848";"DL-1115915714-000001";"DE43ZZZ00000074855"
166;DE16500105175407875231;19.10.2023;19.10.2023;-16,67;EUR;"Edeka Geka Moembris";;;"EDEKA GEKA MOEMBRIS//MOEMBRIS/DE 2023.10.18T18.36.10 Folgenr.000 Verfalld.2026.12";"Lebenshaltung";"Lebensmittel";"Lebenshaltung / Lebensmittel";;;"005";"Lastschrifteinzug";"54272942929444181023183610";"183626";"DE63ZZZ00001092898"
167;DE16500105175407875231;19.10.2023;19.10.2023;-162,41;EUR;"Esso Station";;;"ESSO STATION//Moembris/DE 2023.10.18T18.29.19 Folgenr.000 Verfalld.2026.12";"Mobilität";"Tank- & Ladestelle";"Mobilität / Tank- & Ladestelle";;;"005";"Lastschrifteinzug";"78103932008055181023182919";"182951";"DE16E0100000020245"
168;DE16500105175407875231;18.10.2023;18.10.2023;24,75;EUR;"St. Jakobusverein Schimborne.V.";;;"DM v. 10.10.23 f. Herbstdeko u. Geschenek Elternbeirat";"Freizeit & Unterhaltung";"Vereine";"Freizeit & Unterhaltung / Vereine";;;"051";"Gutschrift";"CT-1-17.10.2023";;
169;DE16500105175407875231;18.10.2023;18.10.2023;-25,47;EUR;"Aral Ag";;;"ARAL M.mbris Kahlgrundstra.e 137//M.mbris/DE 2023.10.17T19.47.09 Folgenr.000 Verfalld.2026.12";"Mobilität";"Tank- & Ladestelle";"Mobilität / Tank- & Ladestelle";;;"005";"Lastschrifteinzug";"71114643146523171023194709";"194715";"DE79ZZZ00000465117"
170;DE16500105175407875231;17.10.2023;17.10.2023;-6,00;EUR;"PayPal Europe S.a.r.l. et Cie S.C.A";;;"1030009547162 PP.5629.PP . HD PLUSGmbH, Ihr Einkauf bei HD PLUS GmbH";"Lebenshaltung";"Handy & Internet";"Lebenshaltung / Handy & Internet";;;"005";"Lastschrifteinzug";"1030009547162";"474J224N243DU";"LU96ZZZ0000000000000000058"
171;DE16500105175407875231;16.10.2023;16.10.2023;-75,03;EUR;"Netto Marken-Discoun";;;"NETTO MARKEN.DISCOU//MOEMBRIS/DE 2023.10.13T19.16.56 Folgenr.000 Verfalld.2026.12";"Lebenshaltung";"Lebensmittel";"Lebenshaltung / Lebensmittel";;;"005";"Lastschrifteinzug";"65375641137414131023191656";"191803";"DE61ZZZ00000018368"
172;DE16500105175407875231;16.10.2023;16.10.2023;-34,25;EUR;"Nexi Germany GmbH";;;"BACKHAUS BICKERT 64 GIR 79940850//GOLDBACH/DE 2023.10.14T11.24.03 Folgenr.000 Verfalld.2026.12";"Lebenshaltung";"Lebensmittel";"Lebenshaltung / Lebensmittel";;;"005";"Lastschrifteinzug";"79940850028622141023112403";"112408";"DE82CC100000346626"
173;DE16500105175407875231;16.10.2023;16.10.2023;-34,09;EUR;"REWE Marcus Morrone oHG";;;"REWE SAGT DANKE. 44652226//Goldbach/DE 2023.10.14T11.34.35 Folgenr.000Verfalld.2026.12";"Lebenshaltung";"Lebensmittel";"Lebenshaltung / Lebensmittel";;;"005";"Lastschrifteinzug";"56038978449239141023113435";"113457";"DE16RPA00000020245"
174;DE16500105175407875231;16.10.2023;16.10.2023;-32,01;EUR;"Netto Marken-Discoun";;;"NETTO MARKEN.DISCOU//MOEMBRIS/DE 2023.10.14T17.02.06 Folgenr.000 Verfalld.2026.12";"Lebenshaltung";"Lebensmittel";"Lebenshaltung / Lebensmittel";;;"005";"Lastschrifteinzug";"65375640182826141023170206";"170309";"DE61ZZZ00000018368"
175;DE16500105175407875231;16.10.2023;16.10.2023;-11,95;EUR;"Esso Station";;;"ESSO STATION//Moembris/DE 2023.10.13T13.49.13 Folgenr.000 Verfalld.2026.12";"Mobilität";"Tank- & Ladestelle";"Mobilität / Tank- & Ladestelle";;;"005";"Lastschrifteinzug";"78103932006948131023134913";"134956";"DE16E0100000020245"
176;DE16500105175407875231;16.10.2023;16.10.2023;-104,95;EUR;"Rv-Bank Aschaffenburg";;;"RV.Bank AB MOEMBRIS//MOEMBRIS/DE 2023.10.14T11.34.31 Folgenr.001 Verfalld.2026.12 Entgelt 4,95EUR";"Finanzen & Versicherungen";"Geldautomat";"Finanzen & Versicherungen / Geldautomat";;;"005";"Lastschrifteinzug";"00003271006422141023113431";"113441";"DE48ZZZ00000055947"
177;DE16500105175407875231;13.10.2023;13.10.2023;-68,03;EUR;"Edeka Geka Alzenau";;;"EDEKA GEKA ALZENAU//ALZENAU/DE 2023.10.12T15.03.33 Folgenr.001 Verfalld.2026.12";"Lebenshaltung";"Lebensmittel";"Lebenshaltung / Lebensmittel";;;"005";"Lastschrifteinzug";"54282312750948121023150333";"150345";"DE63ZZZ00001092898"
178;DE16500105175407875231;13.10.2023;13.10.2023;-10,00;EUR;"Esso Station";;;"ESSO STATION//Moembris/DE 2023.10.12T07.17.38 Folgenr.000 Verfalld.2026.12";"Mobilität";"Tank- & Ladestelle";"Mobilität / Tank- & Ladestelle";;;"005";"Lastschrifteinzug";"78103932006613121023071738";"071826";"DE16E0100000020245"
179;DE16500105175407875231;12.10.2023;12.10.2023;-59,70;EUR;"Netto Marken-Discoun";;;"NETTO MARKEN.DISCOU//MOEMBRIS/DE 2023.10.11T13.04.22 Folgenr.000 Verfalld.2026.12";"Lebenshaltung";"Lebensmittel";"Lebenshaltung / Lebensmittel";;;"005";"Lastschrifteinzug";"65375639595159111023130422";"130436";"DE61ZZZ00000018368"
180;DE16500105175407875231;12.10.2023;12.10.2023;-38,35;EUR;"Netto Marken-Discoun";;;"NETTO MARKEN.DISCOU//MOEMBRIS/DE 2023.10.11T19.24.19 Folgenr.001 Verfalld.2026.12";"Lebenshaltung";"Lebensmittel";"Lebenshaltung / Lebensmittel";;;"005";"Lastschrifteinzug";"65375639595340111023192419";"192433";"DE61ZZZ00000018368"
181;DE16500105175407875231;11.10.2023;11.10.2023;-37,11;EUR;"REWE Kornelius Gol";;;"REWE SAGT DANKE. 44652171//Moembris/DE 2023.10.10T08.38.03 Folgenr.001Verfalld.2026.12";"Lebenshaltung";"Lebensmittel";"Lebenshaltung / Lebensmittel";;;"005";"Lastschrifteinzug";"56026223707738101023083803";"083731";"DE16RPA00000020245"
182;DE16500105175407875231;11.10.2023;11.10.2023;-24,75;EUR;"Dm Drogeriemarkt Sagt Danke";;;"DM FIL.1654 H.65440//MOEMBRIS/DE 2023.10.10T08.29.59 Folgenr.001 Verfalld.2026.12";"Lebenshaltung";"Körperpflege & Wellness";"Lebenshaltung / Körperpflege & Wellness";;;"005";"Lastschrifteinzug";"65440351514469101023082959";"083022";"DE32ZZZ00000500592"
183;DE16500105175407875231;10.10.2023;10.10.2023;-89,90;EUR;"Esso Station";;;"ESSO STATION//Moembris/DE 2023.10.09T13.20.36 Folgenr.001 Verfalld.2026.12";"Mobilität";"Tank- & Ladestelle";"Mobilität / Tank- & Ladestelle";;;"005";"Lastschrifteinzug";"78103932005921091023132036";"132114";"DE16E0100000020245"
184;DE16500105175407875231;10.10.2023;10.10.2023;-5,99;EUR;"Amazon Digital Germany Gmbh";;;"D01.5561908.3999000 Prime Video Channels 2PJGYSTRNNGPU3OP";"Freizeit & Unterhaltung";"Streaming";"Freizeit & Unterhaltung / Streaming";;;"005";"Lastschrifteinzug";"2PJGYSTRNNGPU3OP";"rOxHdfurPFKHn)Aq(.XhjI6?SxR+8m";"DE96ZZZ00000594888"
185;DE16500105175407875231;10.10.2023;10.10.2023;-35,83;EUR;"Lidl Dienstleistung Gmbh Und Co Kg";;;"LIDL DIENSTLEISTUNG GMBH UND CO KG//Alzenau/DE 2023.10.09T07.47.20 Folgenr.000 Verfalld.2026.12";"Lebenshaltung";"Lebensmittel";"Lebenshaltung / Lebensmittel";;;"005";"Lastschrifteinzug";"6015875516232309102307472002805926";"074801";"DE73DAB00000052684"
186;DE16500105175407875231;10.10.2023;10.10.2023;-138,47;EUR;"PayPal Europe S.a.r.l. et Cie S.C.A";;;"1029835966092 PP.5629.PP . CONTABOGmbH, Ihr Einkauf bei CONTABO GmbH";"Freizeit & Unterhaltung";"Medien";"Freizeit & Unterhaltung / Medien";;;"005";"Lastschrifteinzug";"1029835966092";"474J224N243DU";"LU96ZZZ0000000000000000058"
187;DE16500105175407875231;10.10.2023;10.10.2023;-10,89;EUR;"Lidl Dienstleistung Gmbh Und Co Kg";;;"LIDL DIENSTLEISTUNG GMBH UND CO KG//Alzenau/DE 2023.10.09T07.55.03 Folgenr.000 Verfalld.2026.12";"Lebenshaltung";"Lebensmittel";"Lebenshaltung / Lebensmittel";;;"005";"Lastschrifteinzug";"6015875516232709102307550302805926";"075545";"DE73DAB00000052684"
188;DE16500105175407875231;09.10.2023;09.10.2023;37,99;EUR;"PayPal Europe S.a.r.l. et Cie S.C.A";;;". limango GmbH, Ihr Einkauf bei limango GmbH ABBUCHUNG VOM PAYPAL.KONTO";"Lebenshaltung";"Kinder";"Lebenshaltung / Kinder";;;"051";"Gutschrift";"YYW1029854242469";;
189;DE16500105175407875231;09.10.2023;09.10.2023;-99,93;EUR;"Netto Marken-Discoun";;;"NETTO MARKEN.DISCOU//MOEMBRIS/DE 2023.10.07T15.23.24 Folgenr.001 Verfalld.2026.12";"Lebenshaltung";"Lebensmittel";"Lebenshaltung / Lebensmittel";;;"005";"Lastschrifteinzug";"65375639594123071023152324";"152338";"DE61ZZZ00000018368"
190;DE16500105175407875231;09.10.2023;09.10.2023;-68,00;EUR;"Cyriakus-Verein e.V.";;;"Kindergartenbeitrag 10.2023 fuer Gehringer Smilla";"Lebenshaltung";"Kinder";"Lebenshaltung / Kinder";;;"005";"Lastschrifteinzug";"K61210-2023";"Sausewind317";"DE74ZZZ00000733800"
191;DE16500105175407875231;09.10.2023;09.10.2023;-140,42;EUR;"Aral Ag";;;"ARAL Kahl Forststra.e 3 . 5//Kahl/DE 2023.10.06T10.02.51 Folgenr.000 Verfalld.2026.12";"Mobilität";"Tank- & Ladestelle";"Mobilität / Tank- & Ladestelle";;;"005";"Lastschrifteinzug";"71113775153357061023100251";"100300";"DE79ZZZ00000465117"
192;DE16500105175407875231;09.10.2023;09.10.2023;-104,95;EUR;"Rv-Bank Aschaffenburg";;;"RV.Bank AB MOEMBRIS//MOEMBRIS/DE 2023.10.07T06.46.01 Folgenr.000 Verfalld.2026.12 Entgelt 4,95EUR";"Finanzen & Versicherungen";"Geldautomat";"Finanzen & Versicherungen / Geldautomat";;;"005";"Lastschrifteinzug";"00003271004986071023064601";"064615";"DE48ZZZ00000055947"
193;DE16500105175407875231;06.10.2023;06.10.2023;500,00;EUR;"Klaus Schobella Helga Schobella";;;"bekannt";;;;;;"051";"Gutschrift";;;
194;DE16500105175407875231;06.10.2023;06.10.2023;-45,85;EUR;"Penny Kahl a. Main";;;"PENNY SAGT DANKE 63302467//Kahl amMain/DE 2023.10.05T18.12.17 Folgenr.000 Verfalld.2026.12";"Lebenshaltung";"Lebensmittel";"Lebenshaltung / Lebensmittel";;;"005";"Lastschrifteinzug";"56042064198360051023181217";"181417";"DE53ZZZ00000257229"
195;DE16500105175407875231;05.10.2023;05.10.2023;750,00;EUR;"Bundesagentur fur Arbeit - Familienkasse";;;"Kg735715Fk276070 1023 80055098246/3000098731709";"Finanzen & Versicherungen";"Kindergeld & Unterhalt";"Finanzen & Versicherungen / Kindergeld & Unterhalt";;;"051";"Gutschrift";"80055098246";;
196;DE16500105175407875231;05.10.2023;05.10.2023;-33,60;EUR;"AstraDirect SCHLIESSFACHER GmbH";;;"Buchungszeichen 10513384 Schueler.Schliessfach www.astradirect.de";;;;;;"005";"Lastschrifteinzug";"Txn6535560";"2304012";"DE71ZZZ00000019061"
197;DE16500105175407875231;04.10.2023;04.10.2023;-893,57;EUR;"VW-Bank";;;"11876525 Alz.Gg66 14 10 23";"Mobilität";"Auto & Motorrad";"Mobilität / Auto & Motorrad";;;"005";"Lastschrifteinzug";"KKFV1187652520230926014018221166032";"041600118765250001";"DE85BNK00000072741"
198;DE16500105175407875231;04.10.2023;04.10.2023;-56,27;EUR;"Markt Moembris";;;"22360/Pacht 2023, FlNr.15398, 13694/0 u.a., Gem. Mo/56,27/01.10.23";;;;;;"005";"Lastschrifteinzug";"799581";"OKF100000005790";"DE20ZZZ00000055578"
199;DE16500105175407875231;03.10.2023;03.10.2023;135,00;EUR;"Fusballclub Bayern Alzenau 1920 e.V.";;;"Sammelbuchung FC Bayern AlzVorgelegt am 03.10.2023Nicht bezahlt 135,00.Widerspruch";"Freizeit & Unterhaltung";"Vereine";"Freizeit & Unterhaltung / Vereine";;;"059";"Retouren";"70224766";"12098";"DE37ZZZ00000087573"
200;DE16500105175407875231;03.10.2023;03.10.2023;-0,99;EUR;"Ing";;;"Girocard 260006800102Monatliches Entgeltgirocard (Debitkarte)";"Finanzen & Versicherungen";"Bankgebühren";"Finanzen & Versicherungen / Bankgebühren";;;"027";"Entgelt";;;
201;DE16500105175407875231;03.10.2023;03.10.2023;-0,99;EUR;"Ing";;;"Girocard 260006683584Monatliches Entgeltgirocard (Debitkarte)";"Finanzen & Versicherungen";"Bankgebühren";"Finanzen & Versicherungen / Bankgebühren";;;"027";"Entgelt";;;
202;DE16500105175407875231;03.10.2023;03.10.2023;-28,00;EUR;"Christina Stieber";;;"Tanzschule Alzenau Smilla KreativerKindertanz";"Freizeit & Unterhaltung";"Sport";"Freizeit & Unterhaltung / Sport";;;"005";"Lastschrifteinzug";;"3003";"DE84ZZZ00000624883"
203;DE16500105175407875231;03.10.2023;03.10.2023;-135,00;EUR;"Fusballclub Bayern Alzenau 1920 e.V.";;;"Sammelbuchung FC Bayern Alzenau 1920 e.V., Gehringer Tanja und Florian";"Freizeit & Unterhaltung";"Vereine";"Freizeit & Unterhaltung / Vereine";;;"005";"Lastschrifteinzug";"70224766";"12098";"DE37ZZZ00000087573"
204;DE16500105175407875231;02.10.2023;02.10.2023;350,00;EUR;"Tanja Gehringer";;;"umbuchung";"Finanzen & Versicherungen";"Umbuchung";"Finanzen & Versicherungen / Umbuchung";;;"051";"Gutschrift";;;
205;DE16500105175407875231;02.10.2023;02.10.2023;2.919,48;EUR;"LA BOTTEGA TOSCANA Jens Hofacker e.K.";;;"lfd. Gehalt LabottegaToscana";"Finanzen & Versicherungen";"Lohn & Gehalt";"Finanzen & Versicherungen / Lohn & Gehalt";;;"052";"Gutschrift aus Dauerauftrag";;;
206;DE16500105175407875231;02.10.2023;02.10.2023;18,00;EUR;"St. Jakobusverein Schimborne.V.";;;"Tedox v. 22.07.23 f. Stoffueberzuege Kinderbank u. Vorhaenge";"Freizeit & Unterhaltung";"Vereine";"Freizeit & Unterhaltung / Vereine";;;"051";"Gutschrift";"CT-1-30.09.2023";;
207;DE16500105175407875231;02.10.2023;02.10.2023;-9,79;EUR;"01272 Mcdonalds";;;"01272 MCDONALDS//ALZENAU IN/DE 2023.09.29T12.02.54 Folgenr.000 Verfalld.2026.12";"Lebenshaltung";"Gastronomie";"Lebenshaltung / Gastronomie";;;"005";"Lastschrifteinzug";"54232383033918290923120254";"120306";"DE91SCL00000000756"
208;DE16500105175407875231;02.10.2023;02.10.2023;-7,90;EUR;"Nurnberger Krankenversicherung Aktiengesellschaft";;;"5134538 Nkv Krankenvers. R/ 01.10.2023 7,90";"Finanzen & Versicherungen";"Versicherungen";"Finanzen & Versicherungen / Versicherungen";;;"005";"Lastschrifteinzug";"2326518375261";"0210090000051345382018001";"DE14ZZZ00000057335"
209;DE16500105175407875231;02.10.2023;02.10.2023;-68,15;EUR;"VOLKSWOHL BUND Lebensversicherung a.G.";;;"008768131 La000528869/ 008768131 Risiko 68,15";"Finanzen & Versicherungen";"Versicherungen";"Finanzen & Versicherungen / Versicherungen";;;"005";"Lastschrifteinzug";"008768131/NVMA.G1048-253288";"LA000528869";"DE13ZZZ00000141064"
210;DE16500105175407875231;02.10.2023;02.10.2023;-57,41;EUR;"Allianz Lebensvers.";;;"Vertrag AL.0043152366 01.10.23 . 31.10.23 StartPolice";"Finanzen & Versicherungen";"Versicherungen";"Finanzen & Versicherungen / Versicherungen";;;"005";"Lastschrifteinzug";"AB223270-E00467189";"LA01L312001056217739";"DE07ZZZ00000063475"
211;DE16500105175407875231;02.10.2023;02.10.2023;-278,01;EUR;"VOLKSWOHL BUND Lebensversicherung a.G.";;;"009984035 La000528870/ 009984035 Rente 278,01";"Finanzen & Versicherungen";"Versicherungen";"Finanzen & Versicherungen / Versicherungen";;;"005";"Lastschrifteinzug";"009984035/NVMA.G1048-253289";"LA000528870";"DE13ZZZ00000141064"
212;DE16500105175407875231;02.10.2023;02.10.2023;-22,02;EUR;"REWE Markt GmbH";;;"REWE SAGT DANKE. 44400244//Alzenau/DE 2023.09.29T13.26.20 Folgenr.000Verfalld.2026.12";"Lebenshaltung";"Lebensmittel";"Lebenshaltung / Lebensmittel";;;"005";"Lastschrifteinzug";"56026314533245290923132620";"132400";"DE58ZZZ00000257236"
213;DE16500105175407875231;02.10.2023;02.10.2023;-21,24;EUR;"Allianz Versicherungs-AG";;;"90/0542/2946744 Unfall Pr";"Finanzen & Versicherungen";"Versicherungen";"Finanzen & Versicherungen / Versicherungen";;;"005";"Lastschrifteinzug";"A1923268-01092023092590036840";"ADAGSFF0000000344810";"DE10ZZZ00000051878"
214;DE16500105175407875231;02.10.2023;02.10.2023;-10,00;EUR;"Worldline Sweden AB fuer Shell";;;"SHELL 5481// Alzenau /DE 2023.09.29T11.55.49 Folgenr.000 Verfalld.2026.12";"Mobilität";"Tank- & Ladestelle";"Mobilität / Tank- & Ladestelle";;;"005";"Lastschrifteinzug";"70011027513384290923115549";"115557";"SE917375565480026"
215;DE16500105175407875231;02.10.2023;02.10.2023;-166,97;EUR;"AXA Krankenversicherung AG";;;"Krankenvers. 4958423794 BTR. 10/23166,97. EUR";"Finanzen & Versicherungen";"Versicherungen";"Finanzen & Versicherungen / Versicherungen";;;"005";"Lastschrifteinzug";"600028163603/0003";"21053190502";"DE23G0100000066097"
216;DE16500105175407875231;29.09.2023;30.09.2023;-8,57;EUR;;;;;"Finanzen & Versicherungen";"Bankgebühren";"Finanzen & Versicherungen / Bankgebühren";;;"026";"Abschluss";;;
217;DE16500105175407875231;29.09.2023;30.09.2023;-320,31;EUR;"Gehringer";;;"Ing.Diba Ag 5324019888 30.09.2023";;;;;;"005";"Lastschrifteinzug";;;
218;DE16500105175407875231;28.09.2023;28.09.2023;0,40;EUR;"AstraDirect SCHLIESSFACHER GmbH";;;"Buchungszeichen 10422682 Schueler.Schliessfach www.astradirect.de";;;;;;"051";"Gutschrift";"Txn6510477";;
219;DE16500105175407875231;28.09.2023;28.09.2023;-8,99;EUR;"Amazon Eu S.A R.L., Niederlassung Deutschland";;;"D01.9846939.2373416 AMZNPrime DE 1I4LQSYVX5BRGIFB";"Lebenshaltung";"Shopping";"Lebenshaltung / Shopping";;;"005";"Lastschrifteinzug";"1I4LQSYVX5BRGIFB";"rOxHdfurPFKHn)Aq(.XhjI6?SxR+8m";"DE24ZZZ00000561652"
220;DE16500105175407875231;28.09.2023;28.09.2023;-41,28;EUR;"Tankstelle Trageser.Alzenau";;;"TANKSTELLE TRAGESER.ALZENAU//Alzenau/DE 2023.09.27T20.27.13 Folgenr.000 Verfalld.2026.12";"Mobilität";"Tank- & Ladestelle";"Mobilität / Tank- & Ladestelle";;;"005";"Lastschrifteinzug";"72515033286802270923202713";"202810";"DE24ZZZ00000068989"
221;DE16500105175407875231;28.09.2023;28.09.2023;-20,00;EUR;"Esso Station";;;"ESSO STATION//Moembris/DE 2023.09.27T15.42.22 Folgenr.000 Verfalld.2026.12";"Mobilität";"Tank- & Ladestelle";"Mobilität / Tank- & Ladestelle";;;"005";"Lastschrifteinzug";"78103932003490270923154222";"154246";"DE16E0100000020245"
222;DE16500105175407875231;28.09.2023;28.09.2023;-10,00;EUR;"Esso Station";;;"ESSO STATION//Moembris/DE 2023.09.27T13.25.34 Folgenr.000 Verfalld.2026.12";"Mobilität";"Tank- & Ladestelle";"Mobilität / Tank- & Ladestelle";;;"005";"Lastschrifteinzug";"78103932003445270923132534";"132600";"DE16E0100000020245"
223;DE16500105175407875231;27.09.2023;27.09.2023;129,90;EUR;"PayPal Europe S.a.r.l. et Cie S.C.A";;;". limango GmbH, Ihr Einkauf bei limango GmbH ABBUCHUNG VOM PAYPAL.KONTO";"Lebenshaltung";"Kinder";"Lebenshaltung / Kinder";;;"051";"Gutschrift";"YYW1029629241509";;
224;DE16500105175407875231;27.09.2023;27.09.2023;-3,95;EUR;"SCHUFA Holding AG";;;"Kunde.7008178893,Bestellung.0017813168,Rechnung.501013313291";;;;;;"005";"Lastschrifteinzug";;"000005596370";"DE87ZZZ00000239351"
225;DE16500105175407875231;27.09.2023;27.09.2023;-20,00;EUR;"Netto Marken-Discoun";;;"NETTO MARKEN.DISCOU//FREIGERICHT/DE2023.09.26T12.52.33 Folgenr.000 Verfalld.2026.12";"Lebenshaltung";"Lebensmittel";"Lebenshaltung / Lebensmittel";;;"005";"Lastschrifteinzug";"65436654600772260923125233";"125248";"DE61ZZZ00000018368"
226;DE16500105175407875231;26.09.2023;26.09.2023;-9,72;EUR;"REWE Kornelius Gol";;;"REWE SAGT DANKE. 44652172//Moembris/DE 2023.09.25T15.07.09 Folgenr.001Verfalld.2026.12";"Lebenshaltung";"Lebensmittel";"Lebenshaltung / Lebensmittel";;;"005";"Lastschrifteinzug";"56026269161056250923150709";"150727";"DE16RPA00000020245"
227;DE16500105175407875231;26.09.2023;26.09.2023;-30,00;EUR;"PayPal Europe S.a.r.l. et Cie S.C.A";;;"1029567334302 PP.5629.PP . , Ihr Einkauf bei";"Lebenshaltung";"Shopping";"Lebenshaltung / Shopping";;;"005";"Lastschrifteinzug";"1029567334302";"474J224N243DU";"LU96ZZZ0000000000000000058"
228;DE16500105175407875231;26.09.2023;26.09.2023;-37,25;EUR;"Lidl Dienstleistung Gmbh Und Co Kg";;;"LIDL DIENSTLEISTUNG GMBH UND CO KG//Alzenau/DE 2023.09.25T18.04.03 Folgenr.000 Verfalld.2026.12";"Lebenshaltung";"Lebensmittel";"Lebenshaltung / Lebensmittel";;;"005";"Lastschrifteinzug";"6015875602834425092318040302805926";"180559";"DE73DAB00000052684"
229;DE16500105175407875231;26.09.2023;26.09.2023;-20,00;EUR;"Esso Station";;;"ESSO STATION//Moembris/DE 2023.09.25T17.17.43 Folgenr.000 Verfalld.2026.12";"Mobilität";"Tank- & Ladestelle";"Mobilität / Tank- & Ladestelle";;;"005";"Lastschrifteinzug";"78103932002951250923171743";"171812";"DE16E0100000020245"
230;DE16500105175407875231;26.09.2023;26.09.2023;-25,00;EUR;"PayPal Europe S.a.r.l. et Cie S.C.A";;;"1029546522327 PP.5629.PP . , Ihr Einkauf bei";"Lebenshaltung";"Shopping";"Lebenshaltung / Shopping";;;"005";"Lastschrifteinzug";"1029546522327";"474J224N243DU";"LU96ZZZ0000000000000000058"
231;DE16500105175407875231;26.09.2023;26.09.2023;-110,80;EUR;"Netto Marken-Discoun";;;"NETTO MARKEN.DISCOU//MOEMBRIS/DE 2023.09.25T16.25.58 Folgenr.001 Verfalld.2026.12";"Lebenshaltung";"Lebensmittel";"Lebenshaltung / Lebensmittel";;;"005";"Lastschrifteinzug";"65375639590747250923162558";"162608";"DE61ZZZ00000018368"
232;DE16500105175407875231;25.09.2023;25.09.2023;-37,67;EUR;"Netto Marken-Discoun";;;"NETTO MARKEN.DISCOU//MOEMBRIS/DE 2023.09.22T13.26.58 Folgenr.001 Verfalld.2026.12";"Lebenshaltung";"Lebensmittel";"Lebenshaltung / Lebensmittel";;;"005";"Lastschrifteinzug";"65375639589975220923132658";"132719";"DE61ZZZ00000018368"
233;DE16500105175407875231;25.09.2023;25.09.2023;-28,87;EUR;"PayPal Europe S.a.r.l. et Cie S.C.A";;;"1029545286022 . Withings SAS, Ihr Einkauf bei Withings SAS";"Lebenshaltung";"Shopping";"Lebenshaltung / Shopping";;;"005";"Lastschrifteinzug";"1029545286022";"474J224N243DU";"LU96ZZZ0000000000000000058"
234;DE16500105175407875231;25.09.2023;25.09.2023;-120,50;EUR;"Worldline Sweden AB fuer Shell";;;"SHELL 5453// Hoesbach /DE 2023.09.23T08.40.51 Folgenr.000 Verfalld.2026.12";"Mobilität";"Tank- & Ladestelle";"Mobilität / Tank- & Ladestelle";;;"005";"Lastschrifteinzug";"70011025442956230923084051";"084059";"SE917375565480026"
235;DE16500105175407875231;25.09.2023;25.09.2023;-106,00;EUR;"Ossis Angelladen";;;"Ossis Angelladen GIR 69095099//ASCHAFFENBURG/DE 2023.09.22T14.06.05 Folgenr.000 Verfalld.2026.12";;;;;;"005";"Lastschrifteinzug";"69095099672415220923140605";"140650";"DE82CC000000346626"
236;DE16500105175407875231;25.09.2023;25.09.2023;-104,95;EUR;"Rv-Bank Aschaffenburg";;;"RV.Bank AB MOEMBRIS//MOEMBRIS/DE 2023.09.23T08.15.33 Folgenr.000 Verfalld.2026.12 Entgelt 4,95EUR";"Finanzen & Versicherungen";"Geldautomat";"Finanzen & Versicherungen / Geldautomat";;;"005";"Lastschrifteinzug";"00003271002137230923081533";"081544";"DE48ZZZ00000055947"
237;DE16500105175407875231;22.09.2023;22.09.2023;-96,20;EUR;"SG-VR Payment GmbH";;;"Eintracht Frankfurt Fussball AG//FRANKFURT/DE 2023.09.21T18.28.16 Folgenr.000 Verfalld.2026.12";;;;;;"005";"Lastschrifteinzug";"64042068003872210923182816";"182829";"DE47ZZZ00000072455"
238;DE16500105175407875231;22.09.2023;22.09.2023;-33,90;EUR;"SG-VR Payment GmbH";;;"DEUTSCHE BANK PARK//FRANKFURT/DE 2023.09.21T19.02.03 Folgenr.000 Verfalld.2026.12";;;;;;"005";"Lastschrifteinzug";"64041290003805210923190203";"190216";"DE47ZZZ00000072455"
239;DE16500105175407875231;21.09.2023;21.09.2023;-83,14;EUR;"Marktkauf Stenger, Vielen Dank";;;"MARKTKAUF STENGER, VIELEN//ASCHAFFENBU/DE 2023.09.20T17.49.37 Folgenr.000 Verfalld.2026.12";"Lebenshaltung";"Lebensmittel";"Lebenshaltung / Lebensmittel";;;"005";"Lastschrifteinzug";"54519275199624200923174937";"174952";"DE87ZZZ00002426216"
240;DE16500105175407875231;21.09.2023;21.09.2023;-36,39;EUR;"REWE Kornelius Gol";;;"REWE SAGT DANKE. 44652171//Moembris/DE 2023.09.20T14.57.58 Folgenr.001Verfalld.2026.12";"Lebenshaltung";"Lebensmittel";"Lebenshaltung / Lebensmittel";;;"005";"Lastschrifteinzug";"56026223702975200923145758";"145731";"DE16RPA00000020245"
241;DE16500105175407875231;20.09.2023;20.09.2023;-6,99;EUR;"PayPal (Europe) S.a r.l. etCie, S.C.A.";;;"1029470259906 PP.5629.PP . Microsoft Payments, Ihr Einkauf bei Microsoft Payments";"Freizeit & Unterhaltung";"Medien";"Freizeit & Unterhaltung / Medien";;;"005";"Lastschrifteinzug";"1029470259906PP.5629.PP PAYPAL";"474J224N243DU";"LU96ZZZ0000000000000000058"
242;DE16500105175407875231;20.09.2023;20.09.2023;-5,58;EUR;"REWE Kornelius Gol";;;"REWE SAGT DANKE. 44652171//Moembris/DE 2023.09.19T14.17.55 Folgenr.001Verfalld.2026.12";"Lebenshaltung";"Lebensmittel";"Lebenshaltung / Lebensmittel";;;"005";"Lastschrifteinzug";"56026223702677190923141755";"141730";"DE16RPA00000020245"
243;DE16500105175407875231;20.09.2023;20.09.2023;-54,34;EUR;"REWE Kornelius Gol";;;"REWE SAGT DANKE. 44652171//Moembris/DE 2023.09.19T14.16.01 Folgenr.001Verfalld.2026.12";"Lebenshaltung";"Lebensmittel";"Lebenshaltung / Lebensmittel";;;"005";"Lastschrifteinzug";"56026223702675190923141601";"141534";"DE16RPA00000020245"
244;DE16500105175407875231;20.09.2023;20.09.2023;-17,80;EUR;"Lesekatze - Christina Kelm";;;"Lesekatze . Christina Kelm//Alzenau/DE 2023.09.19T15.54.29 Folgenr.000Verfalld.2026.12";;;;;;"005";"Lastschrifteinzug";"55779118029821190923155429";"155427";"DE47ZZZ00000072455"
245;DE16500105175407875231;18.09.2023;18.09.2023;-97,00;EUR;"Restaurant-Oelmuehle-Moembris";;;"OELMUEHLE RESTAURANT . INH//MOEMBRIS/DE 2023.09.17T19.06.53 Folgenr.000 Verfalld.2026.12";"Lebenshaltung";"Gastronomie";"Lebenshaltung / Gastronomie";;;"005";"Lastschrifteinzug";"54214125007654170923190653";"190656";"DE23ZZZ00001996785"
246;DE16500105175407875231;18.09.2023;18.09.2023;-8,34;EUR;"REWE Kornelius Gol";;;"REWE SAGT DANKE. 44652172//Moembris/DE 2023.09.15T18.41.33 Folgenr.001Verfalld.2026.12";"Lebenshaltung";"Lebensmittel";"Lebenshaltung / Lebensmittel";;;"005";"Lastschrifteinzug";"56026269160285150923184133";"184154";"DE16RPA00000020245"
247;DE16500105175407875231;18.09.2023;18.09.2023;-7,05;EUR;"REWE Kornelius Gol";;;"REWE SAGT DANKE. 44652172//Moembris/DE 2023.09.15T17.10.58 Folgenr.001Verfalld.2026.12";"Lebenshaltung";"Lebensmittel";"Lebenshaltung / Lebensmittel";;;"005";"Lastschrifteinzug";"56026269160251150923171058";"171108";"DE16RPA00000020245"
248;DE16500105175407875231;18.09.2023;18.09.2023;-52,86;EUR;"REWE Kornelius Gol";;;"REWE SAGT DANKE. 44652171//Moembris/DE 2023.09.15T18.35.45 Folgenr.001Verfalld.2026.12";"Lebenshaltung";"Lebensmittel";"Lebenshaltung / Lebensmittel";;;"005";"Lastschrifteinzug";"56026223701941150923183545";"183527";"DE16RPA00000020245"
249;DE16500105175407875231;18.09.2023;18.09.2023;-38,05;EUR;"Netto Marken-Discoun";;;"NETTO MARKEN.DISCOU//MOEMBRIS/DE 2023.09.16T08.45.23 Folgenr.000 Verfalld.2026.12";"Lebenshaltung";"Lebensmittel";"Lebenshaltung / Lebensmittel";;;"005";"Lastschrifteinzug";"65375640181704160923084523";"084552";"DE61ZZZ00000018368"
250;DE16500105175407875231;18.09.2023;18.09.2023;-37,33;EUR;"Transgourmet/Selgros Dankt";;;"140920390021940261205902060 Elv65035402 14.09 20.39 Me0";"Finanzen & Versicherungen";"Beruf & Gewerbe";"Finanzen & Versicherungen / Beruf & Gewerbe";;;"005";"Lastschrifteinzug";"14092039002194026120590206065035402";"6503540200142309142039";"DE06ZZZ00000217626"
251;DE16500105175407875231;18.09.2023;18.09.2023;-36,99;EUR;"freenet ehemals mobilcom-debitel";;;"Kd.1115915714 Wir sagen Danke. RG.Nr.P23010480613 36,99 EUR";"Lebenshaltung";"Handy & Internet";"Lebenshaltung / Handy & Internet";;;"005";"Lastschrifteinzug";"1115915714/126222371292";"DL-1115915714-000001";"DE43ZZZ00000074855"
252;DE16500105175407875231;18.09.2023;18.09.2023;-29,99;EUR;"PayPal Europe S.a.r.l. et Cie S.C.A";;;"1029394069371 PP.5629.PP . SPM Sportplatz.Media GmbH, Ihr Einkauf beiSPM Sportplatz.Media GmbH";"Lebenshaltung";"Shopping";"Lebenshaltung / Shopping";;;"005";"Lastschrifteinzug";"1029394069371";"474J224N243DU";"LU96ZZZ0000000000000000058"
253;DE16500105175407875231;18.09.2023;18.09.2023;-25,82;EUR;"01272 Mcdonalds";;;"01272 MCDONALDS//ALZENAU IN/DE 2023.09.16T16.23.54 Folgenr.000 Verfalld.2026.12";"Lebenshaltung";"Gastronomie";"Lebenshaltung / Gastronomie";;;"005";"Lastschrifteinzug";"54232394041115160923162354";"162419";"DE91SCL00000000756"
254;DE16500105175407875231;18.09.2023;18.09.2023;-22,86;EUR;"Esso Station";;;"ESSO STATION//Moembris/DE 2023.09.17T14.11.50 Folgenr.000 Verfalld.2026.12";"Mobilität";"Tank- & Ladestelle";"Mobilität / Tank- & Ladestelle";;;"005";"Lastschrifteinzug";"78103932000891170923141150";"141214";"DE16E0100000020245"
255;DE16500105175407875231;18.09.2023;18.09.2023;-104,95;EUR;"Rv-Bank Aschaffenburg";;;"RV.Bank AB MOEMBRIS//MOEMBRIS/DE 2023.09.16T09.27.56 Folgenr.000 Verfalld.2026.12 Entgelt 4,95EUR";"Finanzen & Versicherungen";"Geldautomat";"Finanzen & Versicherungen / Geldautomat";;;"005";"Lastschrifteinzug";"00003271000833160923092756";"092803";"DE48ZZZ00000055947"
256;DE16500105175407875231;15.09.2023;15.09.2023;-48,83;EUR;"Edeka Geka Alzenau";;;"EDEKA GEKA ALZENAU//ALZENAU/DE 2023.09.14T15.28.21 Folgenr.001 Verfalld.2026.12";"Lebenshaltung";"Lebensmittel";"Lebenshaltung / Lebensmittel";;;"005";"Lastschrifteinzug";"54282312741730140923152821";"152839";"DE63ZZZ00001092898"
257;DE16500105175407875231;15.09.2023;15.09.2023;-26,00;EUR;"Sportverein Eintracht Mensengesaess 1946 e.V.";;;"Gehringer Smill/361 26,00 Jahresbeitrag 2023";"Freizeit & Unterhaltung";"Vereine";"Freizeit & Unterhaltung / Vereine";;;"005";"Lastschrifteinzug";"PC-VAB-EtE06092023-1130-2";"M3611";"DE53ZZZ00000417764"
258;DE16500105175407875231;15.09.2023;15.09.2023;-22,43;EUR;"Ambiente Alzenau";;;"Ambiente//Alzenau/DE 2023.09.14T15.52.27 Folgenr.001 Verfalld.2026.12";;;;;;"005";"Lastschrifteinzug";"61405451212784140923155227";"155308";"DE11ZZZ00000009471"
259;DE16500105175407875231;15.09.2023;15.09.2023;-118,00;EUR;"Worldline Sweden AB fuer Shell";;;"SHELL 0201// Aschaffenburg /DE 2023.09.14T17.18.02 Folgenr.000 Verfalld.2026.12";"Mobilität";"Tank- & Ladestelle";"Mobilität / Tank- & Ladestelle";;;"005";"Lastschrifteinzug";"70011976312762140923171802";"171810";"SE917375565480026"
260;DE16500105175407875231;14.09.2023;14.09.2023;-53,40;EUR;"Deutsche Tamoil GmbH";;;"HEM Tankstelle//Gelnhausen/DE 2023.09.13T09.49.50 Folgenr.000 Verfalld.2026.12";"Mobilität";"Tank- & Ladestelle";"Mobilität / Tank- & Ladestelle";;;"005";"Lastschrifteinzug";"74005356074645130923094950";"080332";"DE09WEA00000635060"
261;DE16500105175407875231;14.09.2023;14.09.2023;-153,95;EUR;"Sparkasse Aschaffenburg-Alzenau";;;"KARLS.R2//SPARKASSE ASCHAFFENBURG.ALZENAU/DE 2023.09.13T17.20.16 Folgenr.000 Verfalld.2026.12 Entgelt 3,95EUR";;;;;;"005";"Lastschrifteinzug";"00002300247260130923172016";"172026";"DE80GAA00000085247"
262;DE16500105175407875231;13.09.2023;13.09.2023;-80,72;EUR;"Awg";;;"Elv61712685 11.09 18.00 Me0";;;;;;"005";"Lastschrifteinzug";"IC-15143746110";"6171268538652309111800";"DE11ZZZ00000009471"
263;DE16500105175407875231;13.09.2023;13.09.2023;-6,00;EUR;"PayPal Europe S.a.r.l. et Cie S.C.A";;;"1029348567604 PP.5629.PP . HD PLUSGmbH, Ihr Einkauf bei HD PLUS GmbH";"Lebenshaltung";"Handy & Internet";"Lebenshaltung / Handy & Internet";;;"005";"Lastschrifteinzug";"1029348567604";"474J224N243DU";"LU96ZZZ0000000000000000058"
264;DE16500105175407875231;13.09.2023;13.09.2023;-37,67;EUR;"Ambiente Alzenau";;;"Ambiente//Alzenau/DE 2023.09.12T15.11.51 Folgenr.001 Verfalld.2026.12";;;;;;"005";"Lastschrifteinzug";"61405451212313120923151151";"151230";"DE11ZZZ00000009471"
265;DE16500105175407875231;13.09.2023;13.09.2023;-16,54;EUR;"Netto Marken-Discoun";;;"NETTO MARKEN.DISCOU//MOEMBRIS/DE 2023.09.12T14.44.43 Folgenr.001 Verfalld.2026.12";"Lebenshaltung";"Lebensmittel";"Lebenshaltung / Lebensmittel";;;"005";"Lastschrifteinzug";"65375639587235120923144443";"144450";"DE61ZZZ00000018368"
266;DE16500105175407875231;13.09.2023;13.09.2023;-15,24;EUR;"Unicredit W/ Total";;;"TOTAL Service Station//KARLSTEIN/DE2023.09.12T07.33.15 Folgenr.000 Verfalld.2026.12";"Mobilität";"Tank- & Ladestelle";"Mobilität / Tank- & Ladestelle";;;"005";"Lastschrifteinzug";"54706198121170120923073315";"073327";"DE28MTO00000009650"
267;DE16500105175407875231;12.09.2023;12.09.2023;-5,99;EUR;"Amazon Digital Germany Gmbh";;;"D01.3031701.1816638 Prime Video Channels IAYS2BM1MN8B2NHL";"Freizeit & Unterhaltung";"Streaming";"Freizeit & Unterhaltung / Streaming";;;"005";"Lastschrifteinzug";"IAYS2BM1MN8B2NHL";"rOxHdfurPFKHn)Aq(.XhjI6?SxR+8m";"DE96ZZZ00000594888"
268;DE16500105175407875231;11.09.2023;11.09.2023;258,00;EUR;"Mouhcine Fettah";;;"Hotel";;;;;;"051";"Gutschrift";;;
269;DE16500105175407875231;11.09.2023;11.09.2023;-32,55;EUR;"REWE Kornelius Gol";;;"REWE SAGT DANKE. 44652171//Moembris/DE 2023.09.09T13.35.34 Folgenr.001Verfalld.2026.12";"Lebenshaltung";"Lebensmittel";"Lebenshaltung / Lebensmittel";;;"005";"Lastschrifteinzug";"56026222396313090923133534";"133603";"DE16RPA00000020245"
270;DE16500105175407875231;11.09.2023;11.09.2023;-29,63;EUR;"Minera Kraftstoffe Gmbh";;;"MINERA KRAFTSTOFFE GMBH//Aschaffenburg/DE 2023.09.10T13.07.48 Folgenr.000 Verfalld.2026.12";;;;;;"005";"Lastschrifteinzug";"78102033084630100923130748";"130752";"DE16E0100000020245"
271;DE16500105175407875231;11.09.2023;11.09.2023;-212,83;EUR;"PayPal Europe S.a.r.l. et Cie S.C.A";;;"1029275428924 . limango GmbH, Ihr Einkauf bei limango GmbH";"Lebenshaltung";"Kinder";"Lebenshaltung / Kinder";;;"005";"Lastschrifteinzug";"1029275428924";"474J224N243DU";"LU96ZZZ0000000000000000058"
272;DE16500105175407875231;11.09.2023;11.09.2023;-104,95;EUR;"Rv-Bank Aschaffenburg";;;"RV.Bank AB MOEMBRIS//MOEMBRIS/DE 2023.09.10T14.13.14 Folgenr.001 Verfalld.2026.12 Entgelt 4,95EUR";"Finanzen & Versicherungen";"Geldautomat";"Finanzen & Versicherungen / Geldautomat";;;"005";"Lastschrifteinzug";"00003271020697100923141314";"141352";"DE48ZZZ00000055947"
273;DE16500105175407875231;08.09.2023;08.09.2023;-7,99;EUR;"Amazon Eu S.A R.L., Niederlassung Deutschland";;;"302.1577751.2940325 Amazon.de 6QE1YEMQ9N3S41Z0";"Lebenshaltung";"Shopping";"Lebenshaltung / Shopping";;;"005";"Lastschrifteinzug";"6QE1YEMQ9N3S41Z0";"rOxHdfurPFKHn)Aq(.XhjI6?SxR+8m";"DE24ZZZ00000561652"
274;DE16500105175407875231;08.09.2023;08.09.2023;-204,50;EUR;"Frankfurter Voba Rhein-Main";;;"GAA Alzenau//Alzenau/DE 2023.09.07T13.01.45 Folgenr.000 Verfalld.2026.12 Entgelt 4,50EUR";"Finanzen & Versicherungen";"Geldautomat";"Finanzen & Versicherungen / Geldautomat";;;"005";"Lastschrifteinzug";"00001300011649070923130145";"130201";"DE16ZZZ00000003270"
275;DE16500105175407875231;07.09.2023;07.09.2023;-9,99;EUR;"Amazon Payments Europe S.C.A.";;;"302.8445688.1117945 AMZN Mktp DE 62WJ0UBN62CM1MYV";"Lebenshaltung";"Shopping";"Lebenshaltung / Shopping";;;"005";"Lastschrifteinzug";"62WJ0UBN62CM1MYV";"rOxHdfurPFKHn)Aq(.XhjI6?SxR+8m";"DE94ZZZ00000561653"
276;DE16500105175407875231;07.09.2023;07.09.2023;-93,12;EUR;"REWE Markt GmbH";;;"REWE SAGT DANKE. 44401050//Stockstadt/DE 2023.09.06T19.02.14 Folgenr.001 Verfalld.2026.12";"Lebenshaltung";"Lebensmittel";"Lebenshaltung / Lebensmittel";;;"005";"Lastschrifteinzug";"56037505191418060923190214";"190223";"DE58ZZZ00000257236"
277;DE16500105175407875231;07.09.2023;07.09.2023;-92,00;EUR;"Cyriakus-Verein e.V.";;;"Kindergartenbeitrag 09.2023 fuer Gehringer Smilla";"Lebenshaltung";"Kinder";"Lebenshaltung / Kinder";;;"005";"Lastschrifteinzug";"K61209-2023";"Sausewind317";"DE74ZZZ00000733800"
278;DE16500105175407875231;07.09.2023;07.09.2023;-25,00;EUR;"Umtec Umweltschutz GmbH u. Co. KG";;;"Umtec Umweltschutz GmbH u. Co. KG//Alzenau/DE 2023.09.06T14.10.33 Folgenr.000 Verfalld.2026.12";;;;;;"005";"Lastschrifteinzug";"55775736003244060923141033";"141042";"DE22ZZZ00000615523"
279;DE16500105175407875231;07.09.2023;07.09.2023;-19,95;EUR;"Aral Ag";;;"ARAL Kahl Forststra.e 3 . 5//Kahl/DE 2023.09.06T14.21.58 Folgenr.000 Verfalld.2026.12";"Mobilität";"Tank- & Ladestelle";"Mobilität / Tank- & Ladestelle";;;"005";"Lastschrifteinzug";"71113775126271060923142158";"142206";"DE79ZZZ00000465117"
280;DE16500105175407875231;06.09.2023;06.09.2023;-53,66;EUR;"Rossmann";;;"ROSSMANN//Schoellkrippen/DE 2023.09.05T17.22.17 Folgenr.001 Verfalld.2026.12";"Lebenshaltung";"Körperpflege & Wellness";"Lebenshaltung / Körperpflege & Wellness";;;"005";"Lastschrifteinzug";"60306915053607050923172217";"172315";"DE16E0100000020245"
281;DE16500105175407875231;06.09.2023;06.09.2023;-196,91;EUR;"Aral Ag";;;"ARAL Kahl Forststra.e 3 . 5//Kahl/DE 2023.09.05T19.56.53 Folgenr.000 Verfalld.2026.12";"Mobilität";"Tank- & Ladestelle";"Mobilität / Tank- & Ladestelle";;;"005";"Lastschrifteinzug";"71113774088465050923195653";"195659";"DE79ZZZ00000465117"
282;DE16500105175407875231;06.09.2023;06.09.2023;-143,07;EUR;"Lidl Dienstleistung Gmbh Und Co Kg";;;"LIDL DIENSTLEISTUNG GMBH UND CO KG//Schoellkrippen/DE 2023.09.05T17.50.27 Folgenr.001 Verfalld.2026.12";"Lebenshaltung";"Lebensmittel";"Lebenshaltung / Lebensmittel";;;"005";"Lastschrifteinzug";"6019266214154105092317502702806449";"175242";"DE73DAB00000052684"
283;DE16500105175407875231;05.09.2023;05.09.2023;750,00;EUR;"Bundesagentur fur Arbeit - Familienkasse";;;"Kg735715Fk276070 0923 68055658780/3000098731709";"Finanzen & Versicherungen";"Kindergeld & Unterhalt";"Finanzen & Versicherungen / Kindergeld & Unterhalt";;;"051";"Gutschrift";"68055658780";;
284;DE16500105175407875231;05.09.2023;05.09.2023;-8,00;EUR;"Getraenke Sittinger";;;"GETRAENKE SITTINGER//Alzenau/DE 2023.09.04T19.39.34 Folgenr.000 Verfalld.2026.12";"Lebenshaltung";"Lebensmittel";"Lebenshaltung / Lebensmittel";;;"005";"Lastschrifteinzug";"55579770165328040923193934";"193942";"DE18ZZZ00000276192"
285;DE16500105175407875231;05.09.2023;05.09.2023;-69,96;EUR;"Esso Station";;;"ESSO STATION//Moembris/DE 2023.09.04T13.13.59 Folgenr.001 Verfalld.2026.12";"Mobilität";"Tank- & Ladestelle";"Mobilität / Tank- & Ladestelle";;;"005";"Lastschrifteinzug";"78100352151282040923131359";"131423";"DE16E0100000020245"
286;DE16500105175407875231;05.09.2023;05.09.2023;-343,65;EUR;"Itzehoer Vers.Verein";;;"25695363.850 Rechtsschutz.V 343,65";"Finanzen & Versicherungen";"Versicherungen";"Finanzen & Versicherungen / Versicherungen";;;"005";"Lastschrifteinzug";"20230901-25695363850";"MXSCPRD218KMQG2";"DE98ZZZ00000065426"
287;DE16500105175407875231;05.09.2023;05.09.2023;-32,48;EUR;"Amazon Payments Europe S.C.A.";;;"305.4869728.1489910 AMZN Mktp DE 2FNWN0O6YA5MS8H9";"Lebenshaltung";"Shopping";"Lebenshaltung / Shopping";;;"005";"Lastschrifteinzug";"2FNWN0O6YA5MS8H9";"rOxHdfurPFKHn)Aq(.XhjI6?SxR+8m";"DE94ZZZ00000561653"
288;DE16500105175407875231;05.09.2023;05.09.2023;-13,90;EUR;"Netto Marken-Discoun";;;"NETTO MARKEN.DISCOU//MOEMBRIS/DE 2023.09.04T12.34.13 Folgenr.000 Verfalld.2026.12";"Lebenshaltung";"Lebensmittel";"Lebenshaltung / Lebensmittel";;;"005";"Lastschrifteinzug";"65375640180864040923123413";"123501";"DE61ZZZ00000018368"
289;DE16500105175407875231;05.09.2023;05.09.2023;-13,20;EUR;"Getraenke Sittinger";;;"GETRAENKE SITTINGER//Alzenau/DE 2023.09.04T18.12.10 Folgenr.000 Verfalld.2026.12";"Lebenshaltung";"Lebensmittel";"Lebenshaltung / Lebensmittel";;;"005";"Lastschrifteinzug";"55579770165315040923181210";"181218";"DE18ZZZ00000276192"
290;DE16500105175407875231;04.09.2023;04.09.2023;-0,99;EUR;"Ing";;;"Girocard 260006800102Monatliches Entgeltgirocard (Debitkarte)";"Finanzen & Versicherungen";"Bankgebühren";"Finanzen & Versicherungen / Bankgebühren";;;"027";"Entgelt";;;
291;DE16500105175407875231;04.09.2023;04.09.2023;-0,99;EUR;"Ing";;;"Girocard 260006683584Monatliches Entgeltgirocard (Debitkarte)";"Finanzen & Versicherungen";"Bankgebühren";"Finanzen & Versicherungen / Bankgebühren";;;"027";"Entgelt";;;
292;DE16500105175407875231;04.09.2023;04.09.2023;-893,57;EUR;"VW-Bank";;;"11876525 Alz.Gg66 13 09 23";"Mobilität";"Auto & Motorrad";"Mobilität / Auto & Motorrad";;;"005";"Lastschrifteinzug";"KKFV1187652520230828013140123176008";"041600118765250001";"DE85BNK00000072741"
293;DE16500105175407875231;04.09.2023;04.09.2023;-52,00;EUR;"Markt Moembris - 3 Buergerbuero";;;"Markt Moembris . 3 Buergerbuero//Moembris/DE 2023.08.31T10.19.17 Folgenr.000 Verfalld.2026.12";"Staat & Behörde";"Amts- & Verwaltungsgebühren";"Staat & Behörde / Amts- & Verwaltungsgebühren";;;"005";"Lastschrifteinzug";"55716216002205310823101917";"101928";"DE20ZZZ00000055578"
294;DE16500105175407875231;04.09.2023;04.09.2023;-39,00;EUR;"Opel Zoo";;;"OPEL ZOO//Kronberg im Taunus/DE 2023.09.02T10.48.27 Folgenr.001 Verfalld.2026.12";"Freizeit & Unterhaltung";"Ausflüge & Aktivität";"Freizeit & Unterhaltung / Ausflüge & Aktivität";;;"005";"Lastschrifteinzug";"55602802078695020923104827";"104944";"DE89ZZZ00000366773"
295;DE16500105175407875231;04.09.2023;04.09.2023;-33,90;EUR;"Esso Station";;;"ESSO STATION//Moembris/DE 2023.09.03T10.16.00 Folgenr.000 Verfalld.2026.12";"Mobilität";"Tank- & Ladestelle";"Mobilität / Tank- & Ladestelle";;;"005";"Lastschrifteinzug";"78100352150829030923101600";"101616";"DE16E0100000020245"
296;DE16500105175407875231;04.09.2023;04.09.2023;-32,68;EUR;"Esso Station";;;"ESSO STATION//Moembris/DE 2023.09.01T10.37.14 Folgenr.000 Verfalld.2026.12";"Mobilität";"Tank- & Ladestelle";"Mobilität / Tank- & Ladestelle";;;"005";"Lastschrifteinzug";"78100352149981010923103714";"103730";"DE16E0100000020245"
297;DE16500105175407875231;04.09.2023;04.09.2023;-29,68;EUR;"tegut... gute Lebens";;;"TEGUT SAGT DANKE//Johannesberg/DE 2023.09.03T17.41.12 Folgenr.001 Verfalld.2026.12";"Lebenshaltung";"Lebensmittel";"Lebenshaltung / Lebensmittel";;;"005";"Lastschrifteinzug";"60376484028227030923174112";"174153";"DE50ZZZ00000379697"
298;DE16500105175407875231;01.09.2023;01.09.2023;-7,90;EUR;"Nurnberger Krankenversicherung Aktiengesellschaft";;;"5134538 Nkv Krankenvers. / 01.09.2023 7,90";"Finanzen & Versicherungen";"Versicherungen";"Finanzen & Versicherungen / Versicherungen";;;"005";"Lastschrifteinzug";"2323618300514";"0210090000051345382018001";"DE14ZZZ00000057335"
299;DE16500105175407875231;01.09.2023;01.09.2023;-7,77;EUR;"SG-VR Payment GmbH";;;"Goy Systemgastronomie GmbH//ASCHAFFENBURG/DE 2023.08.30T20.03.54 Folgenr.001 Verfalld.2026.12";"Lebenshaltung";"Gastronomie";"Lebenshaltung / Gastronomie";;;"005";"Lastschrifteinzug";"52055962003475300823200354";"200435";"DE47ZZZ00000072455"
300;DE16500105175407875231;01.09.2023;01.09.2023;-68,15;EUR;"VOLKSWOHL BUND Lebensversicherung a.G.";;;"008768131 La000528869/ 008768131 Risiko 68,15";"Finanzen & Versicherungen";"Versicherungen";"Finanzen & Versicherungen / Versicherungen";;;"005";"Lastschrifteinzug";"008768131/NVMA.G1044-254717";"LA000528869";"DE13ZZZ00000141064"
301;DE16500105175407875231;01.09.2023;01.09.2023;-57,41;EUR;"Allianz Lebensvers.";;;"Vertrag AL.0043152366 01.09.23 . 30.09.23 StartPolice";"Finanzen & Versicherungen";"Versicherungen";"Finanzen & Versicherungen / Versicherungen";;;"005";"Lastschrifteinzug";"AB223241-E01367866";"LA01L312001056217739";"DE07ZZZ00000063475"
302;DE16500105175407875231;01.09.2023;01.09.2023;-56,78;EUR;"Netto Marken-Discoun";;;"NETTO MARKEN.DISCOU//MOEMBRIS/DE 2023.08.31T16.53.26 Folgenr.001 Verfalld.2026.12";"Lebenshaltung";"Lebensmittel";"Lebenshaltung / Lebensmittel";;;"005";"Lastschrifteinzug";"65375639583973310823165326";"165337";"DE61ZZZ00000018368"
303;DE16500105175407875231;01.09.2023;01.09.2023;-28,00;EUR;"Christina Stieber";;;"Tanzschule Alzenau Smilla KreativerKindertanz";"Freizeit & Unterhaltung";"Sport";"Freizeit & Unterhaltung / Sport";;;"005";"Lastschrifteinzug";;"3003";"DE84ZZZ00000624883"
304;DE16500105175407875231;01.09.2023;01.09.2023;-278,01;EUR;"VOLKSWOHL BUND Lebensversicherung a.G.";;;"009984035 La000528870/ 009984035 Rente 278,01";"Finanzen & Versicherungen";"Versicherungen";"Finanzen & Versicherungen / Versicherungen";;;"005";"Lastschrifteinzug";"009984035/NVMA.G1044-254718";"LA000528870";"DE13ZZZ00000141064"
305;DE16500105175407875231;01.09.2023;01.09.2023;-21,24;EUR;"Allianz Versicherungs-AG";;;"90/0542/2946744 Unfall Pr";"Finanzen & Versicherungen";"Versicherungen";"Finanzen & Versicherungen / Versicherungen";;;"005";"Lastschrifteinzug";"A1923237-01092023082590038093";"ADAGSFF0000000344810";"DE10ZZZ00000051878"
306;DE16500105175407875231;01.09.2023;01.09.2023;-166,97;EUR;"AXA Krankenversicherung AG";;;"Krankenvers. 4958423794 BTR. 09/23166,97. EUR";"Finanzen & Versicherungen";"Versicherungen";"Finanzen & Versicherungen / Versicherungen";;;"005";"Lastschrifteinzug";"675024388220/0003";"21053190502";"DE23G0100000066097"
307;DE16500105175407875231;01.09.2023;01.09.2023;-15,90;EUR;"Dm Drogeriemarkt Sagt Danke";;;"DM FIL.1654 H.65440//MOEMBRIS/DE 2023.08.31T09.43.56 Folgenr.000 Verfalld.2026.12";"Lebenshaltung";"Körperpflege & Wellness";"Lebenshaltung / Körperpflege & Wellness";;;"005";"Lastschrifteinzug";"65440351506094310823094356";"094411";"DE32ZZZ00000500592"
308;DE16500105175407875231;01.09.2023;01.09.2023;-15,98;EUR;"SG-VR Payment GmbH";;;"Burger King Aschaffenburg//ASCHAFFENBURG/DE 2023.08.30T20.01.26 Folgenr.001 Verfalld.2026.12";"Lebenshaltung";"Gastronomie";"Lebenshaltung / Gastronomie";;;"005";"Lastschrifteinzug";"64051748058122300823200126";"200141";"DE47ZZZ00000072455"
309;DE16500105175407875231;31.08.2023;31.08.2023;295,32;EUR;"Heinrich Rudolf Kirchner Handelsges. Vertriebs-KG";;;"Rg.Nr. R181318";;;;;;"051";"Gutschrift";"CT-1-31.08.2023";;
310;DE16500105175407875231;31.08.2023;31.08.2023;-9,90;EUR;"Ossis Angelladen";;;"Ossis Angelladen GIR 69095099//ASCHAFFENBURG/DE 2023.08.30T17.25.32 Folgenr.001 Verfalld.2026.12";;;;;;"005";"Lastschrifteinzug";"69095099672147300823172532";"172611";"DE82CC000000346626"
311;DE16500105175407875231;31.08.2023;31.08.2023;-85,00;EUR;"PayPal Europe S.a.r.l. et Cie S.C.A";;;"1029079335984 PP.5629.PP . , Ihr Einkauf bei";"Lebenshaltung";"Shopping";"Lebenshaltung / Shopping";;;"005";"Lastschrifteinzug";"1029079335984";"474J224N243DU";"LU96ZZZ0000000000000000058"
312;DE16500105175407875231;30.08.2023;30.08.2023;85,00;EUR;"PayPal Europe S.a.r.l. et Cie S.C.A";;;". PAYPAL.ZAHLUNG UBER LASTSCHRIFT an christophklein78.t.online.de ABBUCHUNG VOM PAYPAL.KONTO";"Finanzen & Versicherungen";"Umbuchung";"Finanzen & Versicherungen / Umbuchung";;;"051";"Gutschrift";"YYW1029079308337";;
313;DE16500105175407875231;30.08.2023;30.08.2023;2.919,48;EUR;"LA BOTTEGA TOSCANA Jens Hofacker e.K.";;;"lfd. Gehalt LabottegaToscana";"Finanzen & Versicherungen";"Lohn & Gehalt";"Finanzen & Versicherungen / Lohn & Gehalt";;;"052";"Gutschrift aus Dauerauftrag";;;
314;DE16500105175407875231;30.08.2023;30.08.2023;1.500,00;EUR;"Tanja Gehringer";;;"umbuchung";"Finanzen & Versicherungen";"Umbuchung";"Finanzen & Versicherungen / Umbuchung";;;"051";"Gutschrift";;;
315;DE16500105175407875231;30.08.2023;30.08.2023;-320,31;EUR;"Gehringer";;;"Ing.Diba Ag 5324019888 30.08.2023";;;;;;"005";"Lastschrifteinzug";;;
316;DE16500105175407875231;30.08.2023;30.08.2023;-18,10;EUR;"Aral Ag";;;"ARAL Gie.en Schiffenberger Weg 68//Gie.en/DE 2023.08.29T18.01.51 Folgenr.000 Verfalld.2026.12";"Mobilität";"Tank- & Ladestelle";"Mobilität / Tank- & Ladestelle";;;"005";"Lastschrifteinzug";"71110355126977290823180151";"180157";"DE79ZZZ00000465117"
317;DE16500105175407875231;29.08.2023;29.08.2023;-99,11;EUR;"Esso Station";;;"ESSO STATION//Moembris/DE 2023.08.28T16.28.24 Folgenr.001 Verfalld.2026.12";"Mobilität";"Tank- & Ladestelle";"Mobilität / Tank- & Ladestelle";;;"005";"Lastschrifteinzug";"78100352148436280823162824";"162841";"DE16E0100000020245"
318;DE16500105175407875231;29.08.2023;29.08.2023;-8,99;EUR;"Amazon Eu S.A R.L., Niederlassung Deutschland";;;"D01.0629140.8536606 AMZNPrime DE 7HA8PMJJUKRHF0EO";"Lebenshaltung";"Shopping";"Lebenshaltung / Shopping";;;"005";"Lastschrifteinzug";"7HA8PMJJUKRHF0EO";"rOxHdfurPFKHn)Aq(.XhjI6?SxR+8m";"DE24ZZZ00000561652"
319;DE16500105175407875231;29.08.2023;29.08.2023;-10,00;EUR;"PayPal (Europe) S.a r.l. etCie, S.C.A.";;;"1029008408454 PP.5629.PP . , Ihr Einkauf bei";"Lebenshaltung";"Shopping";"Lebenshaltung / Shopping";;;"005";"Lastschrifteinzug";"1029008408454PP.5629.PP PAYPAL";"474J224N243DU";"LU96ZZZ0000000000000000058"
320;DE16500105175407875231;29.08.2023;29.08.2023;-10,00;EUR;"PayPal Europe S.a.r.l. et Cie S.C.A";;;"1029031022006 PP.5629.PP . IONOS SE, Ihr Einkauf bei IONOS SE";"Lebenshaltung";"Shopping";"Lebenshaltung / Shopping";;;"005";"Lastschrifteinzug";"1029031022006";"474J224N243DU";"LU96ZZZ0000000000000000058"
321;DE16500105175407875231;28.08.2023;28.08.2023;-0,99;EUR;"PayPal Europe S.a.r.l. et Cie S.C.A";;;"1028988674154 PP.5629.PP . Apple Services, Ihr Einkauf bei Apple Services";"Lebenshaltung";"Shopping";"Lebenshaltung / Shopping";;;"005";"Lastschrifteinzug";"1028988674154";"474J224N243DU";"LU96ZZZ0000000000000000058"
322;DE16500105175407875231;28.08.2023;28.08.2023;-73,82;EUR;"REWE-Markt Stoll G";;;"REWE SAGT DANKE. 44652365//Langenselbold/DE 2023.08.25T14.38.06 Folgenr.000 Verfalld.2026.12";"Lebenshaltung";"Lebensmittel";"Lebenshaltung / Lebensmittel";;;"005";"Lastschrifteinzug";"56043012070147250823143806";"143759";"DE16RPA00000020245"
323;DE16500105175407875231;28.08.2023;28.08.2023;-46,87;EUR;"REWE-Markt Stoll G";;;"REWE SAGT DANKE. 44652365//Langenselbold/DE 2023.08.26T17.27.27 Folgenr.000 Verfalld.2026.12";"Lebenshaltung";"Lebensmittel";"Lebenshaltung / Lebensmittel";;;"005";"Lastschrifteinzug";"56042739199514260823172727";"172905";"DE16RPA00000020245"
324;DE16500105175407875231;28.08.2023;28.08.2023;-42,99;EUR;"REWE-Markt Stoll G";;;"REWE SAGT DANKE. 44652365//Langenselbold/DE 2023.08.25T19.07.01 Folgenr.000 Verfalld.2026.12";"Lebenshaltung";"Lebensmittel";"Lebenshaltung / Lebensmittel";;;"005";"Lastschrifteinzug";"56042739199292250823190701";"190836";"DE16RPA00000020245"
325;DE16500105175407875231;28.08.2023;28.08.2023;-40,24;EUR;"Lidl Dienstleistung Gmbh Und Co Kg";;;"LIDL DIENSTLEISTUNG GMBH UND CO KG//Alzenau/DE 2023.08.25T10.14.51 Folgenr.001 Verfalld.2026.12";"Lebenshaltung";"Lebensmittel";"Lebenshaltung / Lebensmittel";;;"005";"Lastschrifteinzug";"6015875602729725082310145102805926";"101510";"DE73DAB00000052684"
326;DE16500105175407875231;28.08.2023;28.08.2023;-34,60;EUR;"Esso Station";;;"ESSO STATION//Moembris/DE 2023.08.25T11.33.20 Folgenr.000 Verfalld.2026.12";"Mobilität";"Tank- & Ladestelle";"Mobilität / Tank- & Ladestelle";;;"005";"Lastschrifteinzug";"78100352147176250823113320";"113337";"DE16E0100000020245"
327;DE16500105175407875231;28.08.2023;28.08.2023;-31,33;EUR;"REWE-Markt Stoll G";;;"REWE SAGT DANKE. 44652365//Langenselbold/DE 2023.08.25T14.38.35 Folgenr.000 Verfalld.2026.12";"Lebenshaltung";"Lebensmittel";"Lebenshaltung / Lebensmittel";;;"005";"Lastschrifteinzug";"56043012070148250823143835";"143830";"DE16RPA00000020245"
328;DE16500105175407875231;28.08.2023;28.08.2023;-21,00;EUR;"First Data GmbH";;;"SumUp .123 Kiosk Alze//Alzenau/DE/02023.08.25T09.57.13 Folgenr.001 Verfalld.2026.12";;;;;;"014";"Abbuchung";"FDA3M4DF3Q6";"095722";"DE97CBD00000030136"
329;DE16500105175407875231;28.08.2023;28.08.2023;-17,95;EUR;"REWE-Markt Stoll G";;;"REWE SAGT DANKE. 44652148//Langenselbold/DE 2023.08.26T17.44.24 Folgenr.000 Verfalld.2026.12";"Lebenshaltung";"Lebensmittel";"Lebenshaltung / Lebensmittel";;;"005";"Lastschrifteinzug";"56033514778837260823174424";"174712";"DE16RPA00000020245"
330;DE16500105175407875231;25.08.2023;25.08.2023;-9,35;EUR;"REWE Kornelius Gol";;;"REWE SAGT DANKE. 44652172//Moembris/DE 2023.08.24T11.46.29 Folgenr.001Verfalld.2026.12";"Lebenshaltung";"Lebensmittel";"Lebenshaltung / Lebensmittel";;;"005";"Lastschrifteinzug";"56026269157719240823114629";"114641";"DE16RPA00000020245"
331;DE16500105175407875231;25.08.2023;25.08.2023;-67,31;EUR;"Netto Marken-Discoun";;;"NETTO MARKEN.DISCOU//MOEMBRIS/DE 2023.08.24T12.17.01 Folgenr.001 Verfalld.2026.12";"Lebenshaltung";"Lebensmittel";"Lebenshaltung / Lebensmittel";;;"005";"Lastschrifteinzug";"65375640180297240823121701";"121802";"DE61ZZZ00000018368"
332;DE16500105175407875231;25.08.2023;25.08.2023;-43,83;EUR;"Legoland Resort";;;"Elv54285331 23.08 16.56 Me0";;;;;;"005";"Lastschrifteinzug";"T023082354285331191227";"5428533107722308231656";"DE91SCL00000000756"
333;DE16500105175407875231;25.08.2023;25.08.2023;-3,95;EUR;"SCHUFA Holding AG";;;"Kunde.7008178893,Bestellung.0017813168,Rechnung.501013313291";;;;;;"005";"Lastschrifteinzug";;"000005596370";"DE87ZZZ00000239351"
334;DE16500105175407875231;25.08.2023;25.08.2023;-16,75;EUR;"Dm Drogeriemarkt Sagt Danke";;;"DM FIL.1654 H.65440//MOEMBRIS/DE 2023.08.24T11.53.47 Folgenr.001 Verfalld.2026.12";"Lebenshaltung";"Körperpflege & Wellness";"Lebenshaltung / Körperpflege & Wellness";;;"005";"Lastschrifteinzug";"65440350430769240823115347";"115357";"DE32ZZZ00000500592"
335;DE16500105175407875231;25.08.2023;25.08.2023;-14,70;EUR;"Legoland Resort";;;"Elv54250310 22.08 20.54 Me0";;;;;;"005";"Lastschrifteinzug";"T023082254250310019118";"5425031038172308222054";"DE91SCL00000000756"
336;DE16500105175407875231;24.08.2023;24.08.2023;-85,00;EUR;"PayPal (Europe) S.a r.l. etCie, S.C.A.";;;"1028949749726 PP.5629.PP . PAYPAL.ZAHLUNG UBER LASTSCHRIFT an christophklein78.t.online.de";"Lebenshaltung";"Shopping";"Lebenshaltung / Shopping";;;"005";"Lastschrifteinzug";"1028949749726PP.5629.PP PAYPAL";"474J224N243DU";"LU96ZZZ0000000000000000058"
337;DE16500105175407875231;24.08.2023;24.08.2023;-299,99;EUR;"PayPal Europe S.a.r.l. et Cie S.C.A";;;"1028949275540 PP.5629.PP . DAZN DACH GmbH, Ihr Einkauf bei DAZN DACH GmbH";"Lebenshaltung";"Handy & Internet";"Lebenshaltung / Handy & Internet";;;"005";"Lastschrifteinzug";"1028949275540";"474J224N243DU";"LU96ZZZ0000000000000000058"
338;DE16500105175407875231;24.08.2023;24.08.2023;-22,20;EUR;"Legoland Freizeit";;;"Elv54213246 22.08 14.34 Me0";;;;;;"005";"Lastschrifteinzug";"T023082254213246073065";"5421324692542308221434";"DE91SCL00000000756"
339;DE16500105175407875231;24.08.2023;24.08.2023;-14,70;EUR;"Legoland Resort";;;"Elv54367320 22.08 20.00 Me0";;;;;;"005";"Lastschrifteinzug";"T023082254367320005809";"5436732007622308222000";"DE91SCL00000000756"
340;DE16500105175407875231;23.08.2023;23.08.2023;-19,17;EUR;"Concardis GmbH";;;"BACKHAUS BICKERT 54 GIR 79940201//KLEINOSTHEIM/DE 2023.08.22T07.49.45Folgenr.000 Verfalld.2026.12";"Lebenshaltung";"Lebensmittel";"Lebenshaltung / Lebensmittel";;;"005";"Lastschrifteinzug";"79940201053911220823074945";"074949";"DE82CC100000346626"
341;DE16500105175407875231;23.08.2023;23.08.2023;-18,75;EUR;"REWE-Markt Roesel oHG";;;"REWE SAGT DANKE. 44652103//Kleinostheim/DE 2023.08.22T07.46.56 Folgenr.000 Verfalld.2026.12";"Lebenshaltung";"Lebensmittel";"Lebenshaltung / Lebensmittel";;;"005";"Lastschrifteinzug";"56021776382963220823074656";"074714";"DE16RPA00000020245"
342;DE16500105175407875231;22.08.2023;22.08.2023;-78,29;EUR;"Netto Marken-Discoun";;;"NETTO MARKEN.DISCOU//MOEMBRIS/DE 2023.08.21T19.13.32 Folgenr.000 Verfalld.2026.12";"Lebenshaltung";"Lebensmittel";"Lebenshaltung / Lebensmittel";;;"005";"Lastschrifteinzug";"65375639581722210823191332";"191338";"DE61ZZZ00000018368"
343;DE16500105175407875231;22.08.2023;22.08.2023;-10,00;EUR;"SG-VR Payment GmbH";;;"Willi Weber GmbH + Co. KG//DIEBURG/DE 2023.08.21T16.46.37 Folgenr.000Verfalld.2026.12";;;;;;"005";"Lastschrifteinzug";"64175712001078210823164637";"164836";"DE47ZZZ00000072455"
344;DE16500105175407875231;21.08.2023;21.08.2023;-6,99;EUR;"PayPal Europe S.a.r.l. et Cie S.C.A";;;"1028861713433 PP.5629.PP . Microsoft Payments, Ihr Einkauf bei Microsoft Payments";"Freizeit & Unterhaltung";"Medien";"Freizeit & Unterhaltung / Medien";;;"005";"Lastschrifteinzug";"1028861713433";"474J224N243DU";"LU96ZZZ0000000000000000058"
345;DE16500105175407875231;21.08.2023;21.08.2023;-53,95;EUR;"Sparkasse Aschaffenburg-Alzenau";;;"KARLS.R1//SPARKASSE ASCHAFFENBURG.ALZENAU/DE 2023.08.19T09.02.12 Folgenr.000 Verfalld.2026.12 Entgelt 3,95EUR";;;;;;"005";"Lastschrifteinzug";"00002014203958190823090212";"090225";"DE80GAA00000085247"
346;DE16500105175407875231;21.08.2023;21.08.2023;-30,38;EUR;"Nah Und Gut Conrad";;;"CARMEN CONRAD E.K.//KARLSTEIN A. MAIN/DE 2023.08.19T08.59.12 Folgenr.000 Verfalld.2026.12";"Lebenshaltung";"Lebensmittel";"Lebenshaltung / Lebensmittel";;;"005";"Lastschrifteinzug";"54513360345645190823085912";"085923";"DE02ZZZ00002314935"
347;DE16500105175407875231;21.08.2023;21.08.2023;-124,79;EUR;"Unicredit W/ Total";;;"TOTAL Service Station//KARLSTEIN/DE2023.08.18T20.35.36 Folgenr.000 Verfalld.2026.12";"Mobilität";"Tank- & Ladestelle";"Mobilität / Tank- & Ladestelle";;;"005";"Lastschrifteinzug";"54706198048220180823203536";"203545";"DE28MTO00000009650"
348;DE16500105175407875231;21.08.2023;21.08.2023;-113,07;EUR;"Worldline Sweden AB fuer Shell";;;"SHELL 8601// Lauterbach /DE 2023.08.20T11.01.10 Folgenr.001 Verfalld.2026.12";"Mobilität";"Tank- & Ladestelle";"Mobilität / Tank- & Ladestelle";;;"005";"Lastschrifteinzug";"70018366337424200823110110";"110121";"SE917375565480026"
349;DE16500105175407875231;18.08.2023;18.08.2023;-8,10;EUR;"Aral Ag";;;"ARAL Kahl Forststra.e 3 . 5//Kahl/DE 2023.08.17T13.54.22 Folgenr.000 Verfalld.2026.12";"Mobilität";"Tank- & Ladestelle";"Mobilität / Tank- & Ladestelle";;;"005";"Lastschrifteinzug";"71113775110145170823135422";"135429";"DE79ZZZ00000465117"
350;DE16500105175407875231;18.08.2023;18.08.2023;-49,03;EUR;"Aral Ag";;;"ARAL Kahl Forststra.e 3 . 5//Kahl/DE 2023.08.17T13.53.37 Folgenr.000 Verfalld.2026.12";"Mobilität";"Tank- & Ladestelle";"Mobilität / Tank- & Ladestelle";;;"005";"Lastschrifteinzug";"71113775110143170823135337";"135343";"DE79ZZZ00000465117"
351;DE16500105175407875231;17.08.2023;17.08.2023;-36,99;EUR;"freenet ehemals mobilcom-debitel";;;"Kd.1115915714 Wir sagen Danke. RG.Nr.P23009272044 36,99 EUR";"Lebenshaltung";"Handy & Internet";"Lebenshaltung / Handy & Internet";;;"005";"Lastschrifteinzug";"1115915714/124822614435";"DL-1115915714-000001";"DE43ZZZ00000074855"
352;DE16500105175407875231;15.08.2023;15.08.2023;-6,00;EUR;"PayPal Europe S.a.r.l. et Cie S.C.A";;;"1028747136819 PP.5629.PP . HD PLUSGmbH, Ihr Einkauf bei HD PLUS GmbH";"Lebenshaltung";"Handy & Internet";"Lebenshaltung / Handy & Internet";;;"005";"Lastschrifteinzug";"1028747136819";"474J224N243DU";"LU96ZZZ0000000000000000058"
353;DE16500105175407875231;15.08.2023;15.08.2023;-55,08;EUR;"ARD ZDF DRadio Beitragsservice";;;"Rundfunk 07.2023 . 09.2023 Beitragsnr. 567341426 Aenderungen ganz bequem. www.rundfunkbeitrag.de";"Staat & Behörde";"Rundfunkbeitrag";"Staat & Behörde / Rundfunkbeitrag";;;"005";"Lastschrifteinzug";"5673414262023081600435033";"5673414261301";"DE3000100000001272"
354;DE16500105175407875231;15.08.2023;15.08.2023;-121,34;EUR;"Esso Station";;;"ESSO STATION//Cuxhaven/DE 2023.08.14T11.59.10 Folgenr.001 Verfalld.2026.12";"Mobilität";"Tank- & Ladestelle";"Mobilität / Tank- & Ladestelle";;;"005";"Lastschrifteinzug";"78101413648152140823115910";"120002";"DE16E0100000020245"
355;DE16500105175407875231;14.08.2023;14.08.2023;-8,00;EUR;"SG-VR Payment GmbH";;;"Willi Weber GmbH + Co. KG//DIEBURG/DE 2023.08.11T23.25.55 Folgenr.000Verfalld.2026.12";;;;;;"005";"Lastschrifteinzug";"64156491003624110823232555";"232809";"DE47ZZZ00000072455"
356;DE16500105175407875231;14.08.2023;14.08.2023;-200,00;EUR;"ING-DiBa-AG";;;"GA ING.DiBa AG//KURVERW. D/DE 2023.08.13T18.09.20 Folgenr.001 Verfalld.2026.12";"Finanzen & Versicherungen";"Geldautomat";"Finanzen & Versicherungen / Geldautomat";;;"005";"Lastschrifteinzug";"36909231003324130823180920";"180934";"DE65ING00000011894"
357;DE16500105175407875231;14.08.2023;14.08.2023;-203,95;EUR;"Sparkasse Aschaffenburg-Alzenau";;;"KARLS.R1//SPARKASSE ASCHAFFENBURG.ALZENAU/DE 2023.08.11T20.08.08 Folgenr.000 Verfalld.2026.12 Entgelt 3,95EUR";;;;;;"005";"Lastschrifteinzug";"00002014202576110823200808";"200819";"DE80GAA00000085247"
358;DE16500105175407875231;14.08.2023;14.08.2023;-10,00;EUR;"SG-VR Payment GmbH";;;"Willi Weber GmbH + Co. KG//DIEBURG/DE 2023.08.13T20.59.20 Folgenr.000Verfalld.2026.12";;;;;;"005";"Lastschrifteinzug";"64156491003832130823205920";"210141";"DE47ZZZ00000072455"
359;DE16500105175407875231;14.08.2023;14.08.2023;-10,00;EUR;"SG-VR Payment GmbH";;;"Willi Weber GmbH + Co. KG//DIEBURG/DE 2023.08.11T23.25.37 Folgenr.000Verfalld.2026.12";;;;;;"005";"Lastschrifteinzug";"64156491003621110823232537";"232751";"DE47ZZZ00000072455"
360;DE16500105175407875231;14.08.2023;14.08.2023;-10,00;EUR;"SG-VR Payment GmbH";;;"Willi Weber GmbH + Co. KG//DIEBURG/DE 2023.08.11T23.26.33 Folgenr.000Verfalld.2026.12";;;;;;"005";"Lastschrifteinzug";"64156491003630110823232633";"232847";"DE47ZZZ00000072455"
361;DE16500105175407875231;14.08.2023;14.08.2023;-10,00;EUR;"SG-VR Payment GmbH";;;"Willi Weber GmbH + Co. KG//DIEBURG/DE 2023.08.11T23.26.13 Folgenr.000Verfalld.2026.12";;;;;;"005";"Lastschrifteinzug";"64156491003627110823232613";"232826";"DE47ZZZ00000072455"
362;DE16500105175407875231;14.08.2023;14.08.2023;-16,90;EUR;"Amazon Payments Europe S.C.A.";;;"302.0858618.6651527 AMZN Mktp DE 40G2CSDKL8WI276F";"Lebenshaltung";"Shopping";"Lebenshaltung / Shopping";;;"005";"Lastschrifteinzug";"40G2CSDKL8WI276F";"rOxHdfurPFKHn)Aq(.XhjI6?SxR+8m";"DE94ZZZ00000561653"
363;DE16500105175407875231;11.08.2023;11.08.2023;750,00;EUR;"La Bottega Toscana J. Hofacker e.K.";;;"Inflationsausgleich praemie";;;;;;"051";"Gutschrift";;;
364;DE16500105175407875231;11.08.2023;11.08.2023;-3,50;EUR;"Lastschrift aus Kartenzahlung";;;"Automat Der Dorfmetzger//Wiesen/DE2023.08.09T17.03.09 Folgenr.000 Verfalld.2026.12";;;;;;"005";"Lastschrifteinzug";"51508843004686090823170309";"170311";"DE13ZZZ00000377841"
365;DE16500105175407875231;11.08.2023;11.08.2023;-3,50;EUR;"Lastschrift aus Kartenzahlung";;;"Automat Der Dorfmetzger//Wiesen/DE2023.08.09T17.02.12 Folgenr.000 Verfalld.2026.12";;;;;;"005";"Lastschrifteinzug";"51508843004684090823170212";"170214";"DE13ZZZ00000377841"
366;DE16500105175407875231;10.08.2023;10.08.2023;-99,66;EUR;"ALDI GmbH + Co. KG WEYHE";;;"ALDI SAGT DANKE 07 077//Dorum/DE 2023.08.09T18.03.01 Folgenr.001 Verfalld.2026.12";"Lebenshaltung";"Lebensmittel";"Lebenshaltung / Lebensmittel";;;"005";"Lastschrifteinzug";"54410802144343090823180301";"180318";"DE12ZZZ00001642060"
367;DE16500105175407875231;10.08.2023;10.08.2023;-5,99;EUR;"Amazon Digital Germany Gmbh";;;"D01.0401450.5592652 Prime Video Channels 61TJX70H2C98QEDV";"Freizeit & Unterhaltung";"Streaming";"Freizeit & Unterhaltung / Streaming";;;"005";"Lastschrifteinzug";"61TJX70H2C98QEDV";"rOxHdfurPFKHn)Aq(.XhjI6?SxR+8m";"DE96ZZZ00000594888"
368;DE16500105175407875231;10.08.2023;10.08.2023;-19,90;EUR;"Aral Ag";;;"ARAL Kahl Forststra.e 3 . 5//Kahl/DE 2023.08.09T17.36.34 Folgenr.000 Verfalld.2026.12";"Mobilität";"Tank- & Ladestelle";"Mobilität / Tank- & Ladestelle";;;"005";"Lastschrifteinzug";"71113775104113090823173634";"173642";"DE79ZZZ00000465117"
369;DE16500105175407875231;10.08.2023;10.08.2023;-17,36;EUR;"Metzgerei Hellenthal";;;"METZGEREI HELLENTHAL//Alzenau/DE 2023.08.09T17.23.15 Folgenr.000 Verfalld.2026.12";"Lebenshaltung";"Lebensmittel";"Lebenshaltung / Lebensmittel";;;"005";"Lastschrifteinzug";"55789396014450090823172315";"172328";"DE53ZZZ00002412375"
370;DE16500105175407875231;09.08.2023;09.08.2023;-73,90;EUR;"Die Haftpflichtkasse VVaG";;;"57086168 / Haftpflicht Beitrag 09.08.23 . meine.hk.de . Jetzt anmeldenund Rechnung herunterladen.";"Finanzen & Versicherungen";"Versicherungen";"Finanzen & Versicherungen / Versicherungen";;;"005";"Lastschrifteinzug";"HKBID45799361";"HK-MN-57086168-01";"DE73HK000000020189"
371;DE16500105175407875231;09.08.2023;09.08.2023;-52,89;EUR;"Amazon Payments Europe S.C.A.";;;"302.4335311.2385104 AMZN Mktp DE 7EMPTLZY7FH2URFL";"Lebenshaltung";"Shopping";"Lebenshaltung / Shopping";;;"005";"Lastschrifteinzug";"7EMPTLZY7FH2URFL";"rOxHdfurPFKHn)Aq(.XhjI6?SxR+8m";"DE94ZZZ00000561653"
372;DE16500105175407875231;09.08.2023;09.08.2023;-169,55;EUR;"Esso Station";;;"ESSO STATION//Moembris/DE 2023.08.08T08.12.23 Folgenr.000 Verfalld.2026.12";"Mobilität";"Tank- & Ladestelle";"Mobilität / Tank- & Ladestelle";;;"005";"Lastschrifteinzug";"78100352140402080823081223";"081317";"DE16E0100000020245"
373;DE16500105175407875231;08.08.2023;08.08.2023;-74,00;EUR;"PT Sports GmbH";"DE50720518400040503724";"BYLADEM1GZK";"20231447";;;;;;"020";"Überweisung";;;
374;DE16500105175407875231;08.08.2023;08.08.2023;-43,42;EUR;"Esso Station";;;"ESSO STATION//Moembris/DE 2023.08.07T09.31.15 Folgenr.001 Verfalld.2026.12";"Mobilität";"Tank- & Ladestelle";"Mobilität / Tank- & Ladestelle";;;"005";"Lastschrifteinzug";"78100352140023070823093115";"093212";"DE16E0100000020245"
375;DE16500105175407875231;07.08.2023;07.08.2023;-9,69;EUR;"REWE Kornelius Gol";;;"REWE SAGT DANKE. 44652171//Moembris/DE 2023.08.05T14.55.57 Folgenr.000Verfalld.2026.12";"Lebenshaltung";"Lebensmittel";"Lebenshaltung / Lebensmittel";;;"005";"Lastschrifteinzug";"56026222392181050823145557";"145630";"DE16RPA00000020245"
376;DE16500105175407875231;07.08.2023;07.08.2023;-7,78;EUR;"Aral Ag";;;"ARAL M.mbris Kahlgrundstra.e 137//M.mbris/DE 2023.08.04T11.00.39 Folgenr.000 Verfalld.2026.12";"Mobilität";"Tank- & Ladestelle";"Mobilität / Tank- & Ladestelle";;;"005";"Lastschrifteinzug";"71114643093013040823110039";"110041";"DE79ZZZ00000465117"
377;DE16500105175407875231;07.08.2023;07.08.2023;-67,98;EUR;"Fressnapf Alzenau 2861";;;"Elv61702868 03.08 14.05 Me0";"Lebenshaltung";"Haustier";"Lebenshaltung / Haustier";;;"005";"Lastschrifteinzug";"IC-14936956122";"6170286892132308031405";"DE81ZZZ00001614725"
378;DE16500105175407875231;07.08.2023;07.08.2023;-37,55;EUR;"Nah Und Gut Conrad";;;"CARMEN CONRAD E.K.//KARLSTEIN A. MAIN/DE 2023.08.04T18.37.14 Folgenr.000 Verfalld.2026.12";"Lebenshaltung";"Lebensmittel";"Lebenshaltung / Lebensmittel";;;"005";"Lastschrifteinzug";"54513360342840040823183714";"183725";"DE02ZZZ00002314935"
379;DE16500105175407875231;07.08.2023;07.08.2023;-24,95;EUR;"Aral Ag";;;"ARAL Kahl Forststra.e 3 . 5//Kahl/DE 2023.08.05T07.23.50 Folgenr.000 Verfalld.2026.12";"Mobilität";"Tank- & Ladestelle";"Mobilität / Tank- & Ladestelle";;;"005";"Lastschrifteinzug";"71113775099667050823072350";"072358";"DE79ZZZ00000465117"
380;DE16500105175407875231;07.08.2023;07.08.2023;-20,46;EUR;"Concardis GmbH";;;"BACKHAUS BICKERT 57 GIR 79940845//MOMBRIS/DE 2023.08.05T07.48.50 Folgenr.000 Verfalld.2026.12";"Lebenshaltung";"Lebensmittel";"Lebenshaltung / Lebensmittel";;;"005";"Lastschrifteinzug";"79940845031227050823074850";"074955";"DE82CC100000346626"
381;DE16500105175407875231;07.08.2023;07.08.2023;-19,90;EUR;"Aral Ag";;;"ARAL Kahl Forststra.e 3 . 5//Kahl/DE 2023.08.04T19.56.44 Folgenr.000 Verfalld.2026.12";"Mobilität";"Tank- & Ladestelle";"Mobilität / Tank- & Ladestelle";;;"005";"Lastschrifteinzug";"71113774074448040823195644";"195655";"DE79ZZZ00000465117"
382;DE16500105175407875231;07.08.2023;07.08.2023;-17,00;EUR;"REWE Kornelius Gol";;;"REWE SAGT DANKE. 44652171//Moembris/DE 2023.08.05T14.51.31 Folgenr.000Verfalld.2026.12";"Lebenshaltung";"Lebensmittel";"Lebenshaltung / Lebensmittel";;;"005";"Lastschrifteinzug";"56026222392177050823145131";"145203";"DE16RPA00000020245"
383;DE16500105175407875231;04.08.2023;04.08.2023;-893,57;EUR;"VW-Bank";;;"11876525 Alz.Gg66 12 08 23";"Mobilität";"Auto & Motorrad";"Mobilität / Auto & Motorrad";;;"005";"Lastschrifteinzug";"KKFV1187652520230728012103215152032";"041600118765250001";"DE85BNK00000072741"
384;DE16500105175407875231;04.08.2023;04.08.2023;-11,59;EUR;"Aldi Sued Sagt Danke";;;"ALDI SE + CO. KG//ALZENAU/DE 2023.08.03T14.13.31 Folgenr.000 Verfalld.2026.12";"Lebenshaltung";"Lebensmittel";"Lebenshaltung / Lebensmittel";;;"005";"Lastschrifteinzug";"65243906032712030823141331";"141401";"DE50ZZZ00001717715"
385;DE16500105175407875231;04.08.2023;04.08.2023;-111,78;EUR;"Netto Marken-Discoun";;;"NETTO MARKEN.DISCOU//MOEMBRIS/DE 2023.08.03T12.01.35 Folgenr.001 Verfalld.2026.12";"Lebenshaltung";"Lebensmittel";"Lebenshaltung / Lebensmittel";;;"005";"Lastschrifteinzug";"65375639576844030823120135";"120144";"DE61ZZZ00000018368"
386;DE16500105175407875231;03.08.2023;03.08.2023;750,00;EUR;"Bundesagentur fur Arbeit - Familienkasse";;;"Kg735715Fk276070 0823 78054212950/3000098731709";"Finanzen & Versicherungen";"Kindergeld & Unterhalt";"Finanzen & Versicherungen / Kindergeld & Unterhalt";;;"051";"Gutschrift";"78054212950";;
387;DE16500105175407875231;03.08.2023;03.08.2023;-29,85;EUR;"Aral Ag";;;"ARAL Kahl Forststra.e 3 . 5//Kahl/DE 2023.08.02T18.55.19 Folgenr.000 Verfalld.2026.12";"Mobilität";"Tank- & Ladestelle";"Mobilität / Tank- & Ladestelle";;;"005";"Lastschrifteinzug";"71113774073346020823185519";"185522";"DE79ZZZ00000465117"
388;DE16500105175407875231;02.08.2023;02.08.2023;-0,99;EUR;"Ing";;;"Girocard 260006800102Monatliches Entgeltgirocard (Debitkarte)";"Finanzen & Versicherungen";"Bankgebühren";"Finanzen & Versicherungen / Bankgebühren";;;"027";"Entgelt";;;
389;DE16500105175407875231;02.08.2023;02.08.2023;-0,99;EUR;"Ing";;;"Girocard 260006683584Monatliches Entgeltgirocard (Debitkarte)";"Finanzen & Versicherungen";"Bankgebühren";"Finanzen & Versicherungen / Bankgebühren";;;"027";"Entgelt";;;
390;DE16500105175407875231;02.08.2023;02.08.2023;-44,00;EUR;"Cyriakus-Verein e.V.";;;"Kindergartenbeitrag 08.2023 fuer Gehringer Smilla";"Lebenshaltung";"Kinder";"Lebenshaltung / Kinder";;;"005";"Lastschrifteinzug";"K61208-2023";"Sausewind317";"DE74ZZZ00000733800"
391;DE16500105175407875231;01.08.2023;01.08.2023;-84,24;EUR;"PayPal Europe S.a.r.l. et Cie S.C.A";;;"1028471337951 . COMTRADA, Ihr Einkauf bei COMTRADA";"Lebenshaltung";"Shopping";"Lebenshaltung / Shopping";;;"005";"Lastschrifteinzug";"1028471337951";"474J224N243DU";"LU96ZZZ0000000000000000058"
392;DE16500105175407875231;01.08.2023;01.08.2023;-7,90;EUR;"Nurnberger Krankenversicherung Aktiengesellschaft";;;"5134538 Nkv Krankenvers. / 01.08.2023 7,90";"Finanzen & Versicherungen";"Versicherungen";"Finanzen & Versicherungen / Versicherungen";;;"005";"Lastschrifteinzug";"2320618284960";"0210090000051345382018001";"DE14ZZZ00000057335"
393;DE16500105175407875231;01.08.2023;01.08.2023;-68,15;EUR;"VOLKSWOHL BUND Lebensversicherung a.G.";;;"008768131 La000528869/ 008768131 Risiko 68,15";"Finanzen & Versicherungen";"Versicherungen";"Finanzen & Versicherungen / Versicherungen";;;"005";"Lastschrifteinzug";"008768131/NVMA.G1040-255561";"LA000528869";"DE13ZZZ00000141064"
394;DE16500105175407875231;01.08.2023;01.08.2023;-57,00;EUR;"Saunagarten Mainparksee";;;"SAUNAGARTEN MAINPARKSEE//Mainaschaff/DE 2023.07.31T16.56.16 Folgenr.000 Verfalld.2026.12";"Lebenshaltung";"Körperpflege & Wellness";"Lebenshaltung / Körperpflege & Wellness";;;"005";"Lastschrifteinzug";"55621387114167310723165616";"165723";"DE09ZZZ00001761715"
395;DE16500105175407875231;01.08.2023;01.08.2023;-57,41;EUR;"Allianz Lebensvers.";;;"Vertrag AL.0043152366 01.08.23 . 31.08.23 StartPolice";"Finanzen & Versicherungen";"Versicherungen";"Finanzen & Versicherungen / Versicherungen";;;"005";"Lastschrifteinzug";"AB223208-E01994850";"LA01L312001056217739";"DE07ZZZ00000063475"
396;DE16500105175407875231;01.08.2023;01.08.2023;-512,10;EUR;"prokundo GmbH";;;"106194314010 Pa000199316/ 106194314010 512,10/ Kfz Alz.Fb 60/ Erstbeitrag";"Finanzen & Versicherungen";"Versicherungen";"Finanzen & Versicherungen / Versicherungen";;;"005";"Lastschrifteinzug";"106194314010/PRO.G0558-24354";"PA000199316";"DE67ZZZ00000141062"
397;DE16500105175407875231;01.08.2023;01.08.2023;-28,00;EUR;"Christina Stieber";;;"Tanzschule Alzenau Smilla KreativerKindertanz";"Freizeit & Unterhaltung";"Sport";"Freizeit & Unterhaltung / Sport";;;"005";"Lastschrifteinzug";;"3003";"DE84ZZZ00000624883"
398;DE16500105175407875231;01.08.2023;01.08.2023;-278,01;EUR;"VOLKSWOHL BUND Lebensversicherung a.G.";;;"009984035 La000528870/ 009984035 Rente 278,01";"Finanzen & Versicherungen";"Versicherungen";"Finanzen & Versicherungen / Versicherungen";;;"005";"Lastschrifteinzug";"009984035/NVMA.G1040-255562";"LA000528870";"DE13ZZZ00000141064"
399;DE16500105175407875231;01.08.2023;01.08.2023;-21,24;EUR;"Allianz Versicherungs-AG";;;"90/0542/2946744 Unfall Pr";"Finanzen & Versicherungen";"Versicherungen";"Finanzen & Versicherungen / Versicherungen";;;"005";"Lastschrifteinzug";"A1923206-01092023072590035197";"ADAGSFF0000000344810";"DE10ZZZ00000051878"
400;DE16500105175407875231;01.08.2023;01.08.2023;-166,97;EUR;"AXA Krankenversicherung AG";;;"Krankenvers. 4958423794 BTR. 08/23166,97. EUR";"Finanzen & Versicherungen";"Versicherungen";"Finanzen & Versicherungen / Versicherungen";;;"005";"Lastschrifteinzug";"705024118912/0003";"21053190502";"DE23G0100000066097"
401;DE16500105175407875231;31.07.2023;31.07.2023;2.919,48;EUR;"La Bottega Toscana J. Hofacker e.K.";;;"lfd. Gehalt LabottegaToscana";"Finanzen & Versicherungen";"Lohn & Gehalt";"Finanzen & Versicherungen / Lohn & Gehalt";;;"052";"Gutschrift aus Dauerauftrag";;;
402;DE16500105175407875231;31.07.2023;31.07.2023;-64,96;EUR;"Visa 1Password";;;"Nr Xxxx 5012 Toronto Cakurs 1,0964000Kaufumsatz27.07 71,22135743Arn74083423208000005291033";"Freizeit & Unterhaltung";"Medien";"Freizeit & Unterhaltung / Medien";;;"005";"Lastschrifteinzug";;;
403;DE16500105175407875231;31.07.2023;31.07.2023;-57,07;EUR;"Tankstelle";;;"AGIP ASCHAFFENBURG, PLATANENALLEE//Aschaffenburg/DE 2023.07.29T17.37.39 Folgenr.000 Verfalld.2026.12";"Mobilität";"Tank- & Ladestelle";"Mobilität / Tank- & Ladestelle";;;"005";"Lastschrifteinzug";"74087004339469290723173739";"173745";"DE09WEA00000635060"
404;DE16500105175407875231;31.07.2023;31.07.2023;-53,95;EUR;"Sparkasse Aschaffenburg-Alzenau";;;"CITYGAL 1//SPARKASSE ASCHAFFENBURG.ALZENAU/DE 2023.07.29T14.10.40 Folgenr.000 Verfalld.2026.12 Entgelt 3,95EUR";;;;;;"005";"Lastschrifteinzug";"00002185219967290723141040";"141050";"DE80GAA00000085247"
405;DE16500105175407875231;31.07.2023;31.07.2023;-41,79;EUR;"Blumen Deller";;;"BLUMEN DELLER//Moembris/DE 2023.07.28T14.44.23 Folgenr.000 Verfalld.2026.12";"Lebenshaltung";"Baumarkt & Gartencenter";"Lebenshaltung / Baumarkt & Gartencenter";;;"005";"Lastschrifteinzug";"61532132008869280723144423";"144449";"DE83ZZZ00001548341"
406;DE16500105175407875231;31.07.2023;31.07.2023;-39,80;EUR;"Tankstelle";;;"AGIP ASCHAFFENBURG, PLATANENALLEE//Aschaffenburg/DE 2023.07.28T16.18.12 Folgenr.000 Verfalld.2026.12";"Mobilität";"Tank- & Ladestelle";"Mobilität / Tank- & Ladestelle";;;"005";"Lastschrifteinzug";"74087004339193280723161812";"161822";"DE09WEA00000635060"
407;DE16500105175407875231;31.07.2023;31.07.2023;-31,51;EUR;"REWE Kornelius Gol";;;"REWE SAGT DANKE. 44652171//Moembris/DE 2023.07.28T11.04.21 Folgenr.000Verfalld.2026.12";"Lebenshaltung";"Lebensmittel";"Lebenshaltung / Lebensmittel";;;"005";"Lastschrifteinzug";"56026222391051280723110421";"110449";"DE16RPA00000020245"
408;DE16500105175407875231;31.07.2023;31.07.2023;-26,35;EUR;"Dm Drogeriemarkt Sagt Danke";;;"DM FIL.1654 H.65440//MOEMBRIS/DE 2023.07.28T10.43.55 Folgenr.000 Verfalld.2026.12";"Lebenshaltung";"Körperpflege & Wellness";"Lebenshaltung / Körperpflege & Wellness";;;"005";"Lastschrifteinzug";"65440350428178280723104355";"104358";"DE32ZZZ00000500592"
409;DE16500105175407875231;31.07.2023;31.07.2023;-151,98;EUR;"Worldline Sweden AB fuer Shell";;;"SHELL 5481// Alzenau /DE 2023.07.30T13.46.05 Folgenr.000 Verfalld.2026.12";"Mobilität";"Tank- & Ladestelle";"Mobilität / Tank- & Ladestelle";;;"005";"Lastschrifteinzug";"70011026153265300723134605";"134615";"SE917375565480026"
410;DE16500105175407875231;31.07.2023;31.07.2023;-13,70;EUR;"Baeckerei Hofmann";;;"Baeckerei Hofmann//Moembris/DE 2023.07.29T09.39.24 Folgenr.000 Verfalld.2026.12";"Lebenshaltung";"Lebensmittel";"Lebenshaltung / Lebensmittel";;;"005";"Lastschrifteinzug";"55774814902229290723093924";"094001";"DE30ZZZ00002304149"
411;DE16500105175407875231;31.07.2023;31.07.2023;-131,71;EUR;"Netto Marken-Discoun";;;"NETTO MARKEN.DISCOU//MOEMBRIS/DE 2023.07.29T18.55.59 Folgenr.000 Verfalld.2026.12";"Lebenshaltung";"Lebensmittel";"Lebenshaltung / Lebensmittel";;;"005";"Lastschrifteinzug";"65375639575701290723185559";"185611";"DE61ZZZ00000018368"
412;DE16500105175407875231;31.07.2023;28.07.2023;-1,29;EUR;"Visa 1Password";;;"Visa 4546 Xxxx Xxxx 5012Auslandseinsatzentgeltvisa Card (Debitkarte)Arn74083423208000005291033";"Finanzen & Versicherungen";"Bankgebühren";"Finanzen & Versicherungen / Bankgebühren";;;"027";"Entgelt";;;
413;DE16500105175407875231;31.07.2023;31.07.2023;-10,50;EUR;"TEDi GmbH + Co. KG";;;"TEDi//Moembris/DE 2023.07.28T14.27.03 Folgenr.000 Verfalld.2026.12";"Lebenshaltung";"Shopping";"Lebenshaltung / Shopping";;;"005";"Lastschrifteinzug";"61495136060556280723142703";"142719";"DE36ZZZ00000057327"
414;DE16500105175407875231;28.07.2023;28.07.2023;-8,99;EUR;"Amazon Eu S.A R.L., Niederlassung Deutschland";;;"D01.7791125.2069415 AMZNPrime DE 3DTAY6QT0Z6XY0FQ";"Lebenshaltung";"Shopping";"Lebenshaltung / Shopping";;;"005";"Lastschrifteinzug";"3DTAY6QT0Z6XY0FQ";"rOxHdfurPFKHn)Aq(.XhjI6?SxR+8m";"DE24ZZZ00000561652"
415;DE16500105175407875231;28.07.2023;30.07.2023;-320,31;EUR;"Gehringer";;;"Ing.Diba Ag 5324019888 30.07.2023";;;;;;"005";"Lastschrifteinzug";;;
416;DE16500105175407875231;28.07.2023;28.07.2023;-10,00;EUR;"PayPal Europe S.a.r.l. et Cie S.C.A";;;"1028425852942 PP.5629.PP . 1.1 IONOS SE, Ihr Einkauf bei 1.1 IONOS SE";"Lebenshaltung";"Shopping";"Lebenshaltung / Shopping";;;"005";"Lastschrifteinzug";"1028425852942";"474J224N243DU";"LU96ZZZ0000000000000000058"
417;DE16500105175407875231;27.07.2023;27.07.2023;-82,97;EUR;"Unicredit W/ Total";;;"TOTAL Service Station//KARLSTEIN/DE2023.07.26T19.26.03 Folgenr.000 Verfalld.2026.12";"Mobilität";"Tank- & Ladestelle";"Mobilität / Tank- & Ladestelle";;;"005";"Lastschrifteinzug";"54706198979340260723192603";"192613";"DE28MTO00000009650"
418;DE16500105175407875231;27.07.2023;27.07.2023;-222,95;EUR;"Volkswagen Autovers. AG";;;"VWAV / VSNR VM1038617673 / ALZ.GG 66 / Abrechnung vom 21.07.2023 bis 20.10.2023";"Mobilität";"Auto & Motorrad";"Mobilität / Auto & Motorrad";;;"005";"Lastschrifteinzug";"AB423202-000496SZ052023000000004797";"SZ050000000000000000000000000973740";"DE03ZZZ00000662134"
419;DE16500105175407875231;26.07.2023;26.07.2023;800,00;EUR;"Tanja Gehringer";;;"Umbuchung";"Finanzen & Versicherungen";"Umbuchung";"Finanzen & Versicherungen / Umbuchung";;;"051";"Gutschrift";;;
420;DE16500105175407875231;26.07.2023;26.07.2023;-0,99;EUR;"PayPal (Europe) S.a r.l. etCie, S.C.A.";;;"1028382888467 PP.5629.PP . Apple Services, Ihr Einkauf bei Apple Services";"Lebenshaltung";"Shopping";"Lebenshaltung / Shopping";;;"005";"Lastschrifteinzug";"1028382888467PP.5629.PP PAYPAL";"474J224N243DU";"LU96ZZZ0000000000000000058"
421;DE16500105175407875231;26.07.2023;26.07.2023;-59,39;EUR;"Logo Sagt Danke";;;"LOGO SAGT DANKE//PETERSBERG/DE 2023.07.25T19.31.46 Folgenr.000 Verfalld.2026.12";"Lebenshaltung";"Lebensmittel";"Lebenshaltung / Lebensmittel";;;"005";"Lastschrifteinzug";"54347804488633250723193146";"193201";"DE91SCL00000000756"
422;DE16500105175407875231;26.07.2023;26.07.2023;-3,95;EUR;"SCHUFA Holding AG";;;"Kunde.7008178893,Bestellung.0017813168,Rechnung.501013313291";;;;;;"005";"Lastschrifteinzug";;"000005596370";"DE87ZZZ00000239351"
423;DE16500105175407875231;26.07.2023;26.07.2023;-36,06;EUR;"Norma Sagt Danke";;;"NORMA SAGT DANKE//Karlstein/DE 2023.07.25T14.23.36 Folgenr.000 Verfalld.2026.12";"Lebenshaltung";"Lebensmittel";"Lebenshaltung / Lebensmittel";;;"005";"Lastschrifteinzug";"60422005592856250723142336";"142427";"DE16E0100000020245"
424;DE16500105175407875231;25.07.2023;25.07.2023;1.210,64;EUR;"Kath. Kirchensteueramt Dioezese Wuerzburg";;;"Steuernummer 204 219 81435 Kirchensteuer Erstattung";"Staat & Behörde";"Steuer";"Staat & Behörde / Steuer";;;"051";"Gutschrift";;;
425;DE16500105175407875231;25.07.2023;25.07.2023;-70,75;EUR;"Netto Marken-Discoun";;;"NETTO MARKEN.DISCOU//MOEMBRIS/DE 2023.07.24T16.32.43 Folgenr.001 Verfalld.2026.12";"Lebenshaltung";"Lebensmittel";"Lebenshaltung / Lebensmittel";;;"005";"Lastschrifteinzug";"65375640178592240723163243";"163254";"DE61ZZZ00000018368"
426;DE16500105175407875231;25.07.2023;25.07.2023;-48,79;EUR;"REWE Kornelius Gol";;;"REWE SAGT DANKE. 44652171//Moembris/DE 2023.07.24T16.55.51 Folgenr.001Verfalld.2026.12";"Lebenshaltung";"Lebensmittel";"Lebenshaltung / Lebensmittel";;;"005";"Lastschrifteinzug";"56026222390659240723165551";"165624";"DE16RPA00000020245"
427;DE16500105175407875231;25.07.2023;25.07.2023;-23,39;EUR;"Edeka Geka Moembris";;;"EDEKA GEKA MOEMBRIS//MOEMBRIS/DE 2023.07.24T17.12.09 Folgenr.001 Verfalld.2026.12";"Lebenshaltung";"Lebensmittel";"Lebenshaltung / Lebensmittel";;;"005";"Lastschrifteinzug";"54272946198925240723171209";"171225";"DE63ZZZ00001092898"
428;DE16500105175407875231;25.07.2023;25.07.2023;-10,00;EUR;"PayPal (Europe) S.a r.l. etCie, S.C.A.";;;"1028324111799 PP.5629.PP . , Ihr Einkauf bei";"Lebenshaltung";"Shopping";"Lebenshaltung / Shopping";;;"005";"Lastschrifteinzug";"1028324111799PP.5629.PP PAYPAL";"474J224N243DU";"LU96ZZZ0000000000000000058"
429;DE16500105175407875231;25.07.2023;25.07.2023;-19,59;EUR;"Unicredit W/ Total";;;"TOTAL Service Station//KARLSTEIN/DE2023.07.24T16.08.21 Folgenr.000 Verfalld.2026.12";"Mobilität";"Tank- & Ladestelle";"Mobilität / Tank- & Ladestelle";;;"005";"Lastschrifteinzug";"54706198972480240723160821";"160827";"DE28MTO00000009650"
430;DE16500105175407875231;25.07.2023;25.07.2023;-128,95;EUR;"Sparkasse Aschaffenburg-Alzenau";;;"KARLS.R2//SPARKASSE ASCHAFFENBURG.ALZENAU/DE 2023.07.24T18.04.41 Folgenr.000 Verfalld.2026.12 Entgelt 3,95EUR";;;;;;"005";"Lastschrifteinzug";"00002300239177240723180441";"180456";"DE80GAA00000085247"
431;DE16500105175407875231;24.07.2023;24.07.2023;-93,60;EUR;"Aldi Sued Sagt Danke";;;"ALDI SE + CO. KG//ALZENAU/DE 2023.07.21T14.32.24 Folgenr.000 Verfalld.2026.12";"Lebenshaltung";"Lebensmittel";"Lebenshaltung / Lebensmittel";;;"005";"Lastschrifteinzug";"65476248469935210723143224";"143309";"DE50ZZZ00001717715"
432;DE16500105175407875231;24.07.2023;24.07.2023;-85,90;EUR;"Esso Station";;;"ESSO STATION//Moembris/DE 2023.07.23T14.10.22 Folgenr.001 Verfalld.2026.12";"Mobilität";"Tank- & Ladestelle";"Mobilität / Tank- & Ladestelle";;;"005";"Lastschrifteinzug";"78100352134258230723141022";"141039";"DE16E0100000020245"
433;DE16500105175407875231;24.07.2023;24.07.2023;-57,72;EUR;"Worldline Sweden AB fuer Shell";;;"SHELL 5453// Hoesbach /DE 2023.07.23T09.02.59 Folgenr.000 Verfalld.2026.12";"Mobilität";"Tank- & Ladestelle";"Mobilität / Tank- & Ladestelle";;;"005";"Lastschrifteinzug";"70011006351445230723090259";"090308";"SE917375565480026"
434;DE16500105175407875231;24.07.2023;24.07.2023;-28,67;EUR;"SG-VR Payment GmbH";;;"Goy Systemgastronomie GmbH//ASCHAFFENBURG/DE 2023.07.23T13.52.48 Folgenr.000 Verfalld.2026.12";"Lebenshaltung";"Gastronomie";"Lebenshaltung / Gastronomie";;;"005";"Lastschrifteinzug";"52037292004842230723135248";"135301";"DE47ZZZ00000072455"
435;DE16500105175407875231;21.07.2023;21.07.2023;-440,00;EUR;"Bundeskasse in Weiden";;;"Kfz.Steuer fuer ALZ GG 66 fuer dieZeit vom 21.07.2023 bis zum 20.07.2024 Kassenzeichen K12152445856";"Staat & Behörde";"Steuer";"Staat & Behörde / Steuer";;;"005";"Lastschrifteinzug";"K12152445856/000005/23ZVS06F";"KFZFK1215244585625072022";"DE09ZZZ00000000001"
436;DE16500105175407875231;20.07.2023;20.07.2023;500,00;EUR;"Tanja Gehringer";;;"Umbuchung";"Finanzen & Versicherungen";"Umbuchung";"Finanzen & Versicherungen / Umbuchung";;;"051";"Gutschrift";;;
437;DE16500105175407875231;20.07.2023;20.07.2023;-20,00;EUR;"Esso Station";;;"ESSO STATION//Moembris/DE 2023.07.19T07.08.07 Folgenr.000 Verfalld.2026.12";"Mobilität";"Tank- & Ladestelle";"Mobilität / Tank- & Ladestelle";;;"005";"Lastschrifteinzug";"78100352132411190723070807";"070820";"DE16E0100000020245"
438;DE16500105175407875231;20.07.2023;20.07.2023;-124,95;EUR;"Rv-Bank Aschaffenburg";;;"RV.BANK AB Kahl am Main//Kahl Am Main/DE 2023.07.19T14.00.38 Folgenr.000 Verfalld.2026.12 Entgelt 4,95EUR";"Finanzen & Versicherungen";"Geldautomat";"Finanzen & Versicherungen / Geldautomat";;;"005";"Lastschrifteinzug";"00005530006326190723140038";"140054";"DE48ZZZ00000055947"
439;DE16500105175407875231;19.07.2023;19.07.2023;-6,99;EUR;"PayPal Europe S.a.r.l. et Cie S.C.A";;;"1028256940438 PP.5629.PP . Microsoft Payments, Ihr Einkauf bei Microsoft Payments";"Freizeit & Unterhaltung";"Medien";"Freizeit & Unterhaltung / Medien";;;"005";"Lastschrifteinzug";"1028256940438";"474J224N243DU";"LU96ZZZ0000000000000000058"
440;DE16500105175407875231;19.07.2023;19.07.2023;-36,99;EUR;"freenet ehemals mobilcom-debitel";;;"Kd.1115915714 Wir sagen Danke. RG.Nr.P23008059195 36,99 EUR";"Lebenshaltung";"Handy & Internet";"Lebenshaltung / Handy & Internet";;;"005";"Lastschrifteinzug";"1115915714/115021948599";"DL-1115915714-000001";"DE43ZZZ00000074855"
441;DE16500105175407875231;19.07.2023;19.07.2023;-18,00;EUR;"Esso Station";;;"ESSO STATION//Moembris/DE 2023.07.18T07.30.13 Folgenr.000 Verfalld.2026.12";"Mobilität";"Tank- & Ladestelle";"Mobilität / Tank- & Ladestelle";;;"005";"Lastschrifteinzug";"78100352131971180723073013";"073029";"DE16E0100000020245"
442;DE16500105175407875231;18.07.2023;18.07.2023;-40,63;EUR;"PayPal (Europe) S.a r.l. etCie, S.C.A.";;;"1028208905792 PP.5629.PP . eleven teamsports GmbH, Ihr Einkauf bei eleven teamsports GmbH";"Lebenshaltung";"Shopping";"Lebenshaltung / Shopping";;;"005";"Lastschrifteinzug";"1028208905792PP.5629.PP PAYPAL";"474J224N243DU";"LU96ZZZ0000000000000000058"
443;DE16500105175407875231;18.07.2023;18.07.2023;-177,80;EUR;"Huebner/Schuhpalast";;;"Elv61499061 15.07 15.12 Me0 Rohrmeier Sport Aschaffenbu";;;;;;"005";"Lastschrifteinzug";"IC-14837547144";"6149906175522307151512";"DE11ZZZ00000009471"
444;DE16500105175407875231;18.07.2023;18.07.2023;-14,99;EUR;"Amazon Payments Europe S.C.A.";;;"302.2355658.4683521 AMZN Mktp DE 5QXE7O2D7SA6TIMX";"Lebenshaltung";"Shopping";"Lebenshaltung / Shopping";;;"005";"Lastschrifteinzug";"5QXE7O2D7SA6TIMX";"rOxHdfurPFKHn)Aq(.XhjI6?SxR+8m";"DE94ZZZ00000561653"
445;DE16500105175407875231;18.07.2023;18.07.2023;-13,16;EUR;"PayPal (Europe) S.a r.l. etCie, S.C.A.";;;"1028201344465 PP.5629.PP . HD PLUSGmbH, Ihr Einkauf bei HD PLUS GmbH";"Lebenshaltung";"Handy & Internet";"Lebenshaltung / Handy & Internet";;;"005";"Lastschrifteinzug";"1028201344465PP.5629.PP PAYPAL";"474J224N243DU";"LU96ZZZ0000000000000000058"
446;DE16500105175407875231;17.07.2023;17.07.2023;-72,18;EUR;"Esso Station";;;"ESSO STATION//Moembris/DE 2023.07.16T18.14.33 Folgenr.000 Verfalld.2026.12";"Mobilität";"Tank- & Ladestelle";"Mobilität / Tank- & Ladestelle";;;"005";"Lastschrifteinzug";"78100352131480160723181433";"181447";"DE16E0100000020245"
447;DE16500105175407875231;17.07.2023;17.07.2023;-30,00;EUR;"Nah Und Gut Conrad";;;"CARMEN CONRAD E.K.//KARLSTEIN A. MAIN/DE 2023.07.14T10.34.35 Folgenr.000 Verfalld.2026.12";"Lebenshaltung";"Lebensmittel";"Lebenshaltung / Lebensmittel";;;"005";"Lastschrifteinzug";"54513360337467140723103435";"103442";"DE02ZZZ00002314935"
448;DE16500105175407875231;17.07.2023;17.07.2023;-250,00;EUR;"Walter Gehringer";"DE37795625140003210677";"GENODEF1AB1";"Nebenkosten";"Lebenshaltung";"Wohnen & Wohnnebenkosten";"Lebenshaltung / Wohnen & Wohnnebenkosten";;;"013";"Dauerauftrag/Terminueberweisung";;;
449;DE16500105175407875231;17.07.2023;17.07.2023;-22,55;EUR;"Esso Station";;;"ESSO STATION//Moembris/DE 2023.07.15T18.54.41 Folgenr.000 Verfalld.2026.12";"Mobilität";"Tank- & Ladestelle";"Mobilität / Tank- & Ladestelle";;;"005";"Lastschrifteinzug";"78100352131175150723185441";"185457";"DE16E0100000020245"
450;DE16500105175407875231;17.07.2023;17.07.2023;-22,08;EUR;"Amazon Payments Europe S.C.A.";;;"302.0109304.1097954 AMZN Mktp DE 68MU6U68JU1P2JPF";"Lebenshaltung";"Shopping";"Lebenshaltung / Shopping";;;"005";"Lastschrifteinzug";"68MU6U68JU1P2JPF";"rOxHdfurPFKHn)Aq(.XhjI6?SxR+8m";"DE94ZZZ00000561653"
451;DE16500105175407875231;14.07.2023;14.07.2023;-7,19;EUR;"Amazon Payments Europe S.C.A.";;;"302.3775520.2277952 AMZN Mktp DE 7F3Z2YMYB4KJDFEA";"Lebenshaltung";"Shopping";"Lebenshaltung / Shopping";;;"005";"Lastschrifteinzug";"7F3Z2YMYB4KJDFEA";"rOxHdfurPFKHn)Aq(.XhjI6?SxR+8m";"DE94ZZZ00000561653"
452;DE16500105175407875231;14.07.2023;14.07.2023;-12,99;EUR;"Amazon Payments Europe S.C.A.";;;"302.0109304.1097954 AMZN Mktp DE 17IC8T5AILBFADI5";"Lebenshaltung";"Shopping";"Lebenshaltung / Shopping";;;"005";"Lastschrifteinzug";"17IC8T5AILBFADI5";"rOxHdfurPFKHn)Aq(.XhjI6?SxR+8m";"DE94ZZZ00000561653"
453;DE16500105175407875231;13.07.2023;13.07.2023;-9,40;EUR;"Amazon Payments Europe S.C.A.";;;"302.4644133.5614713 AMZN Mktp DE 3DD4OT6X5Z4IQQDH";"Lebenshaltung";"Shopping";"Lebenshaltung / Shopping";;;"005";"Lastschrifteinzug";"3DD4OT6X5Z4IQQDH";"rOxHdfurPFKHn)Aq(.XhjI6?SxR+8m";"DE94ZZZ00000561653"
454;DE16500105175407875231;13.07.2023;13.07.2023;-210,00;EUR;"Bundeskasse in Weiden";;;"Kfz.Steuer fuer ALZ FB 60 fuer dieZeit vom 13.07.2023 bis zum 12.07.2024 Kassenzeichen K12031532333";"Staat & Behörde";"Steuer";"Staat & Behörde / Steuer";;;"005";"Lastschrifteinzug";"K12031532333/000008/23ZVS06F";"KFZFK1203153233319072021";"DE09ZZZ00000000001"
455;DE16500105175407875231;13.07.2023;13.07.2023;-15,99;EUR;"Amazon Payments Europe S.C.A.";;;"302.5878172.8548306 AMZN Mktp DE 25ZOMW04H9C7CF7R";"Lebenshaltung";"Shopping";"Lebenshaltung / Shopping";;;"005";"Lastschrifteinzug";"25ZOMW04H9C7CF7R";"rOxHdfurPFKHn)Aq(.XhjI6?SxR+8m";"DE94ZZZ00000561653"
456;DE16500105175407875231;13.07.2023;13.07.2023;-127,44;EUR;"Lidl Dienstleistung Gmbh Und Co Kg";;;"LIDL DIENSTLEISTUNG GMBH UND CO KG//Schoellkrippen/DE 2023.07.12T15.57.00 Folgenr.001 Verfalld.2026.12";"Lebenshaltung";"Lebensmittel";"Lebenshaltung / Lebensmittel";;;"005";"Lastschrifteinzug";"6019266405247312072315570002806449";"155759";"DE73DAB00000052684"
457;DE16500105175407875231;12.07.2023;12.07.2023;-66,59;EUR;"Nah Und Gut Conrad";;;"CARMEN CONRAD E.K.//KARLSTEIN A. MAIN/DE 2023.07.11T17.19.27 Folgenr.000 Verfalld.2026.12";"Lebenshaltung";"Lebensmittel";"Lebenshaltung / Lebensmittel";;;"005";"Lastschrifteinzug";"54513359117345110723171927";"171937";"DE02ZZZ00002314935"
458;DE16500105175407875231;11.07.2023;11.07.2023;-8,90;EUR;"Amazon Payments Europe S.C.A.";;;"305.5953627.3936343 AMZN Mktp DE 30HC8P66LHHF3AIQ";"Lebenshaltung";"Shopping";"Lebenshaltung / Shopping";;;"005";"Lastschrifteinzug";"30HC8P66LHHF3AIQ";"rOxHdfurPFKHn)Aq(.XhjI6?SxR+8m";"DE94ZZZ00000561653"
459;DE16500105175407875231;11.07.2023;11.07.2023;-68,35;EUR;"Ambiente Alzenau";;;"Ambiente//Alzenau/DE 2023.07.10T17.59.07 Folgenr.000 Verfalld.2026.12";;;;;;"005";"Lastschrifteinzug";"61405451208004100723175907";"175937";"DE11ZZZ00000009471"
460;DE16500105175407875231;11.07.2023;11.07.2023;-5,99;EUR;"Amazon Digital Germany Gmbh";;;"D01.4805739.9775061 Prime Video Channels 5L5GTT7RW9I89C5X";"Freizeit & Unterhaltung";"Streaming";"Freizeit & Unterhaltung / Streaming";;;"005";"Lastschrifteinzug";"5L5GTT7RW9I89C5X";"rOxHdfurPFKHn)Aq(.XhjI6?SxR+8m";"DE96ZZZ00000594888"
461;DE16500105175407875231;11.07.2023;11.07.2023;-17,63;EUR;"REWE Markt GmbH";;;"REWE SAGT DANKE. 44400844//Alzenau/DE 2023.07.10T18.16.37 Folgenr.000Verfalld.2026.12";"Lebenshaltung";"Lebensmittel";"Lebenshaltung / Lebensmittel";;;"005";"Lastschrifteinzug";"56026307243370100723181637";"181520";"DE58ZZZ00000257236"
462;DE16500105175407875231;10.07.2023;10.07.2023;648,32;EUR;"VOLKSWOHL BUND Sachversicherung AG";;;"Guthabenerstattung zu Vers..Nr. 10/4040764011";"Finanzen & Versicherungen";"Versicherungen";"Finanzen & Versicherungen / Versicherungen";;;"051";"Gutschrift";"U23187230035405SX82";;
463;DE16500105175407875231;10.07.2023;10.07.2023;-70,46;EUR;"Unicredit W/ Total";;;"TOTAL Service Station//KARLSTEIN/DE2023.07.09T19.10.00 Folgenr.000 Verfalld.2026.12";"Mobilität";"Tank- & Ladestelle";"Mobilität / Tank- & Ladestelle";;;"005";"Lastschrifteinzug";"54706198926790090723191000";"191015";"DE28MTO00000009650"
464;DE16500105175407875231;10.07.2023;10.07.2023;-34,89;EUR;"E-Maerkte Winkler Griesheim";;;"E.MAERKTE WINKLER GRIESHEIM//GRIESHEIM/DE 2023.07.08T10.33.33 Folgenr.000 Verfalld.2026.12";;;;;;"005";"Lastschrifteinzug";"54520414048436080723103333";"103343";"DE54ZZZ00001843549"
465;DE16500105175407875231;10.07.2023;10.07.2023;-14,10;EUR;"Esso Station";;;"ESSO STATION//Moembris/DE 2023.07.09T11.02.52 Folgenr.000 Verfalld.2026.12";"Mobilität";"Tank- & Ladestelle";"Mobilität / Tank- & Ladestelle";;;"005";"Lastschrifteinzug";"78100352128274090723110252";"110311";"DE16E0100000020245"
466;DE16500105175407875231;10.07.2023;10.07.2023;-118,85;EUR;"Worldline Sweden AB fuer Shell";;;"SHELL 5453// Hoesbach /DE 2023.07.08T08.11.42 Folgenr.000 Verfalld.2026.12";"Mobilität";"Tank- & Ladestelle";"Mobilität / Tank- & Ladestelle";;;"005";"Lastschrifteinzug";"70011025406904080723081142";"081151";"SE917375565480026"
467;DE16500105175407875231;07.07.2023;07.07.2023;500,00;EUR;"Bo Gehringer";;;"Umbuchung";"Finanzen & Versicherungen";"Umbuchung";"Finanzen & Versicherungen / Umbuchung";;;"051";"Gutschrift";;;
468;DE16500105175407875231;07.07.2023;07.07.2023;-21,50;EUR;"Unicredit W/ Total";;;"TOTAL Service Station//KARLSTEIN/DE2023.07.06T09.40.54 Folgenr.000 Verfalld.2026.12";"Mobilität";"Tank- & Ladestelle";"Mobilität / Tank- & Ladestelle";;;"005";"Lastschrifteinzug";"54706198915750060723094054";"094102";"DE28MTO00000009650"
469;DE16500105175407875231;07.07.2023;07.07.2023;-114,12;EUR;"PayPal Europe S.a.r.l. et Cie S.C.A";;;"1028011033030 PP.5629.PP . CONTABOGmbH, Ihr Einkauf bei CONTABO GmbH";"Freizeit & Unterhaltung";"Medien";"Freizeit & Unterhaltung / Medien";;;"005";"Lastschrifteinzug";"1028011033030";"474J224N243DU";"LU96ZZZ0000000000000000058"
470;DE16500105175407875231;07.07.2023;07.07.2023;-11,35;EUR;"Nah Und Gut Conrad";;;"CARMEN CONRAD E.K.//KARLSTEIN A. MAIN/DE 2023.07.06T19.48.56 Folgenr.000 Verfalld.2026.12";"Lebenshaltung";"Lebensmittel";"Lebenshaltung / Lebensmittel";;;"005";"Lastschrifteinzug";"54513360335739060723194856";"194901";"DE02ZZZ00002314935"
471;DE16500105175407875231;06.07.2023;06.07.2023;-70,00;EUR;"Spessart-Gymnasium Alzenau";"DE58795500000012206710";"BYLADEM1ASA";"Mads Gehringer/Klasse5e/BurgStahleck";"Finanzen & Versicherungen";"Beruf & Gewerbe";"Finanzen & Versicherungen / Beruf & Gewerbe";;;"020";"Überweisung";;;
472;DE16500105175407875231;06.07.2023;06.07.2023;-259,92;EUR;"Bayerischer Inkassodienst";"DE80783200760001437550";"HYVEDEMM480";"35408799MGS1 Germany GmbH";"Finanzen & Versicherungen";"Beruf & Gewerbe";"Finanzen & Versicherungen / Beruf & Gewerbe";;;"020";"Überweisung";;;
473;DE16500105175407875231;06.07.2023;06.07.2023;-184,23;EUR;"Dr. Hiba Sino";"DE77300606010307185453";"DAAEDEDDXXX";"RE.Nr. 146783 + 146205";;;;;;"020";"Überweisung";;;
474;DE16500105175407875231;06.07.2023;06.07.2023;-115,88;EUR;"LandwirtschaftlicheBerufsgenossenschaft";"DE84500500004030010054";"HELADEFFXXX";"314/12/0101672064";;;;;;"020";"Überweisung";;;
475;DE16500105175407875231;05.07.2023;05.07.2023;750,00;EUR;"Bundesagentur fur Arbeit - Familienkasse";;;"Kg735715Fk276070 0723 80054158739/3000098731709";"Finanzen & Versicherungen";"Kindergeld & Unterhalt";"Finanzen & Versicherungen / Kindergeld & Unterhalt";;;"051";"Gutschrift";"80054158739";;
476;DE16500105175407875231;05.07.2023;05.07.2023;-74,00;EUR;"Cyriakus-Verein e.V.";;;"Kindergartenbeitrag 07.2023 fuer Gehringer Smilla";"Lebenshaltung";"Kinder";"Lebenshaltung / Kinder";;;"005";"Lastschrifteinzug";"K61207-2023";"Sausewind317";"DE74ZZZ00000733800"
477;DE16500105175407875231;04.07.2023;04.07.2023;-0,99;EUR;"Ing";;;"Girocard 260006800102Monatliches Entgeltgirocard (Debitkarte)";"Finanzen & Versicherungen";"Bankgebühren";"Finanzen & Versicherungen / Bankgebühren";;;"027";"Entgelt";;;
478;DE16500105175407875231;04.07.2023;04.07.2023;-0,99;EUR;"Ing";;;"Girocard 260006683584Monatliches Entgeltgirocard (Debitkarte)";"Finanzen & Versicherungen";"Bankgebühren";"Finanzen & Versicherungen / Bankgebühren";;;"027";"Entgelt";;;
479;DE16500105175407875231;04.07.2023;04.07.2023;-893,57;EUR;"VW-Bank";;;"11876525 Alz.Gg66 11 07 23";"Mobilität";"Auto & Motorrad";"Mobilität / Auto & Motorrad";;;"005";"Lastschrifteinzug";"KKFV1187652520230627011127123194041";"041600118765250001";"DE85BNK00000072741"
480;DE16500105175407875231;04.07.2023;04.07.2023;-28,00;EUR;"Christina Stieber";;;"Tanzschule Alzenau Smilla KreativerKindertanz";"Freizeit & Unterhaltung";"Sport";"Freizeit & Unterhaltung / Sport";;;"005";"Lastschrifteinzug";;"3003";"DE84ZZZ00000624883"
481;DE16500105175407875231;03.07.2023;03.07.2023;-9,49;EUR;"SG-VR Payment GmbH";;;"BURGER KING 11610//GELNHAUSEN/DE 2023.06.29T17.21.16 Folgenr.000 Verfalld.2026.12";"Lebenshaltung";"Gastronomie";"Lebenshaltung / Gastronomie";;;"005";"Lastschrifteinzug";"52057810287512290623172116";"172139";"DE47ZZZ00000072455"
482;DE16500105175407875231;03.07.2023;03.07.2023;-7,90;EUR;"Nurnberger Krankenversicherung Aktiengesellschaft";;;"5134538 Nkv Krankenvers. / 01.07.2023 7,90";"Finanzen & Versicherungen";"Versicherungen";"Finanzen & Versicherungen / Versicherungen";;;"005";"Lastschrifteinzug";"2317418623780";"0210090000051345382018001";"DE14ZZZ00000057335"
483;DE16500105175407875231;03.07.2023;03.07.2023;-68,15;EUR;"VOLKSWOHL BUND Lebensversicherung a.G.";;;"008768131 La000528869/ 008768131 Risiko 68,15";"Finanzen & Versicherungen";"Versicherungen";"Finanzen & Versicherungen / Versicherungen";;;"005";"Lastschrifteinzug";"008768131/NVMA.G1036-256996";"LA000528869";"DE13ZZZ00000141064"
484;DE16500105175407875231;03.07.2023;03.07.2023;-64,86;EUR;"Unicredit W/ Total";;;"TOTAL Service Station//KARLSTEIN/DE2023.07.02T15.41.50 Folgenr.000 Verfalld.2026.12";"Mobilität";"Tank- & Ladestelle";"Mobilität / Tank- & Ladestelle";;;"005";"Lastschrifteinzug";"54706198903530020723154150";"154204";"DE28MTO00000009650"
485;DE16500105175407875231;03.07.2023;03.07.2023;-648,32;EUR;"VOLKSWOHL BUND Sachversicherung AG";;;"104040764011 Sa000458574/ 104040764011 648,32/ Kfz Alz.Fb 60";"Finanzen & Versicherungen";"Versicherungen";"Finanzen & Versicherungen / Versicherungen";;;"005";"Lastschrifteinzug";"104040764011/VBS.G0457-65895";"SA000458574";"DE83ZZZ00000141065"
486;DE16500105175407875231;03.07.2023;03.07.2023;-57,41;EUR;"Allianz Lebensvers.";;;"Vertrag AL.0043152366 01.07.23 . 31.07.23 StartPolice";"Finanzen & Versicherungen";"Versicherungen";"Finanzen & Versicherungen / Versicherungen";;;"005";"Lastschrifteinzug";"AB223179-E00412627";"LA01L312001056217739";"DE07ZZZ00000063475"
487;DE16500105175407875231;03.07.2023;03.07.2023;-55,17;EUR;"Nah Und Gut Conrad";;;"CARMEN CONRAD E.K.//KARLSTEIN A. MAIN/DE 2023.06.30T11.37.22 Folgenr.000 Verfalld.2026.12";"Lebenshaltung";"Lebensmittel";"Lebenshaltung / Lebensmittel";;;"005";"Lastschrifteinzug";"54513360334126300623113722";"113731";"DE02ZZZ00002314935"
488;DE16500105175407875231;03.07.2023;03.07.2023;-36,00;EUR;"Eintracht Frankfurt e.V.";;;"ReNr 2023392852 vom 01.07.2023 / Mitglied EF.11059601";"Freizeit & Unterhaltung";"Vereine";"Freizeit & Unterhaltung / Vereine";;;"005";"Lastschrifteinzug";"DBE65668159A11EE93FA005056BC46E8";"MAN077810";"DE04ZZZ00000237450"
489;DE16500105175407875231;03.07.2023;03.07.2023;-278,01;EUR;"VOLKSWOHL BUND Lebensversicherung a.G.";;;"009984035 La000528870/ 009984035 Rente 278,01";"Finanzen & Versicherungen";"Versicherungen";"Finanzen & Versicherungen / Versicherungen";;;"005";"Lastschrifteinzug";"009984035/NVMA.G1036-256997";"LA000528870";"DE13ZZZ00000141064"
490;DE16500105175407875231;03.07.2023;03.07.2023;-22,95;EUR;"Ambiente Alzenau";;;"Ambiente//Alzenau/DE 2023.06.30T15.12.43 Folgenr.000 Verfalld.2026.12";;;;;;"005";"Lastschrifteinzug";"61405451207405300623151243";"151327";"DE11ZZZ00000009471"
491;DE16500105175407875231;03.07.2023;03.07.2023;-21,24;EUR;"Allianz Versicherungs-AG";;;"90/0542/2946744 Unfall Pr";"Finanzen & Versicherungen";"Versicherungen";"Finanzen & Versicherungen / Versicherungen";;;"005";"Lastschrifteinzug";"A1923177-01092023062690046455";"ADAGSFF0000000344810";"DE10ZZZ00000051878"
492;DE16500105175407875231;03.07.2023;03.07.2023;-166,97;EUR;"AXA Krankenversicherung AG";;;"Krankenvers. 4958423794 BTR. 07/23166,97. EUR";"Finanzen & Versicherungen";"Versicherungen";"Finanzen & Versicherungen / Versicherungen";;;"005";"Lastschrifteinzug";"565024423975/0003";"21053190502";"DE23G0100000066097"
493;DE16500105175407875231;03.07.2023;03.07.2023;-153,95;EUR;"Sparkasse Aschaffenburg-Alzenau";;;"KARLS.R2//SPARKASSE ASCHAFFENBURG.ALZENAU/DE 2023.06.30T09.47.35 Folgenr.000 Verfalld.2026.12 Entgelt 3,95EUR";;;;;;"005";"Lastschrifteinzug";"00002300234720300623094735";"094746";"DE80GAA00000085247"
494;DE16500105175407875231;03.07.2023;03.07.2023;-11,00;EUR;"Unicredit W/ Total";;;"TOTAL Service Station//KARLSTEIN/DE2023.07.02T08.54.36 Folgenr.000 Verfalld.2026.12";"Mobilität";"Tank- & Ladestelle";"Mobilität / Tank- & Ladestelle";;;"005";"Lastschrifteinzug";"54706198902460020723085436";"085442";"DE28MTO00000009650"
495;DE16500105175407875231;30.06.2023;30.06.2023;2.919,48;EUR;"La Bottega Toscana J. Hofacker e.K.";;;"lfd. Gehalt LabottegaToscana";"Finanzen & Versicherungen";"Lohn & Gehalt";"Finanzen & Versicherungen / Lohn & Gehalt";;;"052";"Gutschrift aus Dauerauftrag";;;
496;DE16500105175407875231;30.06.2023;30.06.2023;-60,00;EUR;"PayPal Europe S.a.r.l. et Cie S.C.A";;;"1027872346208 PP.5629.PP . , Ihr Einkauf bei";"Lebenshaltung";"Shopping";"Lebenshaltung / Shopping";;;"005";"Lastschrifteinzug";"1027872346208";"474J224N243DU";"LU96ZZZ0000000000000000058"
497;DE16500105175407875231;30.06.2023;30.06.2023;-320,31;EUR;"Gehringer";;;"Ing.Diba Ag 5324019888 30.06.2023";;;;;;"005";"Lastschrifteinzug";;;
498;DE16500105175407875231;30.06.2023;30.06.2023;-28,32;EUR;"Kfc 754 Alzenau";;;"AM CONTINENTAL GMBH + CO.KG//DARMSTADT/DE 2023.06.28T19.35.21 Folgenr.001 Verfalld.2026.12";"Lebenshaltung";"Gastronomie";"Lebenshaltung / Gastronomie";;;"005";"Lastschrifteinzug";"54225142004563280623193521";"193533";"DE95ZZZ00001664234"
499;DE16500105175407875231;30.06.2023;30.06.2023;-22,75;EUR;"Deutsche Tamoil GmbH";;;"HEM Tankstelle//Gelnhausen/DE 2023.06.29T18.59.10 Folgenr.000 Verfalld.2026.12";"Mobilität";"Tank- & Ladestelle";"Mobilität / Tank- & Ladestelle";;;"005";"Lastschrifteinzug";"74005356035097290623185910";"171102";"DE09WEA00000635060"
500;DE16500105175407875231;30.06.2023;30.06.2023;-1,28;EUR;;;;;"Finanzen & Versicherungen";"Bankgebühren";"Finanzen & Versicherungen / Bankgebühren";;;"026";"Abschluss";;;
501;DE16500105175407875231;30.06.2023;30.06.2023;-10,99;EUR;"SG-VR Payment GmbH";;;"Goy Systemgastronomie GmbH//ASCHAFFENBURG/DE 2023.06.27T17.33.36 Folgenr.000 Verfalld.2026.12";"Lebenshaltung";"Gastronomie";"Lebenshaltung / Gastronomie";;;"005";"Lastschrifteinzug";"52037292000025270623173336";"173359";"DE47ZZZ00000072455"
502;DE16500105175407875231;29.06.2023;29.06.2023;-54,00;EUR;"Cc-Gaststaettenbetriebs";;;"CC.GASTSTAETTENBETRIEBS GMBH GIR 69126516//KLEINOSTHEIM/DE 2023.06.28T21.23.18 Folgenr.000 Verfalld.2026.12";"Lebenshaltung";"Gastronomie";"Lebenshaltung / Gastronomie";;;"005";"Lastschrifteinzug";"69126516027500280623212318";"212354";"DE88ZZZ00001802100"
503;DE16500105175407875231;29.06.2023;29.06.2023;-117,47;EUR;"Netto Marken-Discoun";;;"NETTO MARKEN.DISCOU//MOEMBRIS/DE 2023.06.28T17.01.10 Folgenr.001 Verfalld.2026.12";"Lebenshaltung";"Lebensmittel";"Lebenshaltung / Lebensmittel";;;"005";"Lastschrifteinzug";"65375640176667280623170110";"170202";"DE61ZZZ00000018368"
504;DE16500105175407875231;28.06.2023;28.06.2023;301,36;EUR;"Kath. Kirchensteueramt Dioezese Wuerzburg";;;"Steuernummer 204 219 81435 Kirchensteuer Erstattung";"Staat & Behörde";"Steuer";"Staat & Behörde / Steuer";;;"051";"Gutschrift";;;
505;DE16500105175407875231;28.06.2023;28.06.2023;-8,99;EUR;"Amazon Eu S.A R.L., Niederlassung Deutschland";;;"D01.4755998.1195818 AMZNPrime DE 2EPD937NDREY7AAS";"Lebenshaltung";"Shopping";"Lebenshaltung / Shopping";;;"005";"Lastschrifteinzug";"2EPD937NDREY7AAS";"rOxHdfurPFKHn)Aq(.XhjI6?SxR+8m";"DE24ZZZ00000561652"
506;DE16500105175407875231;28.06.2023;28.06.2023;-60,85;EUR;"Esso Station";;;"ESSO STATION//Moembris/DE 2023.06.27T20.27.22 Folgenr.000 Verfalld.2026.12";"Mobilität";"Tank- & Ladestelle";"Mobilität / Tank- & Ladestelle";;;"005";"Lastschrifteinzug";"78100352123237270623202722";"202753";"DE16E0100000020245"
507;DE16500105175407875231;28.06.2023;28.06.2023;-10,00;EUR;"PayPal Europe S.a.r.l. et Cie S.C.A";;;"1027841140468 PP.5629.PP . 1.1 IONOS SE, Ihr Einkauf bei 1.1 IONOS SE";"Lebenshaltung";"Shopping";"Lebenshaltung / Shopping";;;"005";"Lastschrifteinzug";"1027841140468";"474J224N243DU";"LU96ZZZ0000000000000000058"
508;DE16500105175407875231;27.06.2023;27.06.2023;-0,99;EUR;"PayPal Europe S.a.r.l. et Cie S.C.A";;;"1027800940840 PP.5629.PP . Apple Services, Ihr Einkauf bei Apple Services";"Lebenshaltung";"Shopping";"Lebenshaltung / Shopping";;;"005";"Lastschrifteinzug";"1027800940840";"474J224N243DU";"LU96ZZZ0000000000000000058"
509;DE16500105175407875231;27.06.2023;27.06.2023;-21,00;EUR;"PayPal Europe S.a.r.l. et Cie S.C.A";;;"1027794012834 PP.5629.PP . ReservixGmbH, Ihr Einkauf bei Reservix GmbH";"Freizeit & Unterhaltung";"Kunst & Kultur";"Freizeit & Unterhaltung / Kunst & Kultur";;;"005";"Lastschrifteinzug";"1027794012834";"474J224N243DU";"LU96ZZZ0000000000000000058"
510;DE16500105175407875231;26.06.2023;26.06.2023;129,28;EUR;"ELKB KiSt.Amt Bayreuth";;;"Kirchensteuer.Erstattung. Steuernummer 204/219/81435";;;;;;"051";"Gutschrift";;;
511;DE16500105175407875231;26.06.2023;26.06.2023;-9,80;EUR;"Lastschrift aus Kartenzahlung";;;"CATERINGOFC KEGEL IMP//Offenbach/DE2023.06.24T19.01.48 Folgenr.000 Verfalld.2026.12";"Lebenshaltung";"Gastronomie";"Lebenshaltung / Gastronomie";;;"005";"Lastschrifteinzug";"68282069007588240623190148";"190057";"DE16E0100000020245"
512;DE16500105175407875231;26.06.2023;26.06.2023;-59,65;EUR;"Esso Station";;;"ESSO STATION//Moembris/DE 2023.06.25T12.59.48 Folgenr.001 Verfalld.2026.12";"Mobilität";"Tank- & Ladestelle";"Mobilität / Tank- & Ladestelle";;;"005";"Lastschrifteinzug";"78100352122136250623125948";"130007";"DE16E0100000020245"
513;DE16500105175407875231;26.06.2023;26.06.2023;-44,87;EUR;"Netto Marken-Discoun";;;"NETTO MARKEN.DISCOU//MOEMBRIS/DE 2023.06.24T16.27.22 Folgenr.001 Verfalld.2026.12";"Lebenshaltung";"Lebensmittel";"Lebenshaltung / Lebensmittel";;;"005";"Lastschrifteinzug";"65375640176339240623162722";"162746";"DE61ZZZ00000018368"
514;DE16500105175407875231;26.06.2023;26.06.2023;-41,10;EUR;"Lastschrift aus Kartenzahlung";;;"CATERINGOFC KEGEL IMP//Offenbach/DE2023.06.24T17.47.17 Folgenr.000 Verfalld.2026.12";"Lebenshaltung";"Gastronomie";"Lebenshaltung / Gastronomie";;;"005";"Lastschrifteinzug";"68282069007461240623174717";"174623";"DE16E0100000020245"
515;DE16500105175407875231;26.06.2023;26.06.2023;-3,95;EUR;"SCHUFA Holding AG";;;"Kunde.7008178893,Bestellung.0017813168,Rechnung.501013313291";;;;;;"005";"Lastschrifteinzug";;"000005596370";"DE87ZZZ00000239351"
516;DE16500105175407875231;26.06.2023;26.06.2023;-3,80;EUR;"Lastschrift aus Kartenzahlung";;;"CATERINGOFC KEGEL IMP//Offenbach/DE2023.06.24T19.40.59 Folgenr.000 Verfalld.2026.12";"Lebenshaltung";"Gastronomie";"Lebenshaltung / Gastronomie";;;"005";"Lastschrifteinzug";"68282069007695240623194059";"194005";"DE16E0100000020245"
517;DE16500105175407875231;26.06.2023;26.06.2023;-30,93;EUR;"Nkd Deutschland Gmbh";;;"Elv61721013 22.06 15.14 Me1 Vielendank Fuer Ihren Eink";"Lebenshaltung";"Shopping";"Lebenshaltung / Shopping";;;"005";"Lastschrifteinzug";"IC-14706624070";"6172101355872306221514";"DE56ZZZ00000854404"
518;DE16500105175407875231;26.06.2023;26.06.2023;-17,14;EUR;"Aral Ag";;;"ARAL M.mbris Kahlgrundstra.e 137//M.mbris/DE 2023.06.25T16.47.14 Folgenr.000 Verfalld.2026.12";"Mobilität";"Tank- & Ladestelle";"Mobilität / Tank- & Ladestelle";;;"005";"Lastschrifteinzug";"71114643061750250623164714";"164716";"DE79ZZZ00000465117"
519;DE16500105175407875231;26.06.2023;26.06.2023;-129,95;EUR;"Rv-Bank Aschaffenburg";;;"RV.Bank AB MOEMBRIS//MOEMBRIS/DE 2023.06.24T16.38.16 Folgenr.000 Verfalld.2026.12 Entgelt 4,95EUR";"Finanzen & Versicherungen";"Geldautomat";"Finanzen & Versicherungen / Geldautomat";;;"005";"Lastschrifteinzug";"00003271005993240623163816";"163841";"DE48ZZZ00000055947"
520;DE16500105175407875231;23.06.2023;23.06.2023;-9,60;EUR;"Worldline Sweden AB fuer Shell";;;"SHELL 5481// Alzenau /DE 2023.06.22T09.14.42 Folgenr.000 Verfalld.2026.12";"Mobilität";"Tank- & Ladestelle";"Mobilität / Tank- & Ladestelle";;;"005";"Lastschrifteinzug";"70011027467079220623091442";"091450";"SE917375565480026"
521;DE16500105175407875231;23.06.2023;23.06.2023;-69,17;EUR;"Unicredit W/ Total";;;"TOTAL Service Station//KARLSTEIN/DE2023.06.22T17.44.36 Folgenr.000 Verfalld.2026.12";"Mobilität";"Tank- & Ladestelle";"Mobilität / Tank- & Ladestelle";;;"005";"Lastschrifteinzug";"54706198874370220623174436";"174444";"DE28MTO00000009650"
522;DE16500105175407875231;23.06.2023;23.06.2023;-58,35;EUR;"Esso Station";;;"ESSO STATION//Moembris/DE 2023.06.22T20.39.06 Folgenr.001 Verfalld.2026.12";"Mobilität";"Tank- & Ladestelle";"Mobilität / Tank- & Ladestelle";;;"005";"Lastschrifteinzug";"78100352121059220623203906";"203921";"DE16E0100000020245"
523;DE16500105175407875231;23.06.2023;23.06.2023;-4,57;EUR;"Getraenke Sittinger";;;"GETRAENKE SITTINGER//Alzenau/DE 2023.06.22T15.52.59 Folgenr.000 Verfalld.2026.12";"Lebenshaltung";"Lebensmittel";"Lebenshaltung / Lebensmittel";;;"005";"Lastschrifteinzug";"55579770157802220623155259";"155319";"DE18ZZZ00000276192"
524;DE16500105175407875231;23.06.2023;23.06.2023;-20,00;EUR;"Esso Station";;;"ESSO STATION//Moembris/DE 2023.06.22T07.21.39 Folgenr.000 Verfalld.2026.12";"Mobilität";"Tank- & Ladestelle";"Mobilität / Tank- & Ladestelle";;;"005";"Lastschrifteinzug";"78100352120674220623072139";"072201";"DE16E0100000020245"
525;DE16500105175407875231;23.06.2023;23.06.2023;-11,00;EUR;"TEDi GmbH + Co. KG";;;"TEDi Fil. 4421//Alzenau/DE 2023.06.22T15.34.02 Folgenr.000 Verfalld.2026.12";"Lebenshaltung";"Shopping";"Lebenshaltung / Shopping";;;"005";"Lastschrifteinzug";"61700810049762220623153402";"153416";"DE36ZZZ00000057327"
526;DE16500105175407875231;22.06.2023;22.06.2023;-81,61;EUR;"REWE Kornelius Gol";;;"REWE SAGT DANKE. 44652171//Moembris/DE 2023.06.21T12.48.11 Folgenr.001Verfalld.2026.12";"Lebenshaltung";"Lebensmittel";"Lebenshaltung / Lebensmittel";;;"005";"Lastschrifteinzug";"56026223680032210623124811";"124817";"DE16RPA00000020245"
527;DE16500105175407875231;22.06.2023;22.06.2023;-20,00;EUR;"Worldline Sweden AB fuer Shell";;;"SHELL 5481// Alzenau /DE 2023.06.21T13.53.54 Folgenr.000 Verfalld.2026.12";"Mobilität";"Tank- & Ladestelle";"Mobilität / Tank- & Ladestelle";;;"005";"Lastschrifteinzug";"70011027466489210623135354";"135402";"SE917375565480026"
528;DE16500105175407875231;22.06.2023;22.06.2023;-232,00;EUR;"PayPal (Europe) S.a r.l. etCie, S.C.A.";;;"1027717914467 PP.5629.PP . Greenwood Sport, Ihr Einkauf bei GreenwoodSport";"Lebenshaltung";"Shopping";"Lebenshaltung / Shopping";;;"005";"Lastschrifteinzug";"1027717914467PP.5629.PP PAYPAL";"474J224N243DU";"LU96ZZZ0000000000000000058"
529;DE16500105175407875231;21.06.2023;21.06.2023;-41,90;EUR;"REWE Kornelius Gol";;;"REWE SAGT DANKE. 44652171//Moembris/DE 2023.06.20T13.01.21 Folgenr.001Verfalld.2026.12";"Lebenshaltung";"Lebensmittel";"Lebenshaltung / Lebensmittel";;;"005";"Lastschrifteinzug";"56026223679747200623130121";"130125";"DE16RPA00000020245"
530;DE16500105175407875231;21.06.2023;21.06.2023;-38,99;EUR;"Amazon Eu S.A R.L., Niederlassung Deutschland";;;"302.9752831.5004325 Amazon.de QQ7FQYJQNWSE71T3";"Lebenshaltung";"Shopping";"Lebenshaltung / Shopping";;;"005";"Lastschrifteinzug";"QQ7FQYJQNWSE71T3";"rOxHdfurPFKHn)Aq(.XhjI6?SxR+8m";"DE24ZZZ00000561652"
531;DE16500105175407875231;21.06.2023;21.06.2023;-26,95;EUR;"Deutsche Tamoil GmbH";;;"HEM Tankstelle//Gelnhausen/DE 2023.06.20T16.51.49 Folgenr.000 Verfalld.2026.12";"Mobilität";"Tank- & Ladestelle";"Mobilität / Tank- & Ladestelle";;;"005";"Lastschrifteinzug";"74005356030041200623165149";"150335";"DE09WEA00000635060"
532;DE16500105175407875231;20.06.2023;20.06.2023;-6,99;EUR;"PayPal (Europe) S.a r.l. etCie, S.C.A.";;;"1027673434803 PP.5629.PP . Microsoft Payments, Ihr Einkauf bei Microsoft Payments";"Freizeit & Unterhaltung";"Medien";"Freizeit & Unterhaltung / Medien";;;"005";"Lastschrifteinzug";"1027673434803PP.5629.PP PAYPAL";"474J224N243DU";"LU96ZZZ0000000000000000058"
533;DE16500105175407875231;20.06.2023;20.06.2023;-20,89;EUR;"Amazon Payments Europe S.C.A.";;;"304.0267416.1540371 AMZN Mktp DE 4LWV6QZX7SS65WBZ";"Lebenshaltung";"Shopping";"Lebenshaltung / Shopping";;;"005";"Lastschrifteinzug";"4LWV6QZX7SS65WBZ";"rOxHdfurPFKHn)Aq(.XhjI6?SxR+8m";"DE94ZZZ00000561653"
534;DE16500105175407875231;19.06.2023;19.06.2023;-78,01;EUR;"Unicredit W/ Total";;;"TOTAL Service Station//KARLSTEIN/DE2023.06.18T17.12.00 Folgenr.000 Verfalld.2026.12";"Mobilität";"Tank- & Ladestelle";"Mobilität / Tank- & Ladestelle";;;"005";"Lastschrifteinzug";"54706198861810180623171200";"171209";"DE28MTO00000009650"
535;DE16500105175407875231;19.06.2023;19.06.2023;-45,38;EUR;"REWE Kornelius Gol";;;"REWE SAGT DANKE. 44652171//Moembris/DE 2023.06.17T12.03.54 Folgenr.001Verfalld.2026.12";"Lebenshaltung";"Lebensmittel";"Lebenshaltung / Lebensmittel";;;"005";"Lastschrifteinzug";"56026222385994170623120354";"120434";"DE16RPA00000020245"
536;DE16500105175407875231;19.06.2023;19.06.2023;-37,48;EUR;"mobilcom-debitel ist nun freenet";;;"Kd.1115915714 Wir sagen Danke. RG.Nr.P23006843199 37,48 EUR";"Lebenshaltung";"Handy & Internet";"Lebenshaltung / Handy & Internet";;;"005";"Lastschrifteinzug";"1115915714/939725281588";"DL-1115915714-000001";"DE43ZZZ00000074855"
537;DE16500105175407875231;19.06.2023;19.06.2023;-27,85;EUR;"Netto Marken-Discoun";;;"NETTO MARKEN.DISCOU//MOEMBRIS/DE 2023.06.16T19.22.27 Folgenr.000 Verfalld.2026.12";"Lebenshaltung";"Lebensmittel";"Lebenshaltung / Lebensmittel";;;"005";"Lastschrifteinzug";"65375639565303160623192227";"192250";"DE61ZZZ00000018368"
538;DE16500105175407875231;19.06.2023;19.06.2023;-17,85;EUR;"REWE Kornelius Gol";;;"REWE SAGT DANKE. 44652171//Moembris/DE 2023.06.17T19.54.49 Folgenr.001Verfalld.2026.12";"Lebenshaltung";"Lebensmittel";"Lebenshaltung / Lebensmittel";;;"005";"Lastschrifteinzug";"56026223679397170623195449";"195455";"DE16RPA00000020245"
539;DE16500105175407875231;19.06.2023;19.06.2023;-16,94;EUR;"Netto Marken-Discoun";;;"NETTO MARKEN.DISCOU//MOEMBRIS/DE 2023.06.16T17.58.18 Folgenr.001 Verfalld.2026.12";"Lebenshaltung";"Lebensmittel";"Lebenshaltung / Lebensmittel";;;"005";"Lastschrifteinzug";"65375641129987160623175818";"175856";"DE61ZZZ00000018368"
540;DE16500105175407875231;19.06.2023;19.06.2023;-146,26;EUR;"Takko Holding Gmbh";;;"Takko Fashion 1565//Moembris/DE 2023.06.16T17.43.31 Folgenr.001 Verfalld.2026.12";"Lebenshaltung";"Shopping";"Lebenshaltung / Shopping";;;"005";"Lastschrifteinzug";"61722736013264160623174331";"174401";"DE11ZZZ00000009471"
541;DE16500105175407875231;16.06.2023;16.06.2023;-16,02;EUR;"Markt Apotheke";;;"MARKT.APOTHEKE CHRISTIAN H//MOEMBRIS/DE 2023.06.15T16.44.34 Folgenr.001 Verfalld.2026.12";"Lebenshaltung";"Gesundheit";"Lebenshaltung / Gesundheit";;;"005";"Lastschrifteinzug";"54140193030113150623164434";"164447";"DE28ZZZ00000161261"
542;DE16500105175407875231;15.06.2023;15.06.2023;-96,39;EUR;"Netto Marken-Discoun";;;"NETTO MARKEN.DISCOU//MOEMBRIS/DE 2023.06.14T13.17.59 Folgenr.001 Verfalld.2026.12";"Lebenshaltung";"Lebensmittel";"Lebenshaltung / Lebensmittel";;;"005";"Lastschrifteinzug";"65375641129767140623131759";"131904";"DE61ZZZ00000018368"
543;DE16500105175407875231;15.06.2023;15.06.2023;-250,00;EUR;"Walter Gehringer";"DE37795625140003210677";"GENODEF1AB1";"Nebenkosten";"Lebenshaltung";"Wohnen & Wohnnebenkosten";"Lebenshaltung / Wohnen & Wohnnebenkosten";;;"013";"Dauerauftrag/Terminueberweisung";;;
544;DE16500105175407875231;12.06.2023;12.06.2023;-66,32;EUR;"Esso Station";;;"ESSO STATION//Moembris/DE 2023.06.11T15.27.53 Folgenr.000 Verfalld.2026.12";"Mobilität";"Tank- & Ladestelle";"Mobilität / Tank- & Ladestelle";;;"005";"Lastschrifteinzug";"78100352116349110623152753";"152855";"DE16E0100000020245"
545;DE16500105175407875231;12.06.2023;12.06.2023;-60,80;EUR;"TEDi GmbH + Co. KG";;;"TEDi//Moembris/DE 2023.06.09T14.22.11 Folgenr.000 Verfalld.2026.12";"Lebenshaltung";"Shopping";"Lebenshaltung / Shopping";;;"005";"Lastschrifteinzug";"61495136057649090623142211";"142207";"DE36ZZZ00000057327"
546;DE16500105175407875231;12.06.2023;12.06.2023;-5,99;EUR;"Amazon Digital Germany Gmbh";;;"D01.1370326.3311057 Prime Video Channels 3H7PSJ5RVVZSS5VQ";"Freizeit & Unterhaltung";"Streaming";"Freizeit & Unterhaltung / Streaming";;;"005";"Lastschrifteinzug";"3H7PSJ5RVVZSS5VQ";"rOxHdfurPFKHn)Aq(.XhjI6?SxR+8m";"DE96ZZZ00000594888"
547;DE16500105175407875231;12.06.2023;12.06.2023;-42,02;EUR;"Netto Marken-Discoun";;;"NETTO MARKEN.DISCOU//MOEMBRIS/DE 2023.06.10T14.56.44 Folgenr.000 Verfalld.2026.12";"Lebenshaltung";"Lebensmittel";"Lebenshaltung / Lebensmittel";;;"005";"Lastschrifteinzug";"65375639563694100623145644";"145656";"DE61ZZZ00000018368"
548;DE16500105175407875231;12.06.2023;12.06.2023;-37,00;EUR;"Unicredit W/ Total";;;"TOTAL Service Station//KARLSTEIN/DE2023.06.09T14.42.18 Folgenr.000 Verfalld.2026.12";"Mobilität";"Tank- & Ladestelle";"Mobilität / Tank- & Ladestelle";;;"005";"Lastschrifteinzug";"54706198832870090623144218";"144226";"DE28MTO00000009650"
549;DE16500105175407875231;09.06.2023;09.06.2023;-114,95;EUR;"Esso Station";;;"ESSO STATION//Lauterbach/DE 2023.06.08T18.51.28 Folgenr.001 Verfalld.2026.12";"Mobilität";"Tank- & Ladestelle";"Mobilität / Tank- & Ladestelle";;;"005";"Lastschrifteinzug";"78100225892271080623185128";"185228";"DE16E0100000020245"
550;DE16500105175407875231;08.06.2023;08.06.2023;-7,30;EUR;"TEDi GmbH + Co. KG";;;"TEDi//Moembris/DE 2023.06.07T12.32.51 Folgenr.000 Verfalld.2026.12";"Lebenshaltung";"Shopping";"Lebenshaltung / Shopping";;;"005";"Lastschrifteinzug";"61495136057539070623123251";"123245";"DE36ZZZ00000057327"
551;DE16500105175407875231;08.06.2023;08.06.2023;-39,00;EUR;"Worldline Sweden AB fuer Shell";;;"SHELL 5481// Alzenau /DE 2023.06.07T17.18.03 Folgenr.000 Verfalld.2026.12";"Mobilität";"Tank- & Ladestelle";"Mobilität / Tank- & Ladestelle";;;"005";"Lastschrifteinzug";"70011027459385070623171803";"171813";"SE917375565480026"
552;DE16500105175407875231;08.06.2023;08.06.2023;-14,82;EUR;"Netto Marken-Discoun";;;"NETTO MARKEN.DISCOU//MOEMBRIS/DE 2023.06.07T11.54.38 Folgenr.000 Verfalld.2026.12";"Lebenshaltung";"Lebensmittel";"Lebenshaltung / Lebensmittel";;;"005";"Lastschrifteinzug";"65375640174752070623115438";"115533";"DE61ZZZ00000018368"
553;DE16500105175407875231;07.06.2023;07.06.2023;-31,19;EUR;"REWE Kornelius Gol";;;"REWE SAGT DANKE. 44652172//Moembris/DE 2023.06.06T12.43.41 Folgenr.001Verfalld.2026.12";"Lebenshaltung";"Lebensmittel";"Lebenshaltung / Lebensmittel";;;"005";"Lastschrifteinzug";"56026270164410060623124341";"124420";"DE16RPA00000020245"
554;DE16500105175407875231;07.06.2023;07.06.2023;-25,23;EUR;"Netto Marken-Discoun";;;"NETTO MARKEN.DISCOU//MOEMBRIS/DE 2023.06.06T15.31.41 Folgenr.001 Verfalld.2026.12";"Lebenshaltung";"Lebensmittel";"Lebenshaltung / Lebensmittel";;;"005";"Lastschrifteinzug";"65375639562334060623153141";"153146";"DE61ZZZ00000018368"
555;DE16500105175407875231;06.06.2023;06.06.2023;-93,88;EUR;"Netto Marken-Discoun";;;"NETTO MARKEN.DISCOU//MOEMBRIS/DE 2023.06.02T10.10.25 Folgenr.001 Verfalld.2026.12";"Lebenshaltung";"Lebensmittel";"Lebenshaltung / Lebensmittel";;;"005";"Lastschrifteinzug";"65375639561193020623101025";"101045";"DE61ZZZ00000018368"
556;DE16500105175407875231;06.06.2023;06.06.2023;-90,59;EUR;"Netto Marken-Discoun";;;"NETTO MARKEN.DISCOU//MOEMBRIS/DE 2023.06.05T16.58.04 Folgenr.001 Verfalld.2026.12";"Lebenshaltung";"Lebensmittel";"Lebenshaltung / Lebensmittel";;;"005";"Lastschrifteinzug";"65375640174713050623165804";"165830";"DE61ZZZ00000018368"
557;DE16500105175407875231;06.06.2023;06.06.2023;-6,00;EUR;"PayPal Europe S.a.r.l. et Cie S.C.A";;;"1027370502818 PP.5629.PP . HD PLUSGmbH, Ihr Einkauf bei HD PLUS GmbH";"Lebenshaltung";"Handy & Internet";"Lebenshaltung / Handy & Internet";;;"005";"Lastschrifteinzug";"1027370502818";"474J224N243DU";"LU96ZZZ0000000000000000058"
558;DE16500105175407875231;06.06.2023;06.06.2023;-67,68;EUR;"REWE Markt GmbH";;;"REWE SAGT DANKE. 44400844//Alzenau/DE 2023.06.02T15.25.21 Folgenr.000Verfalld.2026.12";"Lebenshaltung";"Lebensmittel";"Lebenshaltung / Lebensmittel";;;"005";"Lastschrifteinzug";"56026309128438020623152521";"152446";"DE58ZZZ00000257236"
559;DE16500105175407875231;06.06.2023;06.06.2023;-58,08;EUR;"toom BM Alzenau";;;"TOOM BM SAGT DANKE 13563651//Alzenau/DE 2023.06.05T17.58.06 Folgenr.000 Verfalld.2026.12";"Lebenshaltung";"Baumarkt & Gartencenter";"Lebenshaltung / Baumarkt & Gartencenter";;;"005";"Lastschrifteinzug";"56013478548437050623175806";"175855";"DE86ZZZ00000257217"
560;DE16500105175407875231;06.06.2023;06.06.2023;-39,15;EUR;"Nah Und Gut Conrad";;;"CARMEN CONRAD E.K.//KARLSTEIN A. MAIN/DE 2023.06.05T08.39.28 Folgenr.000 Verfalld.2026.12";"Lebenshaltung";"Lebensmittel";"Lebenshaltung / Lebensmittel";;;"005";"Lastschrifteinzug";"54513360327837050623083928";"083933";"DE02ZZZ00002314935"
561;DE16500105175407875231;06.06.2023;06.06.2023;-269,50;EUR;"PayPal Europe S.a.r.l. et Cie S.C.A";;;"1027410060002 PP.5629.PP . ABSOLUTETEAMSPORT UNTERMAIN GmbH, Ihr Einkauf bei ABSOLUTE TEAMSPORT UNTERMAIN GmbH";"Lebenshaltung";"Shopping";"Lebenshaltung / Shopping";;;"005";"Lastschrifteinzug";"1027410060002";"474J224N243DU";"LU96ZZZ0000000000000000058"
562;DE16500105175407875231;05.06.2023;05.06.2023;750,00;EUR;"Bundesagentur fur Arbeit - Familienkasse";;;"Kg735715Fk276070 0623 80053792162/3000098731709";"Finanzen & Versicherungen";"Kindergeld & Unterhalt";"Finanzen & Versicherungen / Kindergeld & Unterhalt";;;"051";"Gutschrift";"80053792162";;
563;DE16500105175407875231;05.06.2023;05.06.2023;-893,57;EUR;"VW-Bank";;;"11876525 Alz.Gg66 10 06 23";"Mobilität";"Auto & Motorrad";"Mobilität / Auto & Motorrad";;;"005";"Lastschrifteinzug";"KKFV1187652520230526010076189224041";"041600118765250001";"DE85BNK00000072741"
564;DE16500105175407875231;05.06.2023;05.06.2023;-78,45;EUR;"Ambiente Alzenau";;;"Ambiente//Alzenau/DE 2023.06.02T15.11.58 Folgenr.000 Verfalld.2026.12";;;;;;"005";"Lastschrifteinzug";"61405451205972020623151158";"151232";"DE11ZZZ00000009471"
565;DE16500105175407875231;05.06.2023;05.06.2023;-7,25;EUR;"Dm Drogeriemarkt Sagt Danke";;;"DM FIL.2217 H.65227//ALZENAU/DE 2023.06.02T15.02.09 Folgenr.000 Verfalld.2026.12";"Lebenshaltung";"Körperpflege & Wellness";"Lebenshaltung / Körperpflege & Wellness";;;"005";"Lastschrifteinzug";"65227960818746020623150209";"150217";"DE32ZZZ00000500592"
566;DE16500105175407875231;05.06.2023;05.06.2023;-255,00;EUR;"Aldi Sued Sagt Danke";;;"ALDI SE + CO. KG//ALZENAU/DE 2023.06.02T14.48.56 Folgenr.000 Verfalld.2026.12";"Lebenshaltung";"Lebensmittel";"Lebenshaltung / Lebensmittel";;;"005";"Lastschrifteinzug";"65476248461447020623144856";"144910";"DE50ZZZ00001717715"
567;DE16500105175407875231;02.06.2023;02.06.2023;-0,99;EUR;"Ing";;;"Girocard 260006800102Monatliches Entgeltgirocard (Debitkarte)";"Finanzen & Versicherungen";"Bankgebühren";"Finanzen & Versicherungen / Bankgebühren";;;"027";"Entgelt";;;
568;DE16500105175407875231;02.06.2023;02.06.2023;-0,99;EUR;"Ing";;;"Girocard 260006683584Monatliches Entgeltgirocard (Debitkarte)";"Finanzen & Versicherungen";"Bankgebühren";"Finanzen & Versicherungen / Bankgebühren";;;"027";"Entgelt";;;
569;DE16500105175407875231;02.06.2023;02.06.2023;-74,00;EUR;"Cyriakus-Verein e.V.";;;"Kindergartenbeitrag 06.2023 fuer Gehringer Smilla";"Lebenshaltung";"Kinder";"Lebenshaltung / Kinder";;;"005";"Lastschrifteinzug";"K61206-2023";"Sausewind317";"DE74ZZZ00000733800"
570;DE16500105175407875231;01.06.2023;01.06.2023;-7,90;EUR;"Nurnberger Krankenversicherung Aktiengesellschaft";;;"5134538 Nkv Krankenvers. R/ 01.06.2023 7,90";"Finanzen & Versicherungen";"Versicherungen";"Finanzen & Versicherungen / Versicherungen";;;"005";"Lastschrifteinzug";"2314518295365";"0210090000051345382018001";"DE14ZZZ00000057335"
571;DE16500105175407875231;01.06.2023;01.06.2023;-70,07;EUR;"REWE Kornelius Gol";;;"REWE SAGT DANKE. 44652171//Moembris/DE 2023.05.31T11.16.10 Folgenr.001Verfalld.2026.12";"Lebenshaltung";"Lebensmittel";"Lebenshaltung / Lebensmittel";;;"005";"Lastschrifteinzug";"56026223674812310523111610";"111622";"DE16RPA00000020245"
572;DE16500105175407875231;01.06.2023;01.06.2023;-62,45;EUR;"VOLKSWOHL BUND Lebensversicherung a.G.";;;"008768131 La000528869/ 008768131 Risiko 62,45";"Finanzen & Versicherungen";"Versicherungen";"Finanzen & Versicherungen / Versicherungen";;;"005";"Lastschrifteinzug";"008768131/NVMA.G1032-258879";"LA000528869";"DE13ZZZ00000141064"
573;DE16500105175407875231;01.06.2023;01.06.2023;-57,41;EUR;"Allianz Lebensvers.";;;"Vertrag AL.0043152366 01.06.23 . 30.06.23 StartPolice";"Finanzen & Versicherungen";"Versicherungen";"Finanzen & Versicherungen / Versicherungen";;;"005";"Lastschrifteinzug";"AB223146-E00740026";"LA01L312001056217739";"DE07ZZZ00000063475"
574;DE16500105175407875231;01.06.2023;01.06.2023;-52,74;EUR;"REWE Kornelius Gol";;;"REWE SAGT DANKE. 44652172//Moembris/DE 2023.05.31T10.54.49 Folgenr.001Verfalld.2026.12";"Lebenshaltung";"Lebensmittel";"Lebenshaltung / Lebensmittel";;;"005";"Lastschrifteinzug";"56026270164205310523105449";"105533";"DE16RPA00000020245"
575;DE16500105175407875231;01.06.2023;01.06.2023;-20,00;EUR;"Unicredit W/ Total";;;"TOTAL Service Station//KARLSTEIN/DE2023.05.31T07.59.27 Folgenr.000 Verfalld.2026.12";"Mobilität";"Tank- & Ladestelle";"Mobilität / Tank- & Ladestelle";;;"005";"Lastschrifteinzug";"54706198804660310523075927";"075935";"DE28MTO00000009650"
576;DE16500105175407875231;01.06.2023;01.06.2023;-28,00;EUR;"Christina Stieber";;;"Tanzschule Alzenau Smilla KreativerKindertanz";"Freizeit & Unterhaltung";"Sport";"Freizeit & Unterhaltung / Sport";;;"005";"Lastschrifteinzug";;"3003";"DE84ZZZ00000624883"
577;DE16500105175407875231;01.06.2023;01.06.2023;-278,01;EUR;"VOLKSWOHL BUND Lebensversicherung a.G.";;;"009984035 La000528870/ 009984035 Rente 278,01";"Finanzen & Versicherungen";"Versicherungen";"Finanzen & Versicherungen / Versicherungen";;;"005";"Lastschrifteinzug";"009984035/NVMA.G1032-258880";"LA000528870";"DE13ZZZ00000141064"
578;DE16500105175407875231;01.06.2023;01.06.2023;-21,24;EUR;"Allianz Versicherungs-AG";;;"90/0542/2946744 Unfall Pr";"Finanzen & Versicherungen";"Versicherungen";"Finanzen & Versicherungen / Versicherungen";;;"005";"Lastschrifteinzug";"A1923146-01092023052690232553";"ADAGSFF0000000344810";"DE10ZZZ00000051878"
579;DE16500105175407875231;01.06.2023;01.06.2023;-159,60;EUR;"AXA Krankenversicherung AG";;;"Krankenvers. 4958423794 BTR. 06/23159,60. EUR";"Finanzen & Versicherungen";"Versicherungen";"Finanzen & Versicherungen / Versicherungen";;;"005";"Lastschrifteinzug";"550029007228/0003";"21053190502";"DE23G0100000066097"
580;DE16500105175407875231;31.05.2023;31.05.2023;-66,99;EUR;"Worldline Sweden AB fuer Shell";;;"SHELL 5481// Alzenau /DE 2023.05.30T13.35.41 Folgenr.000 Verfalld.2026.12";"Mobilität";"Tank- & Ladestelle";"Mobilität / Tank- & Ladestelle";;;"005";"Lastschrifteinzug";"70011027455746300523133541";"133549";"SE917375565480026"
581;DE16500105175407875231;31.05.2023;31.05.2023;-39,00;EUR;"PayPal Europe S.a.r.l. et Cie S.C.A";;;"1027293370463 PP.5629.PP . , Ihr Einkauf bei";"Lebenshaltung";"Shopping";"Lebenshaltung / Shopping";;;"005";"Lastschrifteinzug";"1027293370463";"474J224N243DU";"LU96ZZZ0000000000000000058"
582;DE16500105175407875231;31.05.2023;31.05.2023;-181,30;EUR;"Tk Maxx Aschaffenburg";;;"TK Maxx Aschaffenburg//Aschaffenburg/DE 2023.05.30T14.40.31 Folgenr.001 Verfalld.2026.12";"Lebenshaltung";"Shopping";"Lebenshaltung / Shopping";;;"005";"Lastschrifteinzug";"67019611322741300523144031";"144121";"DE95ZZZ00001733007"
583;DE16500105175407875231;31.05.2023;31.05.2023;-124,95;EUR;"Rv-Bank Aschaffenburg";;;"RV.BANK AB Kahl am Main//Kahl Am Main/DE 2023.05.30T16.06.15 Folgenr.000 Verfalld.2026.12 Entgelt 4,95EUR";"Finanzen & Versicherungen";"Geldautomat";"Finanzen & Versicherungen / Geldautomat";;;"005";"Lastschrifteinzug";"00005530000685300523160615";"160633";"DE48ZZZ00000055947"
584;DE16500105175407875231;30.05.2023;30.05.2023;2.919,48;EUR;"La Bottega Toscana J. Hofacker e.K.";;;"lfd. Gehalt LabottegaToscana";"Finanzen & Versicherungen";"Lohn & Gehalt";"Finanzen & Versicherungen / Lohn & Gehalt";;;"052";"Gutschrift aus Dauerauftrag";;;
585;DE16500105175407875231;30.05.2023;30.05.2023;-8,99;EUR;"Amazon Eu S.A R.L., Niederlassung Deutschland";;;"D01.1720383.2162238 AMZNPrime DE 3DWIBNVC2NZ49ONZ";"Lebenshaltung";"Shopping";"Lebenshaltung / Shopping";;;"005";"Lastschrifteinzug";"3DWIBNVC2NZ49ONZ";"rOxHdfurPFKHn)Aq(.XhjI6?SxR+8m";"DE24ZZZ00000561652"
586;DE16500105175407875231;30.05.2023;30.05.2023;-68,95;EUR;"Adyen N.V.";;;"The ASH Troisdorf/Luxemburger Strae/Troisdorf . S/DE 2023.05.27T20.32.21 Folgenr.000 Verfalld.2026.12";;;;;;"005";"Lastschrifteinzug";"50716709006459270523203239";"203238";"NL48ZZZ342764500000"
587;DE16500105175407875231;30.05.2023;30.05.2023;-5,57;EUR;"PayPal (Europe) S.a r.l. etCie, S.C.A.";;;"1027256244501 . Tier Mobility SE, Ihr Einkauf bei Tier Mobility SE";"Lebenshaltung";"Shopping";"Lebenshaltung / Shopping";;;"005";"Lastschrifteinzug";"1027256244501 PAYPAL";"474J224N243DU";"LU96ZZZ0000000000000000058"
588;DE16500105175407875231;30.05.2023;30.05.2023;-320,31;EUR;"Gehringer";;;"Ing.Diba Ag 5324019888 30.05.2023";;;;;;"005";"Lastschrifteinzug";;;
589;DE16500105175407875231;30.05.2023;30.05.2023;-25,95;EUR;"Unicredit W/ Total";;;"TOTAL Service Station//KARLSTEIN/DE2023.05.29T19.59.39 Folgenr.000 Verfalld.2026.12";"Mobilität";"Tank- & Ladestelle";"Mobilität / Tank- & Ladestelle";;;"005";"Lastschrifteinzug";"54706198801650290523195939";"195949";"DE28MTO00000009650"
590;DE16500105175407875231;30.05.2023;30.05.2023;-1,00;EUR;"PayPal (Europe) S.a r.l. etCie, S.C.A.";;;"1027248012820 PP.5629.PP . 1+1 IONOS SE, Ihr Einkauf bei 1+1 IONOS SE";"Lebenshaltung";"Shopping";"Lebenshaltung / Shopping";;;"005";"Lastschrifteinzug";"1027248012820PP.5629.PP PAYPAL";"474J224N243DU";"LU96ZZZ0000000000000000058"
591;DE16500105175407875231;30.05.2023;30.05.2023;-114,92;EUR;"Aral Ag";;;"ARAL M.mbris Kahlgrundstra.e 137//M.mbris/DE 2023.05.29T18.33.28 Folgenr.001 Verfalld.2026.12";"Mobilität";"Tank- & Ladestelle";"Mobilität / Tank- & Ladestelle";;;"005";"Lastschrifteinzug";"71114643037539290523183328";"183336";"DE79ZZZ00000465117"
592;DE16500105175407875231;29.05.2023;29.05.2023;1.500,00;EUR;"Tanja Gehringer";;;;;;;;;"051";"Gutschrift";;;
593;DE16500105175407875231;29.05.2023;29.05.2023;-51,60;EUR;"Eierkuchen Manufaktur .More";;;"Eierkuchen Manufaktur .More GIR 69234919//TROISDORF/DE 2023.05.26T22.03.17 Folgenr.000 Verfalld.2026.12";"Lebenshaltung";"Möbel & Einrichtung";"Lebenshaltung / Möbel & Einrichtung";;;"005";"Lastschrifteinzug";"69234919000922260523220317";"220419";"DE82CC000000346626"
594;DE16500105175407875231;29.05.2023;29.05.2023;-30,00;EUR;"Tankstelle";;;"Mundorf Tank 23//Troisdorf.Spich/DE2023.05.26T21.14.05 Folgenr.000 Verfalld.2026.12";"Mobilität";"Tank- & Ladestelle";"Mobilität / Tank- & Ladestelle";;;"005";"Lastschrifteinzug";"74053854346258260523211405";"211402";"DE09WEA00000635060"
595;DE16500105175407875231;29.05.2023;29.05.2023;-27,32;EUR;"Tankstelle";;;"Mundorf Tank 23//Troisdorf.Spich/DE2023.05.27T22.10.39 Folgenr.000 Verfalld.2026.12";"Mobilität";"Tank- & Ladestelle";"Mobilität / Tank- & Ladestelle";;;"005";"Lastschrifteinzug";"74053854347127270523221039";"221043";"DE09WEA00000635060"
596;DE16500105175407875231;29.05.2023;29.05.2023;-26,27;EUR;"Burger King Emenet, Alsbach";;;"BURGER KING EMENET, ALSBACH//ALSBACH.HA/DE 2023.05.28T12.44.23 Folgenr.001 Verfalld.2026.12";"Lebenshaltung";"Gastronomie";"Lebenshaltung / Gastronomie";;;"005";"Lastschrifteinzug";"58077771074222280523124423";"124435";"DE68Z0700000460950"
597;DE16500105175407875231;29.05.2023;29.05.2023;-21,69;EUR;"Tankstelle";;;"Mundorf Tank 23//Troisdorf.Spich/DE2023.05.27T21.29.10 Folgenr.000 Verfalld.2026.12";"Mobilität";"Tank- & Ladestelle";"Mobilität / Tank- & Ladestelle";;;"005";"Lastschrifteinzug";"74053854347090270523212910";"212913";"DE09WEA00000635060"
598;DE16500105175407875231;29.05.2023;29.05.2023;-21,40;EUR;"Tankstelle";;;"Mundorf Tank 23//Troisdorf.Spich/DE2023.05.28T10.14.09 Folgenr.000 Verfalld.2026.12";"Mobilität";"Tank- & Ladestelle";"Mobilität / Tank- & Ladestelle";;;"005";"Lastschrifteinzug";"74053854347353280523101409";"101417";"DE09WEA00000635060"
599;DE16500105175407875231;29.05.2023;29.05.2023;-120,35;EUR;"Lidl Dienstleistung Gmbh Und Co Kg";;;"LIDL DIENSTLEISTUNG GMBH UND CO KG//Alzenau/DE 2023.05.27T18.19.47 Folgenr.001 Verfalld.2026.12";"Lebenshaltung";"Lebensmittel";"Lebenshaltung / Lebensmittel";;;"005";"Lastschrifteinzug";"6015875513029827052318194702805926";"182135";"DE73DAB00000052684"
600;DE16500105175407875231;26.05.2023;26.05.2023;1.252,38;EUR;"StOk Bay f Finanzamt";;;"Erstatt.204/219/81435 Die Auflistung Der Einzelnen Erstattungsposten Ist Aus Der Erstattungsmitteilung Zuentnehmen.";;;;;;"051";"Gutschrift";"204/219/81435 DIEG2505202309900021";;
601;DE16500105175407875231;26.05.2023;26.05.2023;-0,99;EUR;"PayPal Europe S.a.r.l. et Cie S.C.A";;;"1027209729954 PP.5629.PP . Apple Services, Ihr Einkauf bei Apple Services";"Lebenshaltung";"Shopping";"Lebenshaltung / Shopping";;;"005";"Lastschrifteinzug";"1027209729954";"474J224N243DU";"LU96ZZZ0000000000000000058"
602;DE16500105175407875231;26.05.2023;26.05.2023;-3,95;EUR;"SCHUFA Holding AG";;;"Kunde.7008178893,Bestellung.0017813168,Rechnung.501013313291";;;;;;"005";"Lastschrifteinzug";;"000005596370";"DE87ZZZ00000239351"
603;DE16500105175407875231;25.05.2023;25.05.2023;-9,32;EUR;"Nah Und Gut Conrad";;;"CARMEN CONRAD E.K.//KARLSTEIN A. MAIN/DE 2023.05.24T18.41.35 Folgenr.000 Verfalld.2026.12";"Lebenshaltung";"Lebensmittel";"Lebenshaltung / Lebensmittel";;;"005";"Lastschrifteinzug";"54513360325196240523184135";"184141";"DE02ZZZ00002314935"
604;DE16500105175407875231;25.05.2023;25.05.2023;-11,15;EUR;"Unicredit W/ Total";;;"TOTAL Service Station//ALZENAU/DE 2023.05.24T17.47.17 Folgenr.000 Verfalld.2026.12";"Mobilität";"Tank- & Ladestelle";"Mobilität / Tank- & Ladestelle";;;"005";"Lastschrifteinzug";"54707064023550240523174717";"174725";"DE28MTO00000009650"
605;DE16500105175407875231;24.05.2023;24.05.2023;-73,96;EUR;"Unicredit W/ Total";;;"TOTAL Service Station//KARLSTEIN/DE2023.05.23T07.36.39 Folgenr.000 Verfalld.2026.12";"Mobilität";"Tank- & Ladestelle";"Mobilität / Tank- & Ladestelle";;;"005";"Lastschrifteinzug";"54706198782740230523073639";"073653";"DE28MTO00000009650"
606;DE16500105175407875231;24.05.2023;24.05.2023;-2,00;EUR;"Unicredit W/ Total";;;"TOTAL Service Station//KARLSTEIN/DE2023.05.23T07.38.48 Folgenr.000 Verfalld.2026.12";"Mobilität";"Tank- & Ladestelle";"Mobilität / Tank- & Ladestelle";;;"005";"Lastschrifteinzug";"54706198782760230523073848";"073856";"DE28MTO00000009650"
607;DE16500105175407875231;24.05.2023;24.05.2023;-135,67;EUR;"Nah Und Gut Conrad";;;"CARMEN CONRAD E.K.//KARLSTEIN A. MAIN/DE 2023.05.23T19.31.27 Folgenr.000 Verfalld.2026.12";"Lebenshaltung";"Lebensmittel";"Lebenshaltung / Lebensmittel";;;"005";"Lastschrifteinzug";"54513360324901230523193127";"193138";"DE02ZZZ00002314935"
608;DE16500105175407875231;23.05.2023;23.05.2023;-81,55;EUR;"Aral Ag";;;"ARAL M.mbris Kahlgrundstra.e 137//M.mbris/DE 2023.05.22T13.39.40 Folgenr.001 Verfalld.2026.12";"Mobilität";"Tank- & Ladestelle";"Mobilität / Tank- & Ladestelle";;;"005";"Lastschrifteinzug";"71114643030269220523133940";"133947";"DE79ZZZ00000465117"
609;DE16500105175407875231;23.05.2023;23.05.2023;-304,95;EUR;"Rv-Bank Aschaffenburg";;;"RV.Bank AB GOLDBACH//GOLDBACH/DE 2023.05.22T16.02.46 Folgenr.001 Verfalld.2026.12 Entgelt 4,95EUR";"Finanzen & Versicherungen";"Geldautomat";"Finanzen & Versicherungen / Geldautomat";;;"005";"Lastschrifteinzug";"00000112033718220523160246";"160309";"DE48ZZZ00000055947"
610;DE16500105175407875231;22.05.2023;22.05.2023;-6,99;EUR;"PayPal (Europe) S.a r.l. etCie, S.C.A.";;;"1027084560846 PP.5629.PP . Microsoft Payments, Ihr Einkauf bei Microsoft Payments";"Freizeit & Unterhaltung";"Medien";"Freizeit & Unterhaltung / Medien";;;"005";"Lastschrifteinzug";"1027084560846PP.5629.PP PAYPAL";"474J224N243DU";"LU96ZZZ0000000000000000058"
611;DE16500105175407875231;22.05.2023;22.05.2023;-23,18;EUR;"Unicredit W/ Total";;;"TOTAL Service Station//KARLSTEIN/DE2023.05.21T15.43.51 Folgenr.000 Verfalld.2026.12";"Mobilität";"Tank- & Ladestelle";"Mobilität / Tank- & Ladestelle";;;"005";"Lastschrifteinzug";"54706198778420210523154351";"154358";"DE28MTO00000009650"
612;DE16500105175407875231;22.05.2023;22.05.2023;-175,24;EUR;"PayPal Europe S.a.r.l. et Cie S.C.A";;;"1027101189271 PP.5629.PP . HartmutBauer e.K. Flaschen, Glaser, Dosen,Ihr Einkauf bei Hartmut Bauer e.K.Flaschen, Glaser, Dosen";"Lebenshaltung";"Shopping";"Lebenshaltung / Shopping";;;"005";"Lastschrifteinzug";"1027101189271";"474J224N243DU";"LU96ZZZ0000000000000000058"
613;DE16500105175407875231;22.05.2023;22.05.2023;-16,01;EUR;"Edeka Geka Schoellkrippen";;;"EDEKA GEKA SCHOELLKRIPPEN//SCHOELLKRIP/DE 2023.05.19T17.28.19 Folgenr.000 Verfalld.2026.12";"Lebenshaltung";"Lebensmittel";"Lebenshaltung / Lebensmittel";;;"005";"Lastschrifteinzug";"54282292859078190523172819";"172834";"DE63ZZZ00001092898"
614;DE16500105175407875231;19.05.2023;19.05.2023;-36,99;EUR;"mobilcom-debitel ist nun freenet";;;"Kd.1115915714 Wir sagen Danke. RG.Nr.P23005615711 36,99 EUR";"Lebenshaltung";"Handy & Internet";"Lebenshaltung / Handy & Internet";;;"005";"Lastschrifteinzug";"1115915714/930125553505";"DL-1115915714-000001";"DE43ZZZ00000074855"
615;DE16500105175407875231;17.05.2023;17.05.2023;-56,39;EUR;"Unicredit W/ Total";;;"TOTAL Service Station//KARLSTEIN/DE2023.05.16T14.38.33 Folgenr.000 Verfalld.2026.12";"Mobilität";"Tank- & Ladestelle";"Mobilität / Tank- & Ladestelle";;;"005";"Lastschrifteinzug";"54706198764580160523143833";"143845";"DE28MTO00000009650"
616;DE16500105175407875231;16.05.2023;16.05.2023;-113,03;EUR;"Nah Und Gut Conrad";;;"CARMEN CONRAD E.K.//KARLSTEIN A. MAIN/DE 2023.05.15T19.27.09 Folgenr.000 Verfalld.2026.12";"Lebenshaltung";"Lebensmittel";"Lebenshaltung / Lebensmittel";;;"005";"Lastschrifteinzug";"54513360322830150523192709";"192716";"DE02ZZZ00002314935"
617;DE16500105175407875231;15.05.2023;15.05.2023;3.000,00;EUR;"Bo Gehringer";;;;;;;;;"051";"Gutschrift";;;
618;DE16500105175407875231;15.05.2023;15.05.2023;-55,08;EUR;"ARD ZDF DRadio Beitragsservice";;;"Rundfunk 04.2023 . 06.2023 Beitragsnr. 567341426 Aenderungen ganz bequem. www.rundfunkbeitrag.de";"Staat & Behörde";"Rundfunkbeitrag";"Staat & Behörde / Rundfunkbeitrag";;;"005";"Lastschrifteinzug";"5673414262023051600429352";"5673414261301";"DE3000100000001272"
619;DE16500105175407875231;15.05.2023;15.05.2023;-250,00;EUR;"Walter Gehringer";"DE37795625140003210677";"GENODEF1AB1";"Nebenkosten";"Lebenshaltung";"Wohnen & Wohnnebenkosten";"Lebenshaltung / Wohnen & Wohnnebenkosten";;;"013";"Dauerauftrag/Terminueberweisung";;;
620;DE16500105175407875231;15.05.2023;15.05.2023;-2.480,44;EUR;"Kath. Kirchensteueramt Dioezese Wuerzburg";;;"Kirchensteuer Einzug Steuernummer 204 219 81435";"Staat & Behörde";"Steuer";"Staat & Behörde / Steuer";;;"005";"Lastschrifteinzug";;"W46000530609";"DE63KSA00000177606"
621;DE16500105175407875231;11.05.2023;11.05.2023;45,00;EUR;"Turnverein Gunzenbach 1910 e.V.";;;"Beitragsruckerstattung";"Freizeit & Unterhaltung";"Vereine";"Freizeit & Unterhaltung / Vereine";;;"051";"Gutschrift";;;
622;DE16500105175407875231;11.05.2023;11.05.2023;-24,08;EUR;"REWE Kornelius Gol";;;"REWE SAGT DANKE. 44652171//Moembris/DE 2023.05.10T15.53.04 Folgenr.001Verfalld.2026.12";"Lebenshaltung";"Lebensmittel";"Lebenshaltung / Lebensmittel";;;"005";"Lastschrifteinzug";"56026221139557100523155304";"155346";"DE16RPA00000020245"
623;DE16500105175407875231;10.05.2023;10.05.2023;-5,99;EUR;"Amazon Digital Germany Gmbh";;;"D01.6982851.6056633 Prime Video Channels 548Q9TCJUC7D959M";"Freizeit & Unterhaltung";"Streaming";"Freizeit & Unterhaltung / Streaming";;;"005";"Lastschrifteinzug";"548Q9TCJUC7D959M";"rOxHdfurPFKHn)Aq(.XhjI6?SxR+8m";"DE96ZZZ00000594888"
624;DE16500105175407875231;10.05.2023;10.05.2023;-21,86;EUR;"REWE Kornelius Gol";;;"REWE SAGT DANKE. 44652172//Moembris/DE 2023.05.09T19.13.57 Folgenr.001Verfalld.2026.12";"Lebenshaltung";"Lebensmittel";"Lebenshaltung / Lebensmittel";;;"005";"Lastschrifteinzug";"56026269146378090523191357";"191416";"DE16RPA00000020245"
625;DE16500105175407875231;10.05.2023;10.05.2023;-124,50;EUR;"Frankfurter Voba Rhein-Main";;;"CRS Alzenau//Alzenau/DE 2023.05.09T16.26.26 Folgenr.000 Verfalld.2026.12 Entgelt 4,50EUR";;;;;;"005";"Lastschrifteinzug";"00001301022306090523162626";"162649";"DE16ZZZ00000003270"
626;DE16500105175407875231;09.05.2023;09.05.2023;-39,15;EUR;"PayPal Europe S.a.r.l. et Cie S.C.A";;;"1026836688063 . Flipdish, Ihr Einkauf bei Flipdish";"Lebenshaltung";"Shopping";"Lebenshaltung / Shopping";;;"005";"Lastschrifteinzug";"1026836688063";"474J224N243DU";"LU96ZZZ0000000000000000058"
627;DE16500105175407875231;09.05.2023;09.05.2023;-38,54;EUR;"Netto Marken-Discoun";;;"NETTO MARKEN.DISCOU//MOEMBRIS/DE 2023.05.08T18.18.49 Folgenr.001 Verfalld.2026.12";"Lebenshaltung";"Lebensmittel";"Lebenshaltung / Lebensmittel";;;"005";"Lastschrifteinzug";"65375639555021080523181849";"181849";"DE61ZZZ00000018368"
628;DE16500105175407875231;08.05.2023;08.05.2023;247,00;EUR;"Jan-Hendrik Bergroth";;;"Pfingstcup Hurth 2023 FC Bayern Alzenau Finn.Ole Bergroth";;;;;;"051";"Gutschrift";;;
629;DE16500105175407875231;08.05.2023;08.05.2023;-9,98;EUR;"toom BM Alzenau";;;"TOOM BM SAGT DANKE 13563651//Alzenau/DE 2023.05.06T17.07.52 Folgenr.000 Verfalld.2026.12";"Lebenshaltung";"Baumarkt & Gartencenter";"Lebenshaltung / Baumarkt & Gartencenter";;;"005";"Lastschrifteinzug";"56013478540169060523170752";"170837";"DE86ZZZ00000257217"
630;DE16500105175407875231;08.05.2023;08.05.2023;-89,40;EUR;"Worldline Sweden AB fuer Shell";;;"SHELL 5481// Alzenau /DE 2023.05.06T18.33.59 Folgenr.001 Verfalld.2026.12";"Mobilität";"Tank- & Ladestelle";"Mobilität / Tank- & Ladestelle";;;"005";"Lastschrifteinzug";"70011027444664060523183359";"183411";"SE917375565480026"
631;DE16500105175407875231;08.05.2023;08.05.2023;-80,31;EUR;"Lidl Dienstleistung Gmbh Und Co Kg";;;"LIDL DIENSTLEISTUNG GMBH UND CO KG//Alzenau/DE 2023.05.06T19.08.26 Folgenr.001 Verfalld.2026.12";"Lebenshaltung";"Lebensmittel";"Lebenshaltung / Lebensmittel";;;"005";"Lastschrifteinzug";"6015875406648006052319082602805926";"191040";"DE73DAB00000052684"
632;DE16500105175407875231;08.05.2023;08.05.2023;-53,95;EUR;"Sparkasse Aschaffenburg-Alzenau";;;"KARLS.R1//SPARKASSE ASCHAFFENBURG.ALZENAU/DE 2023.05.06T21.47.15 Folgenr.000 Verfalld.2026.12 Entgelt 3,95EUR";;;;;;"005";"Lastschrifteinzug";"00002014182731060523214715";"214801";"DE80GAA00000085247"
633;DE16500105175407875231;08.05.2023;08.05.2023;-25,92;EUR;"Unicredit W/ Total";;;"TOTAL Service Station//KARLSTEIN/DE2023.05.06T16.29.48 Folgenr.000 Verfalld.2026.12";"Mobilität";"Tank- & Ladestelle";"Mobilität / Tank- & Ladestelle";;;"005";"Lastschrifteinzug";"54706198736030060523162948";"162955";"DE28MTO00000009650"
634;DE16500105175407875231;08.05.2023;08.05.2023;-22,20;EUR;"Nah Und Gut Conrad";;;"CARMEN CONRAD E.K.//KARLSTEIN A. MAIN/DE 2023.05.05T19.34.14 Folgenr.000 Verfalld.2026.12";"Lebenshaltung";"Lebensmittel";"Lebenshaltung / Lebensmittel";;;"005";"Lastschrifteinzug";"54513359113970050523193414";"193441";"DE02ZZZ00002314935"
635;DE16500105175407875231;08.05.2023;08.05.2023;-21,03;EUR;"Worldline Sweden AB fuer Shell";;;"SHELL 5481// Alzenau /DE 2023.05.06T16.56.19 Folgenr.000 Verfalld.2026.12";"Mobilität";"Tank- & Ladestelle";"Mobilität / Tank- & Ladestelle";;;"005";"Lastschrifteinzug";"70011026139620060523165619";"165624";"SE917375565480026"
636;DE16500105175407875231;05.05.2023;05.05.2023;-18,97;EUR;"Amazon Payments Europe S.C.A.";;;"302.9668772.5080334 AMZN Mktp DE 7K94473P4GQRFYZC";"Lebenshaltung";"Shopping";"Lebenshaltung / Shopping";;;"005";"Lastschrifteinzug";"7K94473P4GQRFYZC";"rOxHdfurPFKHn)Aq(.XhjI6?SxR+8m";"DE94ZZZ00000561653"
637;DE16500105175407875231;05.05.2023;05.05.2023;-133,15;EUR;"Unicredit W/ Total";;;"TOTAL Service Station//KARLSTEIN/DE2023.05.04T21.39.52 Folgenr.000 Verfalld.2026.12";"Mobilität";"Tank- & Ladestelle";"Mobilität / Tank- & Ladestelle";;;"005";"Lastschrifteinzug";"54706198730670040523213952";"214003";"DE28MTO00000009650"
638;DE16500105175407875231;04.05.2023;04.05.2023;750,00;EUR;"Bundesagentur fur Arbeit - Familienkasse";;;"Kg735715Fk276070 0523 70052943252/3000098731709";"Finanzen & Versicherungen";"Kindergeld & Unterhalt";"Finanzen & Versicherungen / Kindergeld & Unterhalt";;;"051";"Gutschrift";"70052943252";;
639;DE16500105175407875231;04.05.2023;04.05.2023;-893,57;EUR;"VW-Bank";;;"11876525 Alz.Gg66 9 05 23";"Mobilität";"Auto & Motorrad";"Mobilität / Auto & Motorrad";;;"005";"Lastschrifteinzug";"KKFV1187652520230426009124124190005";"041600118765250001";"DE85BNK00000072741"
640;DE16500105175407875231;04.05.2023;04.05.2023;-6,00;EUR;"PayPal Europe S.a.r.l. et Cie S.C.A";;;"1026769830670 PP.5629.PP . HD PLUSGmbH, Ihr Einkauf bei HD PLUS GmbH";"Lebenshaltung";"Handy & Internet";"Lebenshaltung / Handy & Internet";;;"005";"Lastschrifteinzug";"1026769830670";"474J224N243DU";"LU96ZZZ0000000000000000058"
641;DE16500105175407875231;04.05.2023;04.05.2023;-42,58;EUR;"Edeka Geka Alzenau";;;"EDEKA GEKA ALZENAU//ALZENAU/DE 2023.05.03T15.39.47 Folgenr.001 Verfalld.2026.12";"Lebenshaltung";"Lebensmittel";"Lebenshaltung / Lebensmittel";;;"005";"Lastschrifteinzug";"54282312699685030523153947";"154000";"DE63ZZZ00001092898"
642;DE16500105175407875231;04.05.2023;04.05.2023;-14,99;EUR;"Amazon Eu S.A R.L., Niederlassung Deutschland";;;"302.0082809.0925935 Amazon.de 2AV98DBB1KRW2LW1";"Lebenshaltung";"Shopping";"Lebenshaltung / Shopping";;;"005";"Lastschrifteinzug";"2AV98DBB1KRW2LW1";"rOxHdfurPFKHn)Aq(.XhjI6?SxR+8m";"DE24ZZZ00000561652"
643;DE16500105175407875231;04.05.2023;04.05.2023;-12,99;EUR;"Amazon Payments Europe S.C.A.";;;"302.9668772.5080334 AMZN Mktp DE 6IOXBTRBSUXK5GNH";"Lebenshaltung";"Shopping";"Lebenshaltung / Shopping";;;"005";"Lastschrifteinzug";"6IOXBTRBSUXK5GNH";"rOxHdfurPFKHn)Aq(.XhjI6?SxR+8m";"DE94ZZZ00000561653"
644;DE16500105175407875231;04.05.2023;04.05.2023;-12,99;EUR;"Amazon Payments Europe S.C.A.";;;"302.9668772.5080334 AMZN Mktp DE 46OD2RM8C8GZUMMK";"Lebenshaltung";"Shopping";"Lebenshaltung / Shopping";;;"005";"Lastschrifteinzug";"46OD2RM8C8GZUMMK";"rOxHdfurPFKHn)Aq(.XhjI6?SxR+8m";"DE94ZZZ00000561653"
645;DE16500105175407875231;04.05.2023;04.05.2023;-10,98;EUR;"Amazon Payments Europe S.C.A.";;;"302.1610301.6384343 AMZN Mktp DE 675GGE363SW3OIHK";"Lebenshaltung";"Shopping";"Lebenshaltung / Shopping";;;"005";"Lastschrifteinzug";"675GGE363SW3OIHK";"rOxHdfurPFKHn)Aq(.XhjI6?SxR+8m";"DE94ZZZ00000561653"
646;DE16500105175407875231;03.05.2023;03.05.2023;-0,99;EUR;"Ing";;;"Girocard 260006800102Monatliches Entgeltgirocard (Debitkarte)";"Finanzen & Versicherungen";"Bankgebühren";"Finanzen & Versicherungen / Bankgebühren";;;"027";"Entgelt";;;
647;DE16500105175407875231;03.05.2023;03.05.2023;-0,99;EUR;"Ing";;;"Girocard 260006683584Monatliches Entgeltgirocard (Debitkarte)";"Finanzen & Versicherungen";"Bankgebühren";"Finanzen & Versicherungen / Bankgebühren";;;"027";"Entgelt";;;
648;DE16500105175407875231;03.05.2023;03.05.2023;-99,74;EUR;"Netto Marken-Discoun";;;"NETTO MARKEN.DISCOU//MOEMBRIS/DE 2023.05.02T18.23.27 Folgenr.001 Verfalld.2026.12";"Lebenshaltung";"Lebensmittel";"Lebenshaltung / Lebensmittel";;;"005";"Lastschrifteinzug";"65375639553443020523182327";"182335";"DE61ZZZ00000018368"
649;DE16500105175407875231;03.05.2023;03.05.2023;-74,00;EUR;"Cyriakus-Verein e.V.";;;"Kindergartenbeitrag 05.2023 fuer Gehringer Smilla";"Lebenshaltung";"Kinder";"Lebenshaltung / Kinder";;;"005";"Lastschrifteinzug";"K61205-2023";"Sausewind317";"DE74ZZZ00000733800"
650;DE16500105175407875231;03.05.2023;03.05.2023;-4,10;EUR;"PayPal (Europe) S.a r.l. etCie, S.C.A.";;;"1026694918102 PP.5629.PP . Microsoft Payments, Ihr Einkauf bei Microsoft Payments";"Freizeit & Unterhaltung";"Medien";"Freizeit & Unterhaltung / Medien";;;"005";"Lastschrifteinzug";"1026694918102PP.5629.PP PAYPAL";"474J224N243DU";"LU96ZZZ0000000000000000058"
651;DE16500105175407875231;02.05.2023;02.05.2023;2.919,48;EUR;"La Bottega Toscana J. Hofacker e.K.";;;"lfd. Gehalt LabottegaToscana";"Finanzen & Versicherungen";"Lohn & Gehalt";"Finanzen & Versicherungen / Lohn & Gehalt";;;"052";"Gutschrift aus Dauerauftrag";;;
652;DE16500105175407875231;02.05.2023;02.05.2023;-91,79;EUR;"prokundo GmbH";;;"536118906010 Pa000120531/ 536118906010 91,79/ Hausratvers.";"Finanzen & Versicherungen";"Versicherungen";"Finanzen & Versicherungen / Versicherungen";;;"005";"Lastschrifteinzug";"536118906010/PRO.G0546-10411";"PA000120531";"DE67ZZZ00000141062"
653;DE16500105175407875231;02.05.2023;02.05.2023;-7,90;EUR;"Nurnberger Krankenversicherung Aktiengesellschaft";;;"5134538 Nkv Krankenvers. R/ 01.05.2023 7,90";"Finanzen & Versicherungen";"Versicherungen";"Finanzen & Versicherungen / Versicherungen";;;"005";"Lastschrifteinzug";"2311418227337";"0210090000051345382018001";"DE14ZZZ00000057335"
654;DE16500105175407875231;02.05.2023;02.05.2023;-62,45;EUR;"VOLKSWOHL BUND Lebensversicherung a.G.";;;"008768131 La000528869/ 008768131 Risiko 62,45";"Finanzen & Versicherungen";"Versicherungen";"Finanzen & Versicherungen / Versicherungen";;;"005";"Lastschrifteinzug";"008768131/NVMA.G1028-259259";"LA000528869";"DE13ZZZ00000141064"
655;DE16500105175407875231;02.05.2023;02.05.2023;-57,41;EUR;"Allianz Lebensvers.";;;"Vertrag AL.0043152366 01.05.23 . 31.05.23 StartPolice";"Finanzen & Versicherungen";"Versicherungen";"Finanzen & Versicherungen / Versicherungen";;;"005";"Lastschrifteinzug";"AB223116-E00318480";"LA01L312001056217739";"DE07ZZZ00000063475"
656;DE16500105175407875231;02.05.2023;02.05.2023;-45,00;EUR;"Turnverein Gunzenbach 1910 e.V.";;;"TV Gunzenbach/Jahresbeitrag 2023";"Freizeit & Unterhaltung";"Vereine";"Freizeit & Unterhaltung / Vereine";;;"005";"Lastschrifteinzug";"6387";"836";"DE45ZZZ00000162895"
657;DE16500105175407875231;02.05.2023;02.05.2023;-31,70;EUR;"REWE Kornelius Gol";;;"REWE SAGT DANKE. 44652172//Moembris/DE 2023.04.29T16.09.37 Folgenr.001Verfalld.2026.12";"Lebenshaltung";"Lebensmittel";"Lebenshaltung / Lebensmittel";;;"005";"Lastschrifteinzug";"56026269145365290423160937";"160956";"DE16RPA00000020245"
658;DE16500105175407875231;02.05.2023;02.05.2023;-28,00;EUR;"Christina Stieber";;;"Tanzschule Alzenau Smilla KreativerKindertanz";"Freizeit & Unterhaltung";"Sport";"Freizeit & Unterhaltung / Sport";;;"005";"Lastschrifteinzug";;"3003";"DE84ZZZ00000624883"
659;DE16500105175407875231;02.05.2023;02.05.2023;-278,01;EUR;"VOLKSWOHL BUND Lebensversicherung a.G.";;;"009984035 La000528870/ 009984035 Rente 278,01";"Finanzen & Versicherungen";"Versicherungen";"Finanzen & Versicherungen / Versicherungen";;;"005";"Lastschrifteinzug";"009984035/NVMA.G1028-259260";"LA000528870";"DE13ZZZ00000141064"
660;DE16500105175407875231;02.05.2023;02.05.2023;-24,99;EUR;"Nah Und Gut Conrad";;;"CARMEN CONRAD E.K.//KARLSTEIN A. MAIN/DE 2023.04.29T19.24.27 Folgenr.000 Verfalld.2026.12";"Lebenshaltung";"Lebensmittel";"Lebenshaltung / Lebensmittel";;;"005";"Lastschrifteinzug";"54513360319017290423192427";"192445";"DE02ZZZ00002314935"
661;DE16500105175407875231;02.05.2023;02.05.2023;-21,24;EUR;"Allianz Versicherungs-AG";;;"90/0542/2946744 Unfall Pr";"Finanzen & Versicherungen";"Versicherungen";"Finanzen & Versicherungen / Versicherungen";;;"005";"Lastschrifteinzug";"A1923114-01092023042490044506";"ADAGSFF0000000344810";"DE10ZZZ00000051878"
662;DE16500105175407875231;02.05.2023;02.05.2023;-159,60;EUR;"AXA Krankenversicherung AG";;;"Krankenvers. 4958423794 BTR. 05/23159,60. EUR";"Finanzen & Versicherungen";"Versicherungen";"Finanzen & Versicherungen / Versicherungen";;;"005";"Lastschrifteinzug";"765023504132/0003";"21053190502";"DE23G0100000066097"
663;DE16500105175407875231;02.05.2023;02.05.2023;-153,95;EUR;"Sparkasse Aschaffenburg-Alzenau";;;"KARLS.R1//SPARKASSE ASCHAFFENBURG.ALZENAU/DE 2023.04.30T18.35.39 Folgenr.000 Verfalld.2026.12 Entgelt 3,95EUR";;;;;;"005";"Lastschrifteinzug";"00002014181472300423183539";"183549";"DE80GAA00000085247"
664;DE16500105175407875231;02.05.2023;02.05.2023;-125,87;EUR;"Netto Marken-Discoun";;;"NETTO MARKEN.DISCOU//MOEMBRIS/DE 2023.04.28T13.36.23 Folgenr.001 Verfalld.2026.12";"Lebenshaltung";"Lebensmittel";"Lebenshaltung / Lebensmittel";;;"005";"Lastschrifteinzug";"65375641126346280423133623";"133646";"DE61ZZZ00000018368"
